Body Name,Body,Service Label    ,Service Code,Service Division Label,Service Division Code,Organisational Unit,Expenditure Category,Expenditure Code,CIPFA Detailed Expenditure Type,CIPFA Detailed Expenditure Code,Date,Transaction Number,     Net Amount     ,Supplier Name,     Payment_Amount     
Broxtowe Borough Council,http://statistics.data.gov.uk/id/local-authority/37UD,Works,WORKS,Repairs & Maintenance,REPMAIN,Strategic Director / Grounds,Materials  - Direct,3202,Equipment,Equip,08/04/2022,V817895,977.91, Agrovista UK Ltd T/A Sherriff Amenity,1149.49
Broxtowe Borough Council,http://statistics.data.gov.uk/id/local-authority/37UD,Inventories,2INV,Inventories,2INV,Strategic Director / Enviromental Services,Stores Purchased - December,9368,Assets,Assets,08/04/2022,V807994,-20, Agrovista UK Ltd T/A Sherriff Amenity,1149.49
Broxtowe Borough Council,http://statistics.data.gov.uk/id/local-authority/37UD,Works,WORKS,Repairs & Maintenance,REPMAIN,Strategic Director / Trade Refuse Schools,Materials  - Direct,3202,Equipment,Equip,15/04/2022,V818202,432, Agrovista UK Ltd T/A Sherriff Amenity,518.4
Broxtowe Borough Council,http://statistics.data.gov.uk/id/local-authority/37UD,Works,WORKS,Repairs & Maintenance,REPMAIN,Strategic Director / Grounds,Materials  - Direct,3202,Equipment,Equip,29/04/2022,V825225,2248.95, Agrovista UK Ltd T/A Sherriff Amenity,2698.74
Broxtowe Borough Council,http://statistics.data.gov.uk/id/local-authority/37UD,Works,WORKS,Repairs & Maintenance,REPMAIN,Strategic Director / Enviromental Services,Materials  - Direct,3202,Equipment,Equip,20/05/2022,V852531,1344, Agrovista UK Ltd T/A Sherriff Amenity,1612.8
Broxtowe Borough Council,http://statistics.data.gov.uk/id/local-authority/37UD,Works,WORKS,Repairs & Maintenance,REPMAIN,Strategic Director / Grounds,Materials  - Direct,3202,Equipment,Equip,12/08/2022,V876324,379.28, Agrovista UK Ltd T/A Sherriff Amenity,910.26
Broxtowe Borough Council,http://statistics.data.gov.uk/id/local-authority/37UD,Works Directorate,DIRWORKS,Works Directorate,DIRWORKS,Strategic Director / Grounds,Materials  - Direct,3202,Equipment,Equip,12/08/2022,V876324,379.27, Agrovista UK Ltd T/A Sherriff Amenity,910.26
Broxtowe Borough Council,http://statistics.data.gov.uk/id/local-authority/37UD,Works,WORKS,Repairs & Maintenance,REPMAIN,Strategic Director / Grounds,Materials  - Direct,3202,Equipment,Equip,09/09/2022,V879760,1905.6, Agrovista UK Ltd T/A Sherriff Amenity,2286.72
Broxtowe Borough Council,http://statistics.data.gov.uk/id/local-authority/37UD,Works,WORKS,Repairs & Maintenance,REPMAIN,Strategic Director / Grounds,Materials  - Direct,3202,Equipment,Equip,23/09/2022,V880540,4530, Agrovista UK Ltd T/A Sherriff Amenity,5436
Broxtowe Borough Council,http://statistics.data.gov.uk/id/local-authority/37UD,Inventories,2INV,Inventories,2INV,Strategic Director / Enviromental Services,Stores Purchased - October,9366,Assets,Assets,04/11/2022,V885002,223.25, Agrovista UK Ltd T/A Sherriff Amenity,267.9
Broxtowe Borough Council,http://statistics.data.gov.uk/id/local-authority/37UD,Works,WORKS,Repairs & Maintenance,REPMAIN,Strategic Director / Grounds,Materials  - Direct,3202,Equipment,Equip,27/01/2023,V891692,750, Agrovista UK Ltd T/A Sherriff Amenity,900
Broxtowe Borough Council,http://statistics.data.gov.uk/id/local-authority/37UD,Works Directorate,DIRWORKS,Works Directorate,DIRWORKS,Executive Director / Grounds,Materials  - Direct,3202,Equipment,Equip,11/04/2023,V898417,4417.12, Agrovista UK Ltd T/A Sherriff Amenity,5012.55
Broxtowe Borough Council,http://statistics.data.gov.uk/id/local-authority/37UD,Technical,TECHNICA,Parks & Recreation Grounds,RECGRD,Executive Director / Enviromental Services,Grounds Maintenance - External,1205,Other Prem,OthPrem,11/04/2023,V897017,-240, Agrovista UK Ltd T/A Sherriff Amenity,5012.55
Broxtowe Borough Council,http://statistics.data.gov.uk/id/local-authority/37UD,Works,WORKS,Repairs & Maintenance,REPMAIN,Executive Director / Grounds,Materials  - Direct,3202,Equipment,Equip,21/04/2023,V899414,788.75, Agrovista UK Ltd T/A Sherriff Amenity,946.5
Broxtowe Borough Council,http://statistics.data.gov.uk/id/local-authority/37UD,Works,WORKS,Repairs & Maintenance,REPMAIN,Executive Director / Enviromental Services,Materials  - Direct,3202,Equipment,Equip,02/06/2023,V902481,450, Agrovista UK Ltd T/A Sherriff Amenity,852
Broxtowe Borough Council,http://statistics.data.gov.uk/id/local-authority/37UD,Works,WORKS,Repairs & Maintenance,REPMAIN,Executive Director / Grounds,Materials  - Direct,3202,Equipment,Equip,02/06/2023,V902646,260, Agrovista UK Ltd T/A Sherriff Amenity,852
Broxtowe Borough Council,http://statistics.data.gov.uk/id/local-authority/37UD,Works,WORKS,Repairs & Maintenance,REPMAIN,Executive Director / Grounds,Materials  - Direct,3202,Equipment,Equip,11/08/2023,V908925,408.45, Agrovista UK Ltd T/A Sherriff Amenity,490.14
Broxtowe Borough Council,http://statistics.data.gov.uk/id/local-authority/37UD,Head of Environment,H33,Parks and Green Spaces manager,S333,Executive Director / Grounds,Materials  - Direct,3202,Equipment,Equip,13/10/2023,V913441,1387.6, Agrovista UK Ltd T/A Sherriff Amenity,1665.12
Broxtowe Borough Council,http://statistics.data.gov.uk/id/local-authority/37UD,Head of Environment,H33,Parks and Green Spaces manager,S333,Executive Director / Enviromental Services,Materials  - Direct,3202,Equipment,Equip,20/10/2023,V913711,506.55, Agrovista UK Ltd T/A Sherriff Amenity,866.16
Broxtowe Borough Council,http://statistics.data.gov.uk/id/local-authority/37UD,Inventories,2INV,Inventories,2INV,Executive Director / Enviromental Services,Stores Purchased - October,9366,Assets,Assets,20/10/2023,V913781,215.25, Agrovista UK Ltd T/A Sherriff Amenity,866.16
Broxtowe Borough Council,http://statistics.data.gov.uk/id/local-authority/37UD,Head of Environment,H33,Parks and Green Spaces manager,S333,Executive Director / Grounds,Materials  - Direct,3202,Equipment,Equip,27/10/2023,V914158,2587.2, Agrovista UK Ltd T/A Sherriff Amenity,3104.64
Broxtowe Borough Council,http://statistics.data.gov.uk/id/local-authority/37UD,Inventories,2INV,Inventories,2INV,Executive Director / Enviromental Services,Stores Purchased - December,9368,Assets,Assets,22/12/2023,V918884,215.25, Agrovista UK Ltd T/A Sherriff Amenity,258.3
Broxtowe Borough Council,http://statistics.data.gov.uk/id/local-authority/37UD,Head of Environment,H33,Parks and Green Spaces manager,S333,Executive Director / Enviromental Services,Miscellaneous Expenses,3800,Other Supplies & Services,OtherSS,23/02/2024,V924003,523.2, Agrovista UK Ltd T/A Sherriff Amenity,627.84
Broxtowe Borough Council,http://statistics.data.gov.uk/id/local-authority/37UD,Community Development,COMDEV,Grants,GRANTS,Deputy Chief Executive / Finance Services,Grants - Broxtowe Community Lotto,3701,Other Supplies & Services,OtherSS,11/11/2022,V885218,250,1st Chilwell and Attenborough Scout Group,250
Broxtowe Borough Council,http://statistics.data.gov.uk/id/local-authority/37UD,Finance,FINANCE,Admin Services,ADMIN,Executive Director / Administrative Services,Hire of Facilities,3223,Other Supplies & Services,OtherSS,21/07/2023,V906570,600,1st Chilwell and Attenborough Scout Group,600
Broxtowe Borough Council,http://statistics.data.gov.uk/id/local-authority/37UD,Head of Housing,H51,Housing Services and Strategy Manager,S513,Deputy Chief Executive / Property Services,Consultancy Fees,3603,Other Supplies & Services,OtherSS,02/02/2024,V922118,280,2M Asbestos Consultancy,1680
Broxtowe Borough Council,http://statistics.data.gov.uk/id/local-authority/37UD,Head of Housing,H51,Housing Services and Strategy Manager,S513,Deputy Chief Executive / Property Services,Consultancy Fees,3603,Other Supplies & Services,OtherSS,02/02/2024,V922113,280,2M Asbestos Consultancy,1680
Broxtowe Borough Council,http://statistics.data.gov.uk/id/local-authority/37UD,Head of Housing,H51,Housing Services and Strategy Manager,S513,Deputy Chief Executive / Property Services,Consultancy Fees,3603,Other Supplies & Services,OtherSS,02/02/2024,V922115,280,2M Asbestos Consultancy,1680
Broxtowe Borough Council,http://statistics.data.gov.uk/id/local-authority/37UD,Head of Housing,H51,Housing Services and Strategy Manager,S513,Deputy Chief Executive / Property Services,Consultancy Fees,3603,Other Supplies & Services,OtherSS,02/02/2024,V922117,280,2M Asbestos Consultancy,1680
Broxtowe Borough Council,http://statistics.data.gov.uk/id/local-authority/37UD,Head of Housing,H51,Housing Services and Strategy Manager,S513,Deputy Chief Executive / Property Services,Consultancy Fees,3603,Other Supplies & Services,OtherSS,02/02/2024,V922116,280,2M Asbestos Consultancy,1680
Broxtowe Borough Council,http://statistics.data.gov.uk/id/local-authority/37UD,Community Development,COMDEV,Grants,GRANTS,Deputy Chief Executive / Finance Services,Grants - Broxtowe Community Lotto,3701,Other Supplies & Services,OtherSS,06/06/2022,V861138,250,2nd Kimberley Scout Group,250
Broxtowe Borough Council,http://statistics.data.gov.uk/id/local-authority/37UD,Finance,FINANCE,Admin Services,ADMIN,Executive Director / Administrative Services,Hire of Facilities,3223,Other Supplies & Services,OtherSS,28/04/2023,V899971,600,2nd Kimberley Scout Group,600
Broxtowe Borough Council,http://statistics.data.gov.uk/id/local-authority/37UD,Technical,TECHNICA,Parks & Recreation Grounds,RECGRD,Executive Director / Grounds,Grounds Maintenance - External,1205,Other Premises,OthPrem,11/08/2023,V908910,631,A J S Gates Fencing and Forestry,757.2
Broxtowe Borough Council,http://statistics.data.gov.uk/id/local-authority/37UD,Works,WORKS,Repairs & Maintenance,REPMAIN,Strategic Director / Enviromental Services,Sub Contractors [day to day repairs],3107,Other Supplies & Services,OtherSS,08/04/2022,V817777,1255,A J Steeples,2542.8
Broxtowe Borough Council,http://statistics.data.gov.uk/id/local-authority/37UD,Technical,TECHNICA,Parks & Recreation Grounds,RECGRD,Strategic Director / Enviromental Services,Grounds Maintenance - External,1205,Other Prem,OthPrem,08/04/2022,V817776,864,A J Steeples,2542.8
Broxtowe Borough Council,http://statistics.data.gov.uk/id/local-authority/37UD,Works,WORKS,Repairs & Maintenance,REPMAIN,Strategic Director / Enviromental Services,Sub Contractors [day to day repairs],3107,Other Supplies & Services,OtherSS,20/05/2022,V852546,1330,A J Steeples,3924
Broxtowe Borough Council,http://statistics.data.gov.uk/id/local-authority/37UD,Works,WORKS,Repairs & Maintenance,REPMAIN,Strategic Director / Enviromental Services,Sub Contractors [day to day repairs],3107,Other Supplies & Services,OtherSS,20/05/2022,V818449,1040,A J Steeples,3924
Broxtowe Borough Council,http://statistics.data.gov.uk/id/local-authority/37UD,Works,WORKS,Repairs & Maintenance,REPMAIN,Strategic Director / Enviromental Services,Sub Contractors [day to day repairs],3107,Other Supplies & Services,OtherSS,20/05/2022,V818449,450,A J Steeples,3924
Broxtowe Borough Council,http://statistics.data.gov.uk/id/local-authority/37UD,Works,WORKS,Other Works,WKSOTHER,Strategic Director / Enviromental Services,Grounds Maintenance - External,1205,Other Prem,OthPrem,20/05/2022,V818449,260,A J Steeples,3924
Broxtowe Borough Council,http://statistics.data.gov.uk/id/local-authority/37UD,Works,WORKS,Repairs & Maintenance,REPMAIN,Strategic Director / Enviromental Services,Sub Contractors [day to day repairs],3107,Other Supplies & Services,OtherSS,20/05/2022,V852546,190,A J Steeples,3924
Broxtowe Borough Council,http://statistics.data.gov.uk/id/local-authority/37UD,Works,WORKS,Repairs & Maintenance,REPMAIN,Strategic Director / Enviromental Services,Sub Contractors [day to day repairs],3107,Other Supplies & Services,OtherSS,06/06/2022,V862770,4888,A J Steeples,13254
Broxtowe Borough Council,http://statistics.data.gov.uk/id/local-authority/37UD,Works,WORKS,Repairs & Maintenance,REPMAIN,Strategic Director / Grounds,Sub Contractors [day to day repairs],3107,Other Supplies & Services,OtherSS,06/06/2022,V862765,3384,A J Steeples,13254
Broxtowe Borough Council,http://statistics.data.gov.uk/id/local-authority/37UD,Works,WORKS,Repairs & Maintenance,REPMAIN,Strategic Director / Grounds,Sub Contractors [day to day repairs],3107,Other Supplies & Services,OtherSS,06/06/2022,V862764,1140,A J Steeples,13254
Broxtowe Borough Council,http://statistics.data.gov.uk/id/local-authority/37UD,Works,WORKS,Repairs & Maintenance,REPMAIN,Strategic Director / Enviromental Services,Sub Contractors [day to day repairs],3107,Other Supplies & Services,OtherSS,06/06/2022,V862770,752,A J Steeples,13254
Broxtowe Borough Council,http://statistics.data.gov.uk/id/local-authority/37UD,Works,WORKS,Repairs & Maintenance,REPMAIN,Strategic Director / Enviromental Services,Sub Contractors [day to day repairs],3107,Other Supplies & Services,OtherSS,06/06/2022,V862770,376,A J Steeples,13254
Broxtowe Borough Council,http://statistics.data.gov.uk/id/local-authority/37UD,Works,WORKS,Repairs & Maintenance,REPMAIN,Strategic Director / Enviromental Services,Sub Contractors [day to day repairs],3107,Other Supplies & Services,OtherSS,06/06/2022,V862770,315,A J Steeples,13254
Broxtowe Borough Council,http://statistics.data.gov.uk/id/local-authority/37UD,Technical,TECHNICA,Highways,HIGHWYS,Strategic Director / Enviromental Services,Clean & Green Initiative,3980,Other Supplies & Services,OtherSS,06/06/2022,V862770,190,A J Steeples,13254
Broxtowe Borough Council,http://statistics.data.gov.uk/id/local-authority/37UD,Works Directorate,DIRWORKS,Works Directorate,DIRWORKS,Strategic Director / Grounds,Sub Contractors [day to day repairs],3107,Other Supplies & Services,OtherSS,24/06/2022,V865812,4702,A J Steeples,6098.4
Broxtowe Borough Council,http://statistics.data.gov.uk/id/local-authority/37UD,Works,WORKS,Repairs & Maintenance,REPMAIN,Strategic Director / Grounds,Sub Contractors [day to day repairs],3107,Other Supplies & Services,OtherSS,24/06/2022,V865812,380,A J Steeples,6098.4
Broxtowe Borough Council,http://statistics.data.gov.uk/id/local-authority/37UD,Works,WORKS,Repairs & Maintenance,REPMAIN,Strategic Director / Grounds,Sub Contractors [day to day repairs],3107,Other Supplies & Services,OtherSS,05/08/2022,V874399,1140,A J Steeples,1368
Broxtowe Borough Council,http://statistics.data.gov.uk/id/local-authority/37UD,Works Directorate,DIRWORKS,Works Directorate,DIRWORKS,Strategic Director / Enviromental Services,Sub Contractors [day to day repairs],3107,Other Supplies & Services,OtherSS,26/08/2022,V877639,4888,A J Steeples,8373.6
Broxtowe Borough Council,http://statistics.data.gov.uk/id/local-authority/37UD,Technical,TECHNICA,Highways,HIGHWYS,Strategic Director / Grounds,Clean & Green Initiative,3980,Other Supplies & Services,OtherSS,26/08/2022,V877640,1710,A J Steeples,8373.6
Broxtowe Borough Council,http://statistics.data.gov.uk/id/local-authority/37UD,Works,WORKS,Repairs & Maintenance,REPMAIN,Strategic Director / Enviromental Services,Sub Contractors [day to day repairs],3107,Other Supplies & Services,OtherSS,26/08/2022,V877639,380,A J Steeples,8373.6
Broxtowe Borough Council,http://statistics.data.gov.uk/id/local-authority/37UD,Works,WORKS,Repairs & Maintenance,REPMAIN,Strategic Director / Enviromental Services,Sub Contractors [day to day repairs],3107,Other Supplies & Services,OtherSS,16/09/2022,V880277,1140,A J Steeples,2736
Broxtowe Borough Council,http://statistics.data.gov.uk/id/local-authority/37UD,Works,WORKS,Repairs & Maintenance,REPMAIN,Strategic Director / Enviromental Services,Sub Contractors [day to day repairs],3107,Other Supplies & Services,OtherSS,16/09/2022,V880277,760,A J Steeples,2736
Broxtowe Borough Council,http://statistics.data.gov.uk/id/local-authority/37UD,Technical,TECHNICA,Highways,HIGHWYS,Strategic Director / Enviromental Services,Clean & Green Initiative,3980,Other Supplies & Services,OtherSS,16/09/2022,V880277,380,A J Steeples,2736
Broxtowe Borough Council,http://statistics.data.gov.uk/id/local-authority/37UD,Works Directorate,DIRWORKS,Works Directorate,DIRWORKS,Strategic Director / Enviromental Services,Sub Contractors [day to day repairs],3107,Other Supplies & Services,OtherSS,28/10/2022,V883842,4750,A J Steeples,10956
Broxtowe Borough Council,http://statistics.data.gov.uk/id/local-authority/37UD,Works,WORKS,Repairs & Maintenance,REPMAIN,Strategic Director / Enviromental Services,Sub Contractors [day to day repairs],3107,Other Supplies & Services,OtherSS,28/10/2022,V883842,2850,A J Steeples,10956
Broxtowe Borough Council,http://statistics.data.gov.uk/id/local-authority/37UD,Works,WORKS,Repairs & Maintenance,REPMAIN,Strategic Director / Enviromental Services,Sub Contractors [day to day repairs],3107,Other Supplies & Services,OtherSS,28/10/2022,V883842,760,A J Steeples,10956
Broxtowe Borough Council,http://statistics.data.gov.uk/id/local-authority/37UD,Works,WORKS,Repairs & Maintenance,REPMAIN,Strategic Director / Enviromental Services,Sub Contractors [day to day repairs],3107,Other Supplies & Services,OtherSS,28/10/2022,V883842,390,A J Steeples,10956
Broxtowe Borough Council,http://statistics.data.gov.uk/id/local-authority/37UD,Works,WORKS,Repairs & Maintenance,REPMAIN,Strategic Director / Enviromental Services,Sub Contractors [day to day repairs],3107,Other Supplies & Services,OtherSS,28/10/2022,V883842,380,A J Steeples,10956
Broxtowe Borough Council,http://statistics.data.gov.uk/id/local-authority/37UD,Works,WORKS,Repairs & Maintenance,REPMAIN,Strategic Director / Grounds,Sub Contractors [day to day repairs],3107,Other Supplies & Services,OtherSS,18/11/2022,V885877,11780,A J Steeples,14136
Broxtowe Borough Council,http://statistics.data.gov.uk/id/local-authority/37UD,Works,WORKS,Repairs & Maintenance,REPMAIN,Strategic Director / Enviromental Services,Sub Contractors [day to day repairs],3107,Other Supplies & Services,OtherSS,16/12/2022,V888489,1900,A J Steeples,4788
Broxtowe Borough Council,http://statistics.data.gov.uk/id/local-authority/37UD,Works,WORKS,Repairs & Maintenance,REPMAIN,Strategic Director / Enviromental Services,Sub Contractors [day to day repairs],3107,Other Supplies & Services,OtherSS,16/12/2022,V888489,380,A J Steeples,4788
Broxtowe Borough Council,http://statistics.data.gov.uk/id/local-authority/37UD,Works,WORKS,Repairs & Maintenance,REPMAIN,Strategic Director / Enviromental Services,Sub Contractors [day to day repairs],3107,Other Supplies & Services,OtherSS,16/12/2022,V888489,380,A J Steeples,4788
Broxtowe Borough Council,http://statistics.data.gov.uk/id/local-authority/37UD,Works,WORKS,Repairs & Maintenance,REPMAIN,Strategic Director / Enviromental Services,Sub Contractors [day to day repairs],3107,Other Supplies & Services,OtherSS,16/12/2022,V888489,380,A J Steeples,4788
Broxtowe Borough Council,http://statistics.data.gov.uk/id/local-authority/37UD,Works,WORKS,Other Works,WKSOTHER,Strategic Director / Enviromental Services,Premises Costs,1017,Other Maintenance,Maint,16/12/2022,V888489,380,A J Steeples,4788
Broxtowe Borough Council,http://statistics.data.gov.uk/id/local-authority/37UD,Works,WORKS,Other Works,WKSOTHER,Strategic Director / Enviromental Services,Grounds Maintenance - External,1205,Other Prem,OthPrem,16/12/2022,V888489,380,A J Steeples,4788
Broxtowe Borough Council,http://statistics.data.gov.uk/id/local-authority/37UD,Works,WORKS,Repairs & Maintenance,REPMAIN,Strategic Director / Enviromental Services,Sub Contractors [day to day repairs],3107,Other Supplies & Services,OtherSS,16/12/2022,V888489,190,A J Steeples,4788
Broxtowe Borough Council,http://statistics.data.gov.uk/id/local-authority/37UD,Works,WORKS,Repairs & Maintenance,REPMAIN,Strategic Director / Enviromental Services,Sub Contractors [day to day repairs],3107,Other Supplies & Services,OtherSS,27/01/2023,V891731,1330,A J Steeples,2280
Broxtowe Borough Council,http://statistics.data.gov.uk/id/local-authority/37UD,Works,WORKS,Repairs & Maintenance,REPMAIN,Strategic Director / Enviromental Services,Sub Contractors [day to day repairs],3107,Other Supplies & Services,OtherSS,27/01/2023,V891731,380,A J Steeples,2280
Broxtowe Borough Council,http://statistics.data.gov.uk/id/local-authority/37UD,Works,WORKS,Repairs & Maintenance,REPMAIN,Strategic Director / Enviromental Services,Sub Contractors [day to day repairs],3107,Other Supplies & Services,OtherSS,27/01/2023,V891731,190,A J Steeples,2280
Broxtowe Borough Council,http://statistics.data.gov.uk/id/local-authority/37UD,Works,WORKS,Repairs & Maintenance,REPMAIN,Executive Director / Grounds,Sub Contractors [day to day repairs],3107,Other Supplies & Services,OtherSS,10/03/2023,V895971,1140,A J Steeples,1368
Broxtowe Borough Council,http://statistics.data.gov.uk/id/local-authority/37UD,Works,WORKS,Repairs & Maintenance,REPMAIN,Executive Director / Grounds,Sub Contractors [day to day repairs],3107,Other Supplies & Services,OtherSS,24/03/2023,V897389,950,A J Steeples,1140
Broxtowe Borough Council,http://statistics.data.gov.uk/id/local-authority/37UD,Works,WORKS,Repairs & Maintenance,REPMAIN,Executive Director / Grounds,Sub Contractors [day to day repairs],3107,Other Supplies & Services,OtherSS,11/04/2023,V898414,760,A J Steeples,912
Broxtowe Borough Council,http://statistics.data.gov.uk/id/local-authority/37UD,Works,WORKS,Repairs & Maintenance,REPMAIN,Executive Director / Enviromental Services,Sub Contractors [day to day repairs],3107,Other Supplies & Services,OtherSS,21/04/2023,V899358,1140,A J Steeples,2166
Broxtowe Borough Council,http://statistics.data.gov.uk/id/local-authority/37UD,Technical,TECHNICA,Parks & Recreation Grounds,RECGRD,Executive Director / Enviromental Services,Grounds Maintenance - External,1205,Other Prem,OthPrem,21/04/2023,V899358,475,A J Steeples,2166
Broxtowe Borough Council,http://statistics.data.gov.uk/id/local-authority/37UD,Works,WORKS,Other Works,WKSOTHER,Executive Director / Enviromental Services,Premises Costs,1017,Other Maintenance,Maint,21/04/2023,V899358,190,A J Steeples,2166
Broxtowe Borough Council,http://statistics.data.gov.uk/id/local-authority/37UD,Works,WORKS,Repairs & Maintenance,REPMAIN,Executive Director / Grounds,Sub Contractors [day to day repairs],3107,Other Supplies & Services,OtherSS,28/04/2023,V899786,950,A J Steeples,1140
Broxtowe Borough Council,http://statistics.data.gov.uk/id/local-authority/37UD,Technical,TECHNICA,Parks & Recreation Grounds,RECGRD,Executive Director / Grounds,Grounds Maintenance - External,1205,Other Prem,OthPrem,12/05/2023,V901221,380,A J Steeples,456
Broxtowe Borough Council,http://statistics.data.gov.uk/id/local-authority/37UD,Works Directorate,DIRWORKS,Works Directorate,DIRWORKS,Executive Director / Grounds,Sub Contractors [day to day repairs],3107,Other Supplies & Services,OtherSS,09/06/2023,V903519,3990,A J Steeples,6384
Broxtowe Borough Council,http://statistics.data.gov.uk/id/local-authority/37UD,Works,WORKS,Repairs & Maintenance,REPMAIN,Executive Director / Grounds,Sub Contractors [day to day repairs],3107,Other Supplies & Services,OtherSS,09/06/2023,V903493,1330,A J Steeples,6384
Broxtowe Borough Council,http://statistics.data.gov.uk/id/local-authority/37UD,Works,WORKS,Repairs & Maintenance,REPMAIN,Executive Director / Grounds,Sub Contractors [day to day repairs],3107,Other Supplies & Services,OtherSS,14/07/2023,V906309,1330,A J Steeples,1596
Broxtowe Borough Council,http://statistics.data.gov.uk/id/local-authority/37UD,Works Directorate,DIRWORKS,Works Directorate,DIRWORKS,Executive Director / Grounds,Sub Contractors [day to day repairs],3107,Other Supplies & Services,OtherSS,21/07/2023,V906752,4888,A J Steeples,11556
Broxtowe Borough Council,http://statistics.data.gov.uk/id/local-authority/37UD,Works,WORKS,Repairs & Maintenance,REPMAIN,Executive Director / Grounds,Sub Contractors [day to day repairs],3107,Other Supplies & Services,OtherSS,21/07/2023,V906751,3602,A J Steeples,11556
Broxtowe Borough Council,http://statistics.data.gov.uk/id/local-authority/37UD,Technical,TECHNICA,Highways,HIGHWYS,Executive Director / Enviromental Services,Clean & Green Initiative,3980,Other Supplies & Services,OtherSS,21/07/2023,V906770,950,A J Steeples,11556
Broxtowe Borough Council,http://statistics.data.gov.uk/id/local-authority/37UD,Technical,TECHNICA,Highways,HIGHWYS,Executive Director / Enviromental Services,Clean & Green Initiative,3980,Other Supplies & Services,OtherSS,21/07/2023,V906770,190,A J Steeples,11556
Broxtowe Borough Council,http://statistics.data.gov.uk/id/local-authority/37UD,Head of Environment,H33,Parks and Green Spaces manager,S333,Executive Director / Enviromental Services,Sub Contractors [day to day repairs],3107,Other Supplies & Services,OtherSS,01/09/2023,V909953,5078,A J Steeples,8601.6
Broxtowe Borough Council,http://statistics.data.gov.uk/id/local-authority/37UD,Head of Environment,H33,Parks and Green Spaces manager,S333,Executive Director / Grounds,Sub Contractors [day to day repairs],3107,Other Supplies & Services,OtherSS,01/09/2023,V909954,1520,A J Steeples,8601.6
Broxtowe Borough Council,http://statistics.data.gov.uk/id/local-authority/37UD,Head of Environment,H33,Head of Environment,S332,Executive Director / Enviromental Services,Clean & Green Initiative,3980,Other Supplies & Services,OtherSS,01/09/2023,V909951,570,A J Steeples,8601.6
Broxtowe Borough Council,http://statistics.data.gov.uk/id/local-authority/37UD,Head of Environment,H33,Parks and Green Spaces manager,S333,Executive Director / Grounds,Sub Contractors [day to day repairs],3107,Other Supplies & Services,OtherSS,27/10/2023,V914070,1330,A J Steeples,1596
Broxtowe Borough Council,http://statistics.data.gov.uk/id/local-authority/37UD,Head of Environment,H33,Parks and Green Spaces manager,S333,Executive Director / Enviromental Services,Sub Contractors [day to day repairs],3107,Other Supplies & Services,OtherSS,10/11/2023,V915646,4940.00,A J Steeples,6612
Broxtowe Borough Council,http://statistics.data.gov.uk/id/local-authority/37UD,Head of Environment,H33,Head of Environment,S332,Executive Director / Enviromental Services,Clean & Green Initiative,3980,Other Supplies & Services,OtherSS,10/11/2023,V915646,570.00,A J Steeples,6612
Broxtowe Borough Council,http://statistics.data.gov.uk/id/local-authority/37UD,Head of Environment,H33,Parks and Green Spaces manager,S333,Executive Director / Enviromental Services,Sub Contractors [day to day repairs],3107,Other Supplies & Services,OtherSS,15/12/2023,V918686,11780,A J Steeples,17784
Broxtowe Borough Council,http://statistics.data.gov.uk/id/local-authority/37UD,Head of Environment,H33,Parks and Green Spaces manager,S333,Executive Director / Enviromental Services,Sub Contractors [day to day repairs],3107,Other Supplies & Services,OtherSS,15/12/2023,V918686,1900,A J Steeples,17784
Broxtowe Borough Council,http://statistics.data.gov.uk/id/local-authority/37UD,Head of Environment,H33,Parks and Green Spaces manager,S333,Executive Director / Enviromental Services,Sub Contractors [day to day repairs],3107,Other Supplies & Services,OtherSS,15/12/2023,V918686,570,A J Steeples,17784
Broxtowe Borough Council,http://statistics.data.gov.uk/id/local-authority/37UD,Head of Environment,H33,Parks and Green Spaces manager,S333,Executive Director / Enviromental Services,Sub Contractors [day to day repairs],3107,Other Supplies & Services,OtherSS,15/12/2023,V918686,190,A J Steeples,17784
Broxtowe Borough Council,http://statistics.data.gov.uk/id/local-authority/37UD,Head of Environment,H33,Head of Environment,S332,Executive Director / Enviromental Services,Clean & Green Initiative,3980,Other Supplies & Services,OtherSS,15/12/2023,V918686,190,A J Steeples,17784
Broxtowe Borough Council,http://statistics.data.gov.uk/id/local-authority/37UD,Head of Environment,H33,Parks and Green Spaces manager,S333,Executive Director / Enviromental Services,Premises Costs,1017,Maintenance,Maint,15/12/2023,V918686,190,A J Steeples,17784
Broxtowe Borough Council,http://statistics.data.gov.uk/id/local-authority/37UD,Head of Environment,H33,Parks and Green Spaces manager,S333,Executive Director / Enviromental Services,Sub Contractors [day to day repairs],3107,Other Supplies & Services,OtherSS,16/02/2024,V923385,950,A J Steeples,1140
Broxtowe Borough Council,http://statistics.data.gov.uk/id/local-authority/37UD,Head of Environment,H33,Parks and Green Spaces manager,S333,Executive Director / Enviromental Services,Removals,3835,Other Supplies & Services,OtherSS,23/02/2024,V924063,760,A J Steeples,1368
Broxtowe Borough Council,http://statistics.data.gov.uk/id/local-authority/37UD,Head of Environment,H33,Head of Environment,S332,Executive Director / Enviromental Services,Clean & Green Initiative,3980,Other Supplies & Services,OtherSS,23/02/2024,V924063,190,A J Steeples,1368
Broxtowe Borough Council,http://statistics.data.gov.uk/id/local-authority/37UD,Head of Environment,H33,Parks and Green Spaces manager,S333,Executive Director / Enviromental Services,Miscellaneous Expenses,3800,Other Supplies & Services,OtherSS,23/02/2024,V924063,190,A J Steeples,1368
Broxtowe Borough Council,http://statistics.data.gov.uk/id/local-authority/37UD,Head of Environment,H33,Parks and Green Spaces manager,S333,Executive Director / Enviromental Services,Sub Contractors [day to day repairs],3107,Other Supplies & Services,OtherSS,08/03/2024,V925335,1140,A J Steeples,1368
Broxtowe Borough Council,http://statistics.data.gov.uk/id/local-authority/37UD,Housing,HOUSING,Repairs,REPS,Deputy Chief Executive / Housing Repairs,Sub Contractors [day to day repairs],3107,Other Supplies & Services,OtherSS,20/05/2022,V852542,670,A L Dalton Limited,804
Broxtowe Borough Council,http://statistics.data.gov.uk/id/local-authority/37UD,Housing,HOUSING,Repairs,REPS,Chief Executive  / Housing repairs,Sub Contractors [day to day repairs],3107,Other Supplies & Services,OtherSS,18/08/2023,V909141,700,A L Dalton Limited,840
Broxtowe Borough Council,http://statistics.data.gov.uk/id/local-authority/37UD,Housing,HOUSING,Repairs,REPS,Chief Executive  / Housing repairs,Sub Contractors [day to day repairs],3107,Other Supplies & Services,OtherSS,25/08/2023,V909608,626.68,A L Dalton Limited,752.02
Broxtowe Borough Council,http://statistics.data.gov.uk/id/local-authority/37UD,Business Growth,CAPBUS,Business Growth,1CAPBG,Deputy Chief Executive / Finance Services,Grants,9006,Capital Expenditure,CapExp,15/03/2024,V926061,4271.5,A Plumb & Son,4271.5
Broxtowe Borough Council,http://statistics.data.gov.uk/id/local-authority/37UD,Works,WORKS,Other Works,WKSOTHER,Strategic Director / Trade Refuse Schools,Equipment Tools and Materials,3006,Equipment,Equip,08/07/2022,V867133,235,A T  Alarms,282
Broxtowe Borough Council,http://statistics.data.gov.uk/id/local-authority/37UD,Works,WORKS,Other Works,WKSOTHER,Strategic Director / Enviromental Services,Premises Costs,1017,Other Maintenance,Maint,21/10/2022,V883237,341.93,A T  Alarms,733.12
Broxtowe Borough Council,http://statistics.data.gov.uk/id/local-authority/37UD,Works,WORKS,Other Works,WKSOTHER,Strategic Director / Environmental Business and Project,Equipment Tools and Materials,3006,Equipment,Equip,21/10/2022,V883396,269,A T  Alarms,733.12
Broxtowe Borough Council,http://statistics.data.gov.uk/id/local-authority/37UD,Works,WORKS,Other Works,WKSOTHER,Executive Director / Environmental Business and Project,Equipment Tools and Materials,3006,Equipment,Equip,24/03/2023,V897034,270,A T  Alarms,324
Broxtowe Borough Council,http://statistics.data.gov.uk/id/local-authority/37UD,Works,WORKS,Other Works,WKSOTHER,Executive Director / Enviromental Services,Premises Costs,1017,Maintenance,Maint,04/08/2023,V908076,350,A T  Alarms,420
Broxtowe Borough Council,http://statistics.data.gov.uk/id/local-authority/37UD,Head of Environment,H33,Head of Environment,S332,Executive Director / Enviromental Services,Premises Costs,1017,Maintenance,Maint,08/12/2023,V918200,348.77,A T  Alarms,418.52
Broxtowe Borough Council,http://statistics.data.gov.uk/id/local-authority/37UD,Head of Environment,H33,Head of Environment,S332,Executive Director / Environmental Business and Project,Equipment Tools and Materials,3006,Equipment,Equip,19/01/2024,V921263,270,A T  Alarms,324
Broxtowe Borough Council,http://statistics.data.gov.uk/id/local-authority/37UD,Works,WORKS,Other Works,WKSOTHER,Chief Executive  / Environmental Health,National Assistance Act,3812,Other Supplies & Services,OtherSS,01/04/2022,V817431,1411,A W Lymn,1411
Broxtowe Borough Council,http://statistics.data.gov.uk/id/local-authority/37UD,Works,WORKS,Other Works,WKSOTHER,Chief Executive  / Environmental Health,National Assistance Act,3812,Other Supplies & Services,OtherSS,22/04/2022,V818754,1429,A W Lymn,1429
Broxtowe Borough Council,http://statistics.data.gov.uk/id/local-authority/37UD,Works,WORKS,Other Works,WKSOTHER,Chief Executive  / Environmental Health,National Assistance Act,3812,Other Supplies & Services,OtherSS,29/04/2022,V825112,1411,A W Lymn,2740
Broxtowe Borough Council,http://statistics.data.gov.uk/id/local-authority/37UD,Works,WORKS,Other Works,WKSOTHER,Chief Executive  / Environmental Health,National Assistance Act,3812,Other Supplies & Services,OtherSS,29/04/2022,V824996,1329,A W Lymn,2740
Broxtowe Borough Council,http://statistics.data.gov.uk/id/local-authority/37UD,Works,WORKS,Other Works,WKSOTHER,Chief Executive  / Environmental Health,National Assistance Act,3812,Other Supplies & Services,OtherSS,10/06/2022,V862922,1347,A W Lymn,1347
Broxtowe Borough Council,http://statistics.data.gov.uk/id/local-authority/37UD,Works,WORKS,Other Works,WKSOTHER,Chief Executive  / Environmental Health,National Assistance Act,3812,Other Supplies & Services,OtherSS,12/08/2022,V876145,1347,A W Lymn,1448.88
Broxtowe Borough Council,http://statistics.data.gov.uk/id/local-authority/37UD,Works,WORKS,Other Works,WKSOTHER,Strategic Director / Enviromental Services,Premises Costs,1017,Other Maintenance,Maint,12/08/2022,V876327,84.9,A W Lymn,1448.88
Broxtowe Borough Council,http://statistics.data.gov.uk/id/local-authority/37UD,Works,WORKS,Other Works,WKSOTHER,Chief Executive  / Environmental Health,National Assistance Act,3812,Other Supplies & Services,OtherSS,19/08/2022,V877200,2249,A W Lymn,2249
Broxtowe Borough Council,http://statistics.data.gov.uk/id/local-authority/37UD,Works,WORKS,Other Works,WKSOTHER,Chief Executive  / Environmental Health,National Assistance Act,3812,Other Supplies & Services,OtherSS,16/09/2022,V880180,1869,A W Lymn,1885.16
Broxtowe Borough Council,http://statistics.data.gov.uk/id/local-authority/37UD,Works,WORKS,Other Works,WKSOTHER,Strategic Director / Enviromental Services,Premises Costs,1017,Other Maintenance,Maint,16/09/2022,V879746,13.47,A W Lymn,1885.16
Broxtowe Borough Council,http://statistics.data.gov.uk/id/local-authority/37UD,Head of Environment,H33,Parks and Green Spaces manager,S333,Chief Executive  / Public Protection,National Assistance Act,3812,Other Supplies & Services,OtherSS,17/11/2023,V916043,1523.00,A W Lymn,5570
Broxtowe Borough Council,http://statistics.data.gov.uk/id/local-authority/37UD,Head of Environment,H33,Parks and Green Spaces manager,S333,Chief Executive  / Public Protection,National Assistance Act,3812,Other Supplies & Services,OtherSS,17/11/2023,V916049,1523.00,A W Lymn,5570
Broxtowe Borough Council,http://statistics.data.gov.uk/id/local-authority/37UD,Head of Environment,H33,Parks and Green Spaces manager,S333,Chief Executive  / Public Protection,National Assistance Act,3812,Other Supplies & Services,OtherSS,17/11/2023,V916051,1523.00,A W Lymn,5570
Broxtowe Borough Council,http://statistics.data.gov.uk/id/local-authority/37UD,Head of Environment,H33,Parks and Green Spaces manager,S333,Chief Executive  / Public Protection,National Assistance Act,3812,Other Supplies & Services,OtherSS,17/11/2023,V916041,1001.00,A W Lymn,5570
Broxtowe Borough Council,http://statistics.data.gov.uk/id/local-authority/37UD,Head of Environment,H33,Parks and Green Spaces manager,S333,Chief Executive  / Environmental Health,National Assistance Act,3812,Other Supplies & Services,OtherSS,12/01/2024,V920653,1523,A W Lymn,4415
Broxtowe Borough Council,http://statistics.data.gov.uk/id/local-authority/37UD,Head of Environment,H33,Parks and Green Spaces manager,S333,Chief Executive  / Environmental Health,National Assistance Act,3812,Other Supplies & Services,OtherSS,12/01/2024,V920651,1451,A W Lymn,4415
Broxtowe Borough Council,http://statistics.data.gov.uk/id/local-authority/37UD,Head of Environment,H33,Parks and Green Spaces manager,S333,Chief Executive  / Environmental Health,National Assistance Act,3812,Other Supplies & Services,OtherSS,12/01/2024,V920649,1441,A W Lymn,4415
Broxtowe Borough Council,http://statistics.data.gov.uk/id/local-authority/37UD,Head of Environment,H33,Parks and Green Spaces manager,S333,Chief Executive  / Environmental Health,National Assistance Act,3812,Other Supplies & Services,OtherSS,22/03/2024,V926424,1516,A W Lymn,3032
Broxtowe Borough Council,http://statistics.data.gov.uk/id/local-authority/37UD,Head of Environment,H33,Parks and Green Spaces manager,S333,Chief Executive  / Environmental Health,National Assistance Act,3812,Other Supplies & Services,OtherSS,22/03/2024,V926425,1516,A W Lymn,3032
Broxtowe Borough Council,http://statistics.data.gov.uk/id/local-authority/37UD,Works,WORKS,Other Works,WKSOTHER,Chief Executive  / Planning & Economic Development,Consultancy Fees,3603,Other Supplies & Services,OtherSS,22/04/2022,V818760,450,A Ward and Son Ltd,540
Broxtowe Borough Council,http://statistics.data.gov.uk/id/local-authority/37UD,Planning Community Development,PCD,Planning Community Development,PCD,Chief Executive  / Planning & Economic Development,New construction,9002,Capital Expenditure,CapExp,26/05/2023,V902381,3002.3,A&S Enterprises Limited,3602.76
Broxtowe Borough Council,http://statistics.data.gov.uk/id/local-authority/37UD,Works,WORKS,Waste Management,WASTMAN,Environment - Depot / Transport,Repairs / Servicing  - Materials,5520,Transport Account,TranAcc,10/06/2022,V862986,156.84,AB Components Ltd,739.4
Broxtowe Borough Council,http://statistics.data.gov.uk/id/local-authority/37UD,Works,WORKS,Waste Management,WASTMAN,Environment - Depot / Transport,Repairs / Servicing  - Materials,5520,Transport Account,TranAcc,10/06/2022,V862986,66,AB Components Ltd,739.4
Broxtowe Borough Council,http://statistics.data.gov.uk/id/local-authority/37UD,Works,WORKS,Waste Management,WASTMAN,Environment - Depot / Transport,Repairs / Servicing  - Materials,5520,Transport Account,TranAcc,10/06/2022,V862906,63.52,AB Components Ltd,739.4
Broxtowe Borough Council,http://statistics.data.gov.uk/id/local-authority/37UD,Works,WORKS,Waste Management,WASTMAN,Environment - Depot / Transport,Repairs / Servicing  - Materials,5520,Transport Account,TranAcc,10/06/2022,V862986,63.52,AB Components Ltd,739.4
Broxtowe Borough Council,http://statistics.data.gov.uk/id/local-authority/37UD,Works,WORKS,Waste Management,WASTMAN,Environment - Depot / Transport,Repairs / Servicing  - Materials,5520,Transport Account,TranAcc,10/06/2022,V862986,57.86,AB Components Ltd,739.4
Broxtowe Borough Council,http://statistics.data.gov.uk/id/local-authority/37UD,Works,WORKS,Waste Management,WASTMAN,Environment - Depot / Transport,Repairs / Servicing  - Materials,5520,Transport Account,TranAcc,10/06/2022,V862986,51.88,AB Components Ltd,739.4
Broxtowe Borough Council,http://statistics.data.gov.uk/id/local-authority/37UD,Works,WORKS,Waste Management,WASTMAN,Environment - Depot / Transport,Repairs / Servicing  - Materials,5520,Transport Account,TranAcc,10/06/2022,V862986,36.52,AB Components Ltd,739.4
Broxtowe Borough Council,http://statistics.data.gov.uk/id/local-authority/37UD,Works,WORKS,Waste Management,WASTMAN,Environment - Depot / Transport,Repairs / Servicing  - Materials,5520,Transport Account,TranAcc,10/06/2022,V862906,31.76,AB Components Ltd,739.4
Broxtowe Borough Council,http://statistics.data.gov.uk/id/local-authority/37UD,Works,WORKS,Waste Management,WASTMAN,Environment - Depot / Transport,Repairs / Servicing  - Materials,5520,Transport Account,TranAcc,10/06/2022,V862986,30.88,AB Components Ltd,739.4
Broxtowe Borough Council,http://statistics.data.gov.uk/id/local-authority/37UD,Works,WORKS,Waste Management,WASTMAN,Environment - Depot / Transport,Repairs / Servicing  - Materials,5520,Transport Account,TranAcc,10/06/2022,V862986,29.44,AB Components Ltd,739.4
Broxtowe Borough Council,http://statistics.data.gov.uk/id/local-authority/37UD,Works,WORKS,Waste Management,WASTMAN,Environment - Depot / Transport,Repairs / Servicing  - Materials,5520,Transport Account,TranAcc,10/06/2022,V862986,27.94,AB Components Ltd,739.4
Broxtowe Borough Council,http://statistics.data.gov.uk/id/local-authority/37UD,Works,WORKS,Waste Management,WASTMAN,Environment - Depot / Transport,Repairs / Servicing  - Materials,5520,Transport Account,TranAcc,29/07/2022,V869941,144.2,AB Components Ltd,325.14
Broxtowe Borough Council,http://statistics.data.gov.uk/id/local-authority/37UD,Works,WORKS,Repairs & Maintenance,REPMAIN,Environment - Depot / Transport,Repairs / Servicing  - Materials,5520,Transport Account,TranAcc,29/07/2022,V869940,63,AB Components Ltd,325.14
Broxtowe Borough Council,http://statistics.data.gov.uk/id/local-authority/37UD,Technical,TECHNICA,Highways,HIGHWYS,Environment - Depot / Transport,Repairs / Servicing  - Materials,5520,Transport Account,TranAcc,29/07/2022,V869940,30.12,AB Components Ltd,325.14
Broxtowe Borough Council,http://statistics.data.gov.uk/id/local-authority/37UD,Works,WORKS,Repairs & Maintenance,REPMAIN,Environment - Depot / Transport,Repairs / Servicing  - Materials,5520,Transport Account,TranAcc,29/07/2022,V869940,19.92,AB Components Ltd,325.14
Broxtowe Borough Council,http://statistics.data.gov.uk/id/local-authority/37UD,Technical,TECHNICA,Highways,HIGHWYS,Environment - Depot / Transport,Repairs / Servicing  - Materials,5520,Transport Account,TranAcc,29/07/2022,V869940,13.72,AB Components Ltd,325.14
Broxtowe Borough Council,http://statistics.data.gov.uk/id/local-authority/37UD,Works,WORKS,Repairs & Maintenance,REPMAIN,Environment - Depot / Transport,Repairs / Servicing  - Materials,5520,Transport Account,TranAcc,26/08/2022,V877682,81.8,AB Components Ltd,349.64
Broxtowe Borough Council,http://statistics.data.gov.uk/id/local-authority/37UD,Works,WORKS,Repairs & Maintenance,REPMAIN,Environment - Depot / Transport,Repairs / Servicing  - Materials,5520,Transport Account,TranAcc,26/08/2022,V877682,69.85,AB Components Ltd,349.64
Broxtowe Borough Council,http://statistics.data.gov.uk/id/local-authority/37UD,Works,WORKS,Repairs & Maintenance,REPMAIN,Environment - Depot / Transport,Repairs / Servicing  - Materials,5520,Transport Account,TranAcc,26/08/2022,V877682,63.52,AB Components Ltd,349.64
Broxtowe Borough Council,http://statistics.data.gov.uk/id/local-authority/37UD,Works,WORKS,Repairs & Maintenance,REPMAIN,Environment - Depot / Transport,Repairs / Servicing  - Materials,5520,Transport Account,TranAcc,26/08/2022,V877682,51,AB Components Ltd,349.64
Broxtowe Borough Council,http://statistics.data.gov.uk/id/local-authority/37UD,Works,WORKS,Repairs & Maintenance,REPMAIN,Environment - Depot / Transport,Repairs / Servicing  - Materials,5520,Transport Account,TranAcc,26/08/2022,V877682,25.2,AB Components Ltd,349.64
Broxtowe Borough Council,http://statistics.data.gov.uk/id/local-authority/37UD,Works,WORKS,Waste Management,WASTMAN,Environment - Depot / Transport,Repairs / Servicing  - Materials,5520,Transport Account,TranAcc,11/11/2022,V885539,100.32,AB Components Ltd,533.47
Broxtowe Borough Council,http://statistics.data.gov.uk/id/local-authority/37UD,Works,WORKS,Waste Management,WASTMAN,Environment - Depot / Transport,Repairs / Servicing  - Materials,5520,Transport Account,TranAcc,11/11/2022,V885545,95.28,AB Components Ltd,533.47
Broxtowe Borough Council,http://statistics.data.gov.uk/id/local-authority/37UD,Works,WORKS,Waste Management,WASTMAN,Environment - Depot / Transport,Repairs / Servicing  - Materials,5520,Transport Account,TranAcc,11/11/2022,V885545,57.48,AB Components Ltd,533.47
Broxtowe Borough Council,http://statistics.data.gov.uk/id/local-authority/37UD,Works,WORKS,Repairs & Maintenance,REPMAIN,Environment - Depot / Transport,Repairs / Servicing  - Materials,5520,Transport Account,TranAcc,11/11/2022,V885539,52.5,AB Components Ltd,533.47
Broxtowe Borough Council,http://statistics.data.gov.uk/id/local-authority/37UD,Works,WORKS,Repairs & Maintenance,REPMAIN,Environment - Depot / Transport,Repairs / Servicing  - Materials,5520,Transport Account,TranAcc,11/11/2022,V885539,42.48,AB Components Ltd,533.47
Broxtowe Borough Council,http://statistics.data.gov.uk/id/local-authority/37UD,Works,WORKS,Waste Management,WASTMAN,Environment - Depot / Transport,Repairs / Servicing  - Materials,5520,Transport Account,TranAcc,11/11/2022,V885545,33,AB Components Ltd,533.47
Broxtowe Borough Council,http://statistics.data.gov.uk/id/local-authority/37UD,Works,WORKS,Waste Management,WASTMAN,Environment - Depot / Transport,Repairs / Servicing  - Materials,5520,Transport Account,TranAcc,11/11/2022,V885545,31.94,AB Components Ltd,533.47
Broxtowe Borough Council,http://statistics.data.gov.uk/id/local-authority/37UD,Works,WORKS,Waste Management,WASTMAN,Environment - Depot / Transport,Repairs / Servicing  - Materials,5520,Transport Account,TranAcc,11/11/2022,V885539,22.1,AB Components Ltd,533.47
Broxtowe Borough Council,http://statistics.data.gov.uk/id/local-authority/37UD,Works,WORKS,Repairs & Maintenance,REPMAIN,Environment - Depot / Transport,Repairs / Servicing  - Materials,5520,Transport Account,TranAcc,11/11/2022,V885539,9.45,AB Components Ltd,533.47
Broxtowe Borough Council,http://statistics.data.gov.uk/id/local-authority/37UD,Works,WORKS,Repairs & Maintenance,REPMAIN,Environment - Depot / Transport,Repairs / Servicing  - Materials,5520,Transport Account,TranAcc,06/01/2023,V890260,191.92,AB Components Ltd,283.1
Broxtowe Borough Council,http://statistics.data.gov.uk/id/local-authority/37UD,Works,WORKS,Waste Management,WASTMAN,Environment - Depot / Transport,Repairs / Servicing  - Materials,5520,Transport Account,TranAcc,06/01/2023,V890260,44,AB Components Ltd,283.1
Broxtowe Borough Council,http://statistics.data.gov.uk/id/local-authority/37UD,Works,WORKS,Waste Management,WASTMAN,Environment - Depot / Transport,Repairs / Servicing  - Materials,5520,Transport Account,TranAcc,20/01/2023,V891086,204.55,AB Components Ltd,378.66
Broxtowe Borough Council,http://statistics.data.gov.uk/id/local-authority/37UD,Works,WORKS,Waste Management,WASTMAN,Environment - Depot / Transport,Repairs / Servicing  - Materials,5520,Transport Account,TranAcc,20/01/2023,V891081,111,AB Components Ltd,378.66
Broxtowe Borough Council,http://statistics.data.gov.uk/id/local-authority/37UD,Works,WORKS,Waste Management,WASTMAN,Environment - Depot / Transport,Repairs / Servicing  - Materials,5520,Transport Account,TranAcc,31/03/2023,V898075,120.6,AB Components Ltd,424.56
Broxtowe Borough Council,http://statistics.data.gov.uk/id/local-authority/37UD,Works,WORKS,Waste Management,WASTMAN,Environment - Depot / Transport,Repairs / Servicing  - Materials,5520,Transport Account,TranAcc,31/03/2023,V898075,95.35,AB Components Ltd,424.56
Broxtowe Borough Council,http://statistics.data.gov.uk/id/local-authority/37UD,Works,WORKS,Waste Management,WASTMAN,Environment - Depot / Transport,Repairs / Servicing  - Materials,5520,Transport Account,TranAcc,31/03/2023,V898075,91.61,AB Components Ltd,424.56
Broxtowe Borough Council,http://statistics.data.gov.uk/id/local-authority/37UD,Works,WORKS,Waste Management,WASTMAN,Environment - Depot / Transport,Repairs / Servicing  - Materials,5520,Transport Account,TranAcc,31/03/2023,V898075,46.24,AB Components Ltd,424.56
Broxtowe Borough Council,http://statistics.data.gov.uk/id/local-authority/37UD,Works,WORKS,Waste Management,WASTMAN,Environment - Depot / Transport,Repairs / Servicing  - Materials,5520,Transport Account,TranAcc,05/05/2023,V900690,83.32,AB Components Ltd,282.94
Broxtowe Borough Council,http://statistics.data.gov.uk/id/local-authority/37UD,Works,WORKS,Waste Management,WASTMAN,Environment - Depot / Transport,Repairs / Servicing  - Materials,5520,Transport Account,TranAcc,05/05/2023,V900690,66.88,AB Components Ltd,282.94
Broxtowe Borough Council,http://statistics.data.gov.uk/id/local-authority/37UD,Works,WORKS,Waste Management,WASTMAN,Environment - Depot / Transport,Repairs / Servicing  - Materials,5520,Transport Account,TranAcc,05/05/2023,V900690,48.84,AB Components Ltd,282.94
Broxtowe Borough Council,http://statistics.data.gov.uk/id/local-authority/37UD,Works,WORKS,Waste Management,WASTMAN,Environment - Depot / Transport,Repairs / Servicing  - Materials,5520,Transport Account,TranAcc,05/05/2023,V900690,13.6,AB Components Ltd,282.94
Broxtowe Borough Council,http://statistics.data.gov.uk/id/local-authority/37UD,Works,WORKS,Waste Management,WASTMAN,Environment - Depot / Transport,Repairs / Servicing  - Materials,5520,Transport Account,TranAcc,05/05/2023,V900690,8.93,AB Components Ltd,282.94
Broxtowe Borough Council,http://statistics.data.gov.uk/id/local-authority/37UD,Works,WORKS,Waste Management,WASTMAN,Environment - Depot / Transport,Repairs / Servicing  - Materials,5520,Transport Account,TranAcc,05/05/2023,V900690,7.55,AB Components Ltd,282.94
Broxtowe Borough Council,http://statistics.data.gov.uk/id/local-authority/37UD,Works,WORKS,Waste Management,WASTMAN,Environment - Depot / Transport,Repairs / Servicing  - Materials,5520,Transport Account,TranAcc,05/05/2023,V900690,6.65,AB Components Ltd,282.94
Broxtowe Borough Council,http://statistics.data.gov.uk/id/local-authority/37UD,Works,WORKS,Waste Management,WASTMAN,Environment - Depot / Transport,Repairs / Servicing  - Materials,5520,Transport Account,TranAcc,16/06/2023,V904005,190.7,AB Components Ltd,708.14
Broxtowe Borough Council,http://statistics.data.gov.uk/id/local-authority/37UD,Works,WORKS,Waste Management,WASTMAN,Environment - Depot / Transport,Repairs / Servicing  - Materials,5520,Transport Account,TranAcc,16/06/2023,V904005,183.22,AB Components Ltd,708.14
Broxtowe Borough Council,http://statistics.data.gov.uk/id/local-authority/37UD,Works,WORKS,Waste Management,WASTMAN,Environment - Depot / Transport,Repairs / Servicing  - Materials,5520,Transport Account,TranAcc,16/06/2023,V904005,120,AB Components Ltd,708.14
Broxtowe Borough Council,http://statistics.data.gov.uk/id/local-authority/37UD,Works,WORKS,Waste Management,WASTMAN,Environment - Depot / Transport,Repairs / Servicing  - Materials,5520,Transport Account,TranAcc,16/06/2023,V904005,64.7,AB Components Ltd,708.14
Broxtowe Borough Council,http://statistics.data.gov.uk/id/local-authority/37UD,Works,WORKS,Waste Management,WASTMAN,Environment - Depot / Transport,Repairs / Servicing  - Materials,5520,Transport Account,TranAcc,16/06/2023,V904005,31.5,AB Components Ltd,708.14
Broxtowe Borough Council,http://statistics.data.gov.uk/id/local-authority/37UD,Works,WORKS,Waste Management,WASTMAN,Environment - Depot / Transport,Repairs / Servicing  - Materials,5520,Transport Account,TranAcc,23/06/2023,V904523,366.44,AB Components Ltd,630.3
Broxtowe Borough Council,http://statistics.data.gov.uk/id/local-authority/37UD,Works,WORKS,Waste Management,WASTMAN,Environment - Depot / Transport,Repairs / Servicing  - Materials,5520,Transport Account,TranAcc,23/06/2023,V904511,82.36,AB Components Ltd,630.3
Broxtowe Borough Council,http://statistics.data.gov.uk/id/local-authority/37UD,Works,WORKS,Repairs & Maintenance,REPMAIN,Environment - Depot / Transport,Repairs / Servicing  - Materials,5520,Transport Account,TranAcc,23/06/2023,V904518,44.45,AB Components Ltd,630.3
Broxtowe Borough Council,http://statistics.data.gov.uk/id/local-authority/37UD,Works,WORKS,Repairs & Maintenance,REPMAIN,Environment - Depot / Transport,Repairs / Servicing  - Materials,5520,Transport Account,TranAcc,23/06/2023,V904518,32,AB Components Ltd,630.3
Broxtowe Borough Council,http://statistics.data.gov.uk/id/local-authority/37UD,Works,WORKS,Waste Management,WASTMAN,Environment - Depot / Transport,Repairs / Servicing  - Materials,5520,Transport Account,TranAcc,11/08/2023,V909039,100.32,AB Components Ltd,261.45
Broxtowe Borough Council,http://statistics.data.gov.uk/id/local-authority/37UD,Works,WORKS,Waste Management,WASTMAN,Environment - Depot / Transport,Repairs / Servicing  - Materials,5520,Transport Account,TranAcc,11/08/2023,V909039,50.44,AB Components Ltd,261.45
Broxtowe Borough Council,http://statistics.data.gov.uk/id/local-authority/37UD,Works,WORKS,Waste Management,WASTMAN,Environment - Depot / Transport,Repairs / Servicing  - Materials,5520,Transport Account,TranAcc,11/08/2023,V909039,36,AB Components Ltd,261.45
Broxtowe Borough Council,http://statistics.data.gov.uk/id/local-authority/37UD,Works,WORKS,Waste Management,WASTMAN,Environment - Depot / Transport,Repairs / Servicing  - Materials,5520,Transport Account,TranAcc,11/08/2023,V909039,31.12,AB Components Ltd,261.45
Broxtowe Borough Council,http://statistics.data.gov.uk/id/local-authority/37UD,Technical,TECHNICA,Highways,HIGHWYS,Environment - Depot / Transport,Repairs / Servicing  - Materials,5520,Transport Account,TranAcc,18/08/2023,V909105,301.23,AB Components Ltd,382.3
Broxtowe Borough Council,http://statistics.data.gov.uk/id/local-authority/37UD,Works,WORKS,Repairs & Maintenance,REPMAIN,Environment - Depot / Transport,Repairs / Servicing  - Materials,5520,Transport Account,TranAcc,18/08/2023,V909216,17.36,AB Components Ltd,382.3
Broxtowe Borough Council,http://statistics.data.gov.uk/id/local-authority/37UD,Head of Environment,H33,Transport and Stores Manager,S334,Environment - Depot / Transport,Repairs / Servicing  - Materials,5520,Transport Account,TranAcc,01/09/2023,V909868,292.89,AB Components Ltd,351.47
Broxtowe Borough Council,http://statistics.data.gov.uk/id/local-authority/37UD,Head of Environment,H33,Transport and Stores Manager,S334,Environment - Depot / Transport,Repairs / Servicing  - Materials,5520,Transport Account,TranAcc,27/10/2023,V914123,142.62,AB Components Ltd,828.11
Broxtowe Borough Council,http://statistics.data.gov.uk/id/local-authority/37UD,Head of Environment,H33,Transport and Stores Manager,S334,Environment - Depot / Transport,Repairs / Servicing  - Materials,5520,Transport Account,TranAcc,27/10/2023,V914123,139.72,AB Components Ltd,828.11
Broxtowe Borough Council,http://statistics.data.gov.uk/id/local-authority/37UD,Head of Environment,H33,Transport and Stores Manager,S334,Environment - Depot / Transport,Repairs / Servicing  - Materials,5520,Transport Account,TranAcc,27/10/2023,V914123,127.04,AB Components Ltd,828.11
Broxtowe Borough Council,http://statistics.data.gov.uk/id/local-authority/37UD,Head of Environment,H33,Transport and Stores Manager,S334,Environment - Depot / Transport,Repairs / Servicing  - Materials,5520,Transport Account,TranAcc,27/10/2023,V914123,121.76,AB Components Ltd,828.11
Broxtowe Borough Council,http://statistics.data.gov.uk/id/local-authority/37UD,Head of Environment,H33,Transport and Stores Manager,S334,Environment - Depot / Transport,Repairs / Servicing  - Materials,5520,Transport Account,TranAcc,27/10/2023,V914123,106.5,AB Components Ltd,828.11
Broxtowe Borough Council,http://statistics.data.gov.uk/id/local-authority/37UD,Head of Environment,H33,Transport and Stores Manager,S334,Environment - Depot / Transport,Repairs / Servicing  - Materials,5520,Transport Account,TranAcc,27/10/2023,V914067,27.24,AB Components Ltd,828.11
Broxtowe Borough Council,http://statistics.data.gov.uk/id/local-authority/37UD,Head of Environment,H33,Transport and Stores Manager,S334,Environment - Depot / Transport,Repairs / Servicing  - Materials,5520,Transport Account,TranAcc,27/10/2023,V914123,25.22,AB Components Ltd,828.11
Broxtowe Borough Council,http://statistics.data.gov.uk/id/local-authority/37UD,Head of Environment,H33,Transport and Stores Manager,S334,Environment - Depot / Transport,Repairs / Servicing  - Materials,5520,Transport Account,TranAcc,17/11/2023,V915988,559.43,AB Components Ltd,860.78
Broxtowe Borough Council,http://statistics.data.gov.uk/id/local-authority/37UD,Head of Environment,H33,Transport and Stores Manager,S334,Environment - Depot / Transport,Repairs / Servicing - Labour,5510,Transport Account,TranAcc,17/11/2023,V915987,100.32,AB Components Ltd,860.78
Broxtowe Borough Council,http://statistics.data.gov.uk/id/local-authority/37UD,Head of Environment,H33,Transport and Stores Manager,S334,Environment - Depot / Transport,Repairs / Servicing  - Materials,5520,Transport Account,TranAcc,17/11/2023,V916011,57.56,AB Components Ltd,860.78
Broxtowe Borough Council,http://statistics.data.gov.uk/id/local-authority/37UD,Head of Environment,H33,Transport and Stores Manager,S334,Environment - Depot / Transport,Repairs / Servicing  - Materials,5520,Transport Account,TranAcc,15/12/2023,V918634,65.88,AB Components Ltd,298.56
Broxtowe Borough Council,http://statistics.data.gov.uk/id/local-authority/37UD,Head of Environment,H33,Transport and Stores Manager,S334,Environment - Depot / Transport,Repairs / Servicing  - Materials,5520,Transport Account,TranAcc,15/12/2023,V918634,47.6,AB Components Ltd,298.56
Broxtowe Borough Council,http://statistics.data.gov.uk/id/local-authority/37UD,Head of Environment,H33,Transport and Stores Manager,S334,Environment - Depot / Transport,Repairs / Servicing  - Materials,5520,Transport Account,TranAcc,15/12/2023,V918679,44.74,AB Components Ltd,298.56
Broxtowe Borough Council,http://statistics.data.gov.uk/id/local-authority/37UD,Head of Environment,H33,Transport and Stores Manager,S334,Environment - Depot / Transport,Repairs / Servicing  - Materials,5520,Transport Account,TranAcc,15/12/2023,V918634,32.72,AB Components Ltd,298.56
Broxtowe Borough Council,http://statistics.data.gov.uk/id/local-authority/37UD,Head of Environment,H33,Transport and Stores Manager,S334,Environment - Depot / Transport,Repairs / Servicing  - Materials,5520,Transport Account,TranAcc,15/12/2023,V918634,32,AB Components Ltd,298.56
Broxtowe Borough Council,http://statistics.data.gov.uk/id/local-authority/37UD,Head of Environment,H33,Transport and Stores Manager,S334,Environment - Depot / Transport,Repairs / Servicing  - Materials,5520,Transport Account,TranAcc,15/12/2023,V918634,13.5,AB Components Ltd,298.56
Broxtowe Borough Council,http://statistics.data.gov.uk/id/local-authority/37UD,Head of Environment,H33,Transport and Stores Manager,S334,Environment - Depot / Transport,Repairs / Servicing  - Materials,5520,Transport Account,TranAcc,15/12/2023,V918370,12.36,AB Components Ltd,298.56
Broxtowe Borough Council,http://statistics.data.gov.uk/id/local-authority/37UD,Head of Environment,H33,Transport and Stores Manager,S334,Environment - Depot / Transport,Repairs / Servicing  - Materials,5520,Transport Account,TranAcc,19/01/2024,V921238,100.32,AB Components Ltd,407.85
Broxtowe Borough Council,http://statistics.data.gov.uk/id/local-authority/37UD,Head of Environment,H33,Transport and Stores Manager,S334,Environment - Depot / Transport,Repairs / Servicing  - Materials,5520,Transport Account,TranAcc,19/01/2024,V921238,92.9,AB Components Ltd,407.85
Broxtowe Borough Council,http://statistics.data.gov.uk/id/local-authority/37UD,Head of Environment,H33,Transport and Stores Manager,S334,Environment - Depot / Transport,Repairs / Servicing  - Materials,5520,Transport Account,TranAcc,19/01/2024,V921238,75.66,AB Components Ltd,407.85
Broxtowe Borough Council,http://statistics.data.gov.uk/id/local-authority/37UD,Head of Environment,H33,Transport and Stores Manager,S334,Environment - Depot / Transport,Repairs / Servicing  - Materials,5520,Transport Account,TranAcc,19/01/2024,V921238,50,AB Components Ltd,407.85
Broxtowe Borough Council,http://statistics.data.gov.uk/id/local-authority/37UD,Head of Environment,H33,Transport and Stores Manager,S334,Environment - Depot / Transport,Repairs / Servicing  - Materials,5520,Transport Account,TranAcc,19/01/2024,V921238,21,AB Components Ltd,407.85
Broxtowe Borough Council,http://statistics.data.gov.uk/id/local-authority/37UD,Head of Environment,H33,Transport and Stores Manager,S334,Environment - Depot / Transport,Repairs / Servicing  - Materials,5520,Transport Account,TranAcc,09/02/2024,V922965,94.6,AB Components Ltd,344.44
Broxtowe Borough Council,http://statistics.data.gov.uk/id/local-authority/37UD,Head of Environment,H33,Transport and Stores Manager,S334,Environment - Depot / Transport,Repairs / Servicing  - Materials,5520,Transport Account,TranAcc,09/02/2024,V923081,32.12,AB Components Ltd,344.44
Broxtowe Borough Council,http://statistics.data.gov.uk/id/local-authority/37UD,Head of Environment,H33,Transport and Stores Manager,S334,Environment - Depot / Transport,Repairs / Servicing  - Materials,5520,Transport Account,TranAcc,09/02/2024,V923081,31.67,AB Components Ltd,344.44
Broxtowe Borough Council,http://statistics.data.gov.uk/id/local-authority/37UD,Head of Environment,H33,Transport and Stores Manager,S334,Environment - Depot / Transport,Repairs / Servicing  - Materials,5520,Transport Account,TranAcc,09/02/2024,V923081,31.12,AB Components Ltd,344.44
Broxtowe Borough Council,http://statistics.data.gov.uk/id/local-authority/37UD,Head of Environment,H33,Transport and Stores Manager,S334,Environment - Depot / Transport,Repairs / Servicing  - Materials,5520,Transport Account,TranAcc,09/02/2024,V922965,30,AB Components Ltd,344.44
Broxtowe Borough Council,http://statistics.data.gov.uk/id/local-authority/37UD,Head of Environment,H33,Transport and Stores Manager,S334,Environment - Depot / Transport,Repairs / Servicing  - Materials,5520,Transport Account,TranAcc,09/02/2024,V922965,25.5,AB Components Ltd,344.44
Broxtowe Borough Council,http://statistics.data.gov.uk/id/local-authority/37UD,Head of Environment,H33,Transport and Stores Manager,S334,Environment - Depot / Transport,Repairs / Servicing  - Materials,5520,Transport Account,TranAcc,09/02/2024,V922966,16.87,AB Components Ltd,344.44
Broxtowe Borough Council,http://statistics.data.gov.uk/id/local-authority/37UD,Head of Environment,H33,Transport and Stores Manager,S334,Environment - Depot / Transport,Repairs / Servicing  - Materials,5520,Transport Account,TranAcc,09/02/2024,V923081,15.5,AB Components Ltd,344.44
Broxtowe Borough Council,http://statistics.data.gov.uk/id/local-authority/37UD,Head of Environment,H33,Transport and Stores Manager,S334,Environment - Depot / Transport,Repairs / Servicing  - Materials,5520,Transport Account,TranAcc,09/02/2024,V923081,9.67,AB Components Ltd,344.44
Broxtowe Borough Council,http://statistics.data.gov.uk/id/local-authority/37UD,Head of Environment,H33,Transport and Stores Manager,S334,Environment - Depot / Transport,Repairs / Servicing  - Materials,5520,Transport Account,TranAcc,08/03/2024,V925321,129,AB Components Ltd,485.34
Broxtowe Borough Council,http://statistics.data.gov.uk/id/local-authority/37UD,Head of Environment,H33,Transport and Stores Manager,S334,Environment - Depot / Transport,Repairs / Servicing  - Materials,5520,Transport Account,TranAcc,08/03/2024,V925321,96.75,AB Components Ltd,485.34
Broxtowe Borough Council,http://statistics.data.gov.uk/id/local-authority/37UD,Head of Environment,H33,Transport and Stores Manager,S334,Environment - Depot / Transport,Repairs / Servicing  - Materials,5520,Transport Account,TranAcc,08/03/2024,V925321,92.48,AB Components Ltd,485.34
Broxtowe Borough Council,http://statistics.data.gov.uk/id/local-authority/37UD,Head of Environment,H33,Transport and Stores Manager,S334,Environment - Depot / Transport,Repairs / Servicing - Labour,5510,Transport Account,TranAcc,08/03/2024,V925321,86.22,AB Components Ltd,485.34
Broxtowe Borough Council,http://statistics.data.gov.uk/id/local-authority/37UD,Head of Environment,H33,Transport and Stores Manager,S334,Environment - Depot / Transport,Repairs / Servicing  - Materials,5520,Transport Account,TranAcc,22/03/2024,V926697,180,AB Components Ltd,412.27
Broxtowe Borough Council,http://statistics.data.gov.uk/id/local-authority/37UD,Head of Environment,H33,Transport and Stores Manager,S334,Environment - Depot / Transport,Repairs / Servicing  - Materials,5520,Transport Account,TranAcc,22/03/2024,V926697,91.3,AB Components Ltd,412.27
Broxtowe Borough Council,http://statistics.data.gov.uk/id/local-authority/37UD,Head of Environment,H33,Transport and Stores Manager,S334,Environment - Depot / Transport,Repairs / Servicing  - Materials,5520,Transport Account,TranAcc,22/03/2024,V926697,35.24,AB Components Ltd,412.27
Broxtowe Borough Council,http://statistics.data.gov.uk/id/local-authority/37UD,Head of Environment,H33,Transport and Stores Manager,S334,Environment - Depot / Transport,Repairs / Servicing  - Materials,5520,Transport Account,TranAcc,22/03/2024,V926604,25.5,AB Components Ltd,412.27
Broxtowe Borough Council,http://statistics.data.gov.uk/id/local-authority/37UD,Head of Environment,H33,Transport and Stores Manager,S334,Environment - Depot / Transport,Repairs / Servicing  - Materials,5520,Transport Account,TranAcc,22/03/2024,V926604,11.52,AB Components Ltd,412.27
Broxtowe Borough Council,http://statistics.data.gov.uk/id/local-authority/37UD,GF Housing,CAPHGF,GF Housing,5CAPHGF,Chief Executive  / Environmental Health,Grants,9006,Capital Expenditure,CapExp,06/10/2023,V913103,7200,Abbott & Mason Building & Joinery Contractors Ltd,7200
Broxtowe Borough Council,http://statistics.data.gov.uk/id/local-authority/37UD,Works,WORKS,Other Works,WKSOTHER,Chief Executive  / Environmental Health,National Assistance Act,3812,Other Supplies & Services,OtherSS,22/04/2022,V818473,109815,Abensons Law Ltd,109815
Broxtowe Borough Council,http://statistics.data.gov.uk/id/local-authority/37UD,Housing,HOUSING,Housing Directorate,DIRHSG,Deputy Chief Executive / Housing Repairs,Course & Examination Fees,720,Indirect Employee Exp Oncosts,Oncosts,08/07/2022,V867752,1470,Ability Smart Limited,1764
Broxtowe Borough Council,http://statistics.data.gov.uk/id/local-authority/37UD,Chief Environmental Health Officer,H11,Chief Environmental Health Officer,S111,Chief Executive  / Environmental Health,Course & Examination Fees,720,Indirect Employee Exp Oncosts,Oncosts,15/09/2023,V911220,980,Ability Smart Limited,2058
Broxtowe Borough Council,http://statistics.data.gov.uk/id/local-authority/37UD,Chief Environmental Health Officer,H11,Chief Environmental Health Officer,S111,Chief Executive  / Environmental Health,Course & Examination Fees,720,Indirect Employee Exp Oncosts,Oncosts,15/09/2023,V911220,735,Ability Smart Limited,2058
Broxtowe Borough Council,http://statistics.data.gov.uk/id/local-authority/37UD,Chief Environmental Health Officer,H11,Chief Environmental Health Officer,S111,Chief Executive  / Environmental Health,Course & Examination Fees,720,Indirect Employee Exp Oncosts,Oncosts,22/09/2023,V911574,490,Ability Smart Limited,588
Broxtowe Borough Council,http://statistics.data.gov.uk/id/local-authority/37UD,Works,WORKS,Other Works,WKSOTHER,Chief Executive  / Planning & Economic Development,Business Support,3718,Other Supplies & Services,OtherSS,15/07/2022,V868769,1645,Abstract Signs and Graphics Ltd,1974
Broxtowe Borough Council,http://statistics.data.gov.uk/id/local-authority/37UD,Chief Executive,CE,Chief Exec & Corporate Comms,CE,Executive Director / Cultural Services,Purchase of Miscellaneous Items for Sale,3160,Obsolete Supplies,ObsSupp,31/03/2023,V898106,254.32,Academically Gifted Ltd,305.18
Broxtowe Borough Council,http://statistics.data.gov.uk/id/local-authority/37UD,Chief Executive,CE,ICT & Customer Services,ICT,Strategic Director / IT Services,Hardware Maintenance,3434,Other Supplies & Services,OtherSS,08/04/2022,V817751,719.7,ACS Business Supplies,1768.24
Broxtowe Borough Council,http://statistics.data.gov.uk/id/local-authority/37UD,Chief Executive,CE,ICT & Customer Services,ICT,Strategic Director / IT Services,Hardware Maintenance,3434,Other Supplies & Services,OtherSS,08/04/2022,V817741,666.75,ACS Business Supplies,1768.24
Broxtowe Borough Council,http://statistics.data.gov.uk/id/local-authority/37UD,Chief Executive,CE,ICT & Customer Services,ICT,Strategic Director / IT Services,Hardware Maintenance,3434,Other Supplies & Services,OtherSS,08/04/2022,V817739,81.13,ACS Business Supplies,1768.24
Broxtowe Borough Council,http://statistics.data.gov.uk/id/local-authority/37UD,Chief Executive,CE,ICT & Customer Services,ICT,Strategic Director / IT Services,Hardware Maintenance,3434,Other Supplies & Services,OtherSS,08/04/2022,V817741,5.95,ACS Business Supplies,1768.24
Broxtowe Borough Council,http://statistics.data.gov.uk/id/local-authority/37UD,Bramcote Crematorium,BCREM,Bramcote Crematorium,BCREM,Strategic Director / Bramcote Crem,Printing & Stationery,3300,Printing,Print,15/04/2022,V818269,1129.86,ACS Business Supplies,1355.83
Broxtowe Borough Council,http://statistics.data.gov.uk/id/local-authority/37UD,Chief Executive,CE,ICT & Customer Services,ICT,Strategic Director / IT Services,Hardware Maintenance,3434,Other Supplies & Services,OtherSS,29/04/2022,V823084,2982,ACS Business Supplies,4455.64
Broxtowe Borough Council,http://statistics.data.gov.uk/id/local-authority/37UD,Chief Executive,CE,ICT & Customer Services,ICT,Strategic Director / IT Services,Hardware Maintenance,3434,Other Supplies & Services,OtherSS,29/04/2022,V823084,471.03,ACS Business Supplies,4455.64
Broxtowe Borough Council,http://statistics.data.gov.uk/id/local-authority/37UD,Chief Executive,CE,ICT & Customer Services,ICT,Strategic Director / IT Services,Hardware Maintenance,3434,Other Supplies & Services,OtherSS,29/04/2022,V823084,260,ACS Business Supplies,4455.64
Broxtowe Borough Council,http://statistics.data.gov.uk/id/local-authority/37UD,Bramcote Crematorium,BCREM,Bramcote Crematorium,BCREM,Strategic Director / Bramcote Crem,Book of Remembrance,3310,Other Supplies & Services,OtherSS,06/05/2022,V825884,98,ACS Business Supplies,737.97
Broxtowe Borough Council,http://statistics.data.gov.uk/id/local-authority/37UD,Bramcote Crematorium,BCREM,Bramcote Crematorium,BCREM,Strategic Director / Bramcote Crem,Book of Remembrance,3310,Other Supplies & Services,OtherSS,06/05/2022,V825884,59.9,ACS Business Supplies,737.97
Broxtowe Borough Council,http://statistics.data.gov.uk/id/local-authority/37UD,Bramcote Crematorium,BCREM,Bramcote Crematorium,BCREM,Strategic Director / Bramcote Crem,Book of Remembrance,3310,Other Supplies & Services,OtherSS,06/05/2022,V825884,45.95,ACS Business Supplies,737.97
Broxtowe Borough Council,http://statistics.data.gov.uk/id/local-authority/37UD,Bramcote Crematorium,BCREM,Bramcote Crematorium,BCREM,Strategic Director / Bramcote Crem,Book of Remembrance,3310,Other Supplies & Services,OtherSS,06/05/2022,V825884,45.32,ACS Business Supplies,737.97
Broxtowe Borough Council,http://statistics.data.gov.uk/id/local-authority/37UD,Bramcote Crematorium,BCREM,Bramcote Crematorium,BCREM,Strategic Director / Bramcote Crem,Printing & Stationery,3300,Printing,Print,06/05/2022,V825884,39.95,ACS Business Supplies,737.97
Broxtowe Borough Council,http://statistics.data.gov.uk/id/local-authority/37UD,Bramcote Crematorium,BCREM,Bramcote Crematorium,BCREM,Strategic Director / Bramcote Crem,Book of Remembrance,3310,Other Supplies & Services,OtherSS,06/05/2022,V825884,39.95,ACS Business Supplies,737.97
Broxtowe Borough Council,http://statistics.data.gov.uk/id/local-authority/37UD,Bramcote Crematorium,BCREM,Bramcote Crematorium,BCREM,Strategic Director / Bramcote Crem,Book of Remembrance,3310,Other Supplies & Services,OtherSS,06/05/2022,V825884,39.9,ACS Business Supplies,737.97
Broxtowe Borough Council,http://statistics.data.gov.uk/id/local-authority/37UD,Bramcote Crematorium,BCREM,Bramcote Crematorium,BCREM,Strategic Director / Bramcote Crem,Book of Remembrance,3310,Other Supplies & Services,OtherSS,06/05/2022,V825884,39.4,ACS Business Supplies,737.97
Broxtowe Borough Council,http://statistics.data.gov.uk/id/local-authority/37UD,Bramcote Crematorium,BCREM,Bramcote Crematorium,BCREM,Strategic Director / Bramcote Crem,Book of Remembrance,3310,Other Supplies & Services,OtherSS,06/05/2022,V825884,38.9,ACS Business Supplies,737.97
Broxtowe Borough Council,http://statistics.data.gov.uk/id/local-authority/37UD,Bramcote Crematorium,BCREM,Bramcote Crematorium,BCREM,Strategic Director / Bramcote Crem,Book of Remembrance,3310,Other Supplies & Services,OtherSS,06/05/2022,V825884,29.95,ACS Business Supplies,737.97
Broxtowe Borough Council,http://statistics.data.gov.uk/id/local-authority/37UD,Bramcote Crematorium,BCREM,Bramcote Crematorium,BCREM,Strategic Director / Bramcote Crem,Book of Remembrance,3310,Other Supplies & Services,OtherSS,06/05/2022,V825884,29.7,ACS Business Supplies,737.97
Broxtowe Borough Council,http://statistics.data.gov.uk/id/local-authority/37UD,Bramcote Crematorium,BCREM,Bramcote Crematorium,BCREM,Strategic Director / Bramcote Crem,Book of Remembrance,3310,Other Supplies & Services,OtherSS,06/05/2022,V825884,29.47,ACS Business Supplies,737.97
Broxtowe Borough Council,http://statistics.data.gov.uk/id/local-authority/37UD,Bramcote Crematorium,BCREM,Bramcote Crematorium,BCREM,Strategic Director / Bramcote Crem,Book of Remembrance,3310,Other Supplies & Services,OtherSS,06/05/2022,V825884,29,ACS Business Supplies,737.97
Broxtowe Borough Council,http://statistics.data.gov.uk/id/local-authority/37UD,Bramcote Crematorium,BCREM,Bramcote Crematorium,BCREM,Strategic Director / Bramcote Crem,Book of Remembrance,3310,Other Supplies & Services,OtherSS,06/05/2022,V825884,25.32,ACS Business Supplies,737.97
Broxtowe Borough Council,http://statistics.data.gov.uk/id/local-authority/37UD,Bramcote Crematorium,BCREM,Bramcote Crematorium,BCREM,Strategic Director / Bramcote Crem,Book of Remembrance,3310,Other Supplies & Services,OtherSS,06/05/2022,V825884,19.62,ACS Business Supplies,737.97
Broxtowe Borough Council,http://statistics.data.gov.uk/id/local-authority/37UD,Bramcote Crematorium,BCREM,Bramcote Crematorium,BCREM,Strategic Director / Bramcote Crem,Book of Remembrance,3310,Other Supplies & Services,OtherSS,06/05/2022,V825884,19.16,ACS Business Supplies,737.97
Broxtowe Borough Council,http://statistics.data.gov.uk/id/local-authority/37UD,Bramcote Crematorium,BCREM,Bramcote Crematorium,BCREM,Strategic Director / Bramcote Crem,Book of Remembrance,3310,Other Supplies & Services,OtherSS,06/05/2022,V825884,14.96,ACS Business Supplies,737.97
Broxtowe Borough Council,http://statistics.data.gov.uk/id/local-authority/37UD,Bramcote Crematorium,BCREM,Bramcote Crematorium,BCREM,Strategic Director / Bramcote Crem,Book of Remembrance,3310,Other Supplies & Services,OtherSS,06/05/2022,V825884,10.15,ACS Business Supplies,737.97
Broxtowe Borough Council,http://statistics.data.gov.uk/id/local-authority/37UD,Chief Executive,CE,ICT & Customer Services,ICT,Strategic Director / IT Services,Hardware Maintenance,3434,Other Supplies & Services,OtherSS,06/06/2022,V823088,778.58,ACS Business Supplies,2767.24
Broxtowe Borough Council,http://statistics.data.gov.uk/id/local-authority/37UD,Chief Executive,CE,ICT & Customer Services,ICT,Strategic Director / IT Services,Computer Equipment Supplies,3438,Equipment,Equip,06/06/2022,V862688,749.25,ACS Business Supplies,2767.24
Broxtowe Borough Council,http://statistics.data.gov.uk/id/local-authority/37UD,Chief Executive,CE,ICT & Customer Services,ICT,Strategic Director / IT Services,Hardware Maintenance,3434,Other Supplies & Services,OtherSS,06/06/2022,V823088,576,ACS Business Supplies,2767.24
Broxtowe Borough Council,http://statistics.data.gov.uk/id/local-authority/37UD,Chief Executive,CE,ICT & Customer Services,ICT,Strategic Director / IT Services,Hardware Maintenance,3434,Other Supplies & Services,OtherSS,06/06/2022,V823088,340,ACS Business Supplies,2767.24
Broxtowe Borough Council,http://statistics.data.gov.uk/id/local-authority/37UD,Chief Executive,CE,ICT & Customer Services,ICT,Strategic Director / IT Services,Hardware Maintenance,3434,Other Supplies & Services,OtherSS,06/06/2022,V823088,179.8,ACS Business Supplies,2767.24
Broxtowe Borough Council,http://statistics.data.gov.uk/id/local-authority/37UD,Chief Executive,CE,ICT & Customer Services,ICT,Strategic Director / IT Services,Computer Equipment Supplies,3438,Equipment,Equip,06/06/2022,V858953,76.5,ACS Business Supplies,2767.24
Broxtowe Borough Council,http://statistics.data.gov.uk/id/local-authority/37UD,Chief Executive,CE,ICT & Customer Services,ICT,Strategic Director / IT Services,Hardware Maintenance,3434,Other Supplies & Services,OtherSS,06/06/2022,V823088,5.95,ACS Business Supplies,2767.24
Broxtowe Borough Council,http://statistics.data.gov.uk/id/local-authority/37UD,Chief Executive,CE,ICT & Customer Services,ICT,Strategic Director / IT Services,Hardware Maintenance,3434,Other Supplies & Services,OtherSS,06/06/2022,V829574,-76.5,ACS Business Supplies,2767.24
Broxtowe Borough Council,http://statistics.data.gov.uk/id/local-authority/37UD,Chief Executive,CE,ICT & Customer Services,ICT,Strategic Director / IT Services,Hardware Maintenance,3434,Other Supplies & Services,OtherSS,06/06/2022,V829566,-323.55,ACS Business Supplies,2767.24
Broxtowe Borough Council,http://statistics.data.gov.uk/id/local-authority/37UD,Resources,RES,Resources,RES,Strategic Director / IT Services,Equipment,9004,Capital Expenditure,CapExp,17/06/2022,V864935,4639.65,ACS Business Supplies,5615.46
Broxtowe Borough Council,http://statistics.data.gov.uk/id/local-authority/37UD,Bramcote Crematorium,BCREM,Bramcote Crematorium,BCREM,Strategic Director / Bramcote Crem,Printing & Stationery,3300,Printing,Print,17/06/2022,V864929,39.9,ACS Business Supplies,5615.46
Broxtowe Borough Council,http://statistics.data.gov.uk/id/local-authority/37UD,Resources,RES,Resources,RES,Strategic Director / IT Services,Equipment,9004,Capital Expenditure,CapExp,24/06/2022,V865690,30320.95,ACS Business Supplies,36908.1
Broxtowe Borough Council,http://statistics.data.gov.uk/id/local-authority/37UD,Chief Executive,CE,ICT & Customer Services,ICT,Strategic Director / IT Services,Hardware Maintenance,3434,Other Supplies & Services,OtherSS,24/06/2022,V865782,435.8,ACS Business Supplies,36908.1
Broxtowe Borough Council,http://statistics.data.gov.uk/id/local-authority/37UD,Resources,RES,Resources,RES,Strategic Director / IT Services,Equipment,9004,Capital Expenditure,CapExp,01/07/2022,V866689,4254.1,ACS Business Supplies,5104.92
Broxtowe Borough Council,http://statistics.data.gov.uk/id/local-authority/37UD,Resources,RES,Resources,RES,Strategic Director / IT Services,Equipment,9004,Capital Expenditure,CapExp,08/07/2022,V867929,511.3,ACS Business Supplies,1194.78
Broxtowe Borough Council,http://statistics.data.gov.uk/id/local-authority/37UD,Chief Executive,CE,ICT & Customer Services,ICT,Strategic Director / IT Services,Hardware Maintenance,3434,Other Supplies & Services,OtherSS,08/07/2022,V829563,323.55,ACS Business Supplies,1194.78
Broxtowe Borough Council,http://statistics.data.gov.uk/id/local-authority/37UD,Chief Executive,CE,ICT & Customer Services,ICT,Strategic Director / IT Services,Hardware Maintenance,3434,Other Supplies & Services,OtherSS,08/07/2022,V867929,149.85,ACS Business Supplies,1194.78
Broxtowe Borough Council,http://statistics.data.gov.uk/id/local-authority/37UD,Chief Executive,CE,ICT & Customer Services,ICT,Strategic Director / IT Services,Hardware Maintenance,3434,Other Supplies & Services,OtherSS,08/07/2022,V867929,10.95,ACS Business Supplies,1194.78
Broxtowe Borough Council,http://statistics.data.gov.uk/id/local-authority/37UD,Chief Executive,CE,ICT & Customer Services,ICT,Strategic Director / IT Services,Computer Equipment Supplies,3438,Equipment,Equip,29/07/2022,V871678,447,ACS Business Supplies,536.4
Broxtowe Borough Council,http://statistics.data.gov.uk/id/local-authority/37UD,Chief Executive,CE,ICT & Customer Services,ICT,Strategic Director / IT Services,Computer Equipment Supplies,3438,Equipment,Equip,09/09/2022,V879559,585,ACS Business Supplies,1958.16
Broxtowe Borough Council,http://statistics.data.gov.uk/id/local-authority/37UD,Chief Executive,CE,ICT & Customer Services,ICT,Strategic Director / IT Services,Printing & Stationery,3300,Printing,Print,09/09/2022,V879558,267,ACS Business Supplies,1958.16
Broxtowe Borough Council,http://statistics.data.gov.uk/id/local-authority/37UD,Chief Executive,CE,ICT & Customer Services,ICT,Strategic Director / IT Services,Printing & Stationery,3300,Printing,Print,09/09/2022,V879558,267,ACS Business Supplies,1958.16
Broxtowe Borough Council,http://statistics.data.gov.uk/id/local-authority/37UD,Chief Executive,CE,ICT & Customer Services,ICT,Strategic Director / IT Services,Printing & Stationery,3300,Printing,Print,09/09/2022,V879558,267,ACS Business Supplies,1958.16
Broxtowe Borough Council,http://statistics.data.gov.uk/id/local-authority/37UD,Chief Executive,CE,ICT & Customer Services,ICT,Strategic Director / IT Services,Printing & Stationery,3300,Printing,Print,09/09/2022,V879558,239.85,ACS Business Supplies,1958.16
Broxtowe Borough Council,http://statistics.data.gov.uk/id/local-authority/37UD,Chief Executive,CE,ICT & Customer Services,ICT,Strategic Director / IT Services,Computer Equipment Supplies,3438,Equipment,Equip,09/09/2022,V879559,5.95,ACS Business Supplies,1958.16
Broxtowe Borough Council,http://statistics.data.gov.uk/id/local-authority/37UD,Chief Executive,CE,ICT & Customer Services,ICT,Strategic Director / IT Services,Hardware Maintenance,3434,Other Supplies & Services,OtherSS,14/10/2022,V882866,147.15,ACS Business Supplies,273.72
Broxtowe Borough Council,http://statistics.data.gov.uk/id/local-authority/37UD,Chief Executive,CE,ICT & Customer Services,ICT,Strategic Director / IT Services,Printing & Stationery,3300,Printing,Print,14/10/2022,V883157,70,ACS Business Supplies,273.72
Broxtowe Borough Council,http://statistics.data.gov.uk/id/local-authority/37UD,Chief Executive,CE,ICT & Customer Services,ICT,Strategic Director / IT Services,Hardware Maintenance,3434,Other Supplies & Services,OtherSS,14/10/2022,V882866,10.95,ACS Business Supplies,273.72
Broxtowe Borough Council,http://statistics.data.gov.uk/id/local-authority/37UD,Chief Executive,CE,ICT & Customer Services,ICT,Strategic Director / IT Services,Computer Equipment Supplies,3438,Equipment,Equip,21/10/2022,V883202,400,ACS Business Supplies,930.9
Broxtowe Borough Council,http://statistics.data.gov.uk/id/local-authority/37UD,Chief Executive,CE,ICT & Customer Services,ICT,Strategic Director / IT Services,Computer Equipment Supplies,3438,Equipment,Equip,21/10/2022,V883202,275,ACS Business Supplies,930.9
Broxtowe Borough Council,http://statistics.data.gov.uk/id/local-authority/37UD,Chief Executive,CE,ICT & Customer Services,ICT,Strategic Director / IT Services,Computer Equipment Supplies,3438,Equipment,Equip,21/10/2022,V883202,74.85,ACS Business Supplies,930.9
Broxtowe Borough Council,http://statistics.data.gov.uk/id/local-authority/37UD,Chief Executive,CE,ICT & Customer Services,ICT,Strategic Director / IT Services,Computer Equipment Supplies,3438,Equipment,Equip,21/10/2022,V883202,19.95,ACS Business Supplies,930.9
Broxtowe Borough Council,http://statistics.data.gov.uk/id/local-authority/37UD,Chief Executive,CE,ICT & Customer Services,ICT,Strategic Director / IT Services,Computer Equipment Supplies,3438,Equipment,Equip,21/10/2022,V883202,5.95,ACS Business Supplies,930.9
Broxtowe Borough Council,http://statistics.data.gov.uk/id/local-authority/37UD,Resources,RES,Resources,RES,Strategic Director / IT Services,Equipment,9004,Capital Expenditure,CapExp,28/10/2022,V883851,17938.5,ACS Business Supplies,29072.75
Broxtowe Borough Council,http://statistics.data.gov.uk/id/local-authority/37UD,Resources,RES,Resources,RES,Strategic Director / IT Services,Equipment,9004,Capital Expenditure,CapExp,28/10/2022,V883851,4499.68,ACS Business Supplies,29072.75
Broxtowe Borough Council,http://statistics.data.gov.uk/id/local-authority/37UD,Resources,RES,Resources,RES,Strategic Director / IT Services,Equipment,9004,Capital Expenditure,CapExp,28/10/2022,V883851,882.6,ACS Business Supplies,29072.75
Broxtowe Borough Council,http://statistics.data.gov.uk/id/local-authority/37UD,Chief Executive,CE,ICT & Customer Services,ICT,Strategic Director / IT Services,Computer Equipment Supplies,3438,Equipment,Equip,28/10/2022,V883851,390,ACS Business Supplies,29072.75
Broxtowe Borough Council,http://statistics.data.gov.uk/id/local-authority/37UD,Chief Executive,CE,ICT & Customer Services,ICT,Strategic Director / IT Services,Printing & Stationery,3300,Printing,Print,28/10/2022,V883793,209.85,ACS Business Supplies,29072.75
Broxtowe Borough Council,http://statistics.data.gov.uk/id/local-authority/37UD,Chief Executive,CE,ICT & Customer Services,ICT,Strategic Director / IT Services,Computer Equipment Supplies,3438,Equipment,Equip,28/10/2022,V883851,149.7,ACS Business Supplies,29072.75
Broxtowe Borough Council,http://statistics.data.gov.uk/id/local-authority/37UD,Resources,RES,Resources,RES,Strategic Director / IT Services,Equipment,9004,Capital Expenditure,CapExp,28/10/2022,V883851,140.06,ACS Business Supplies,29072.75
Broxtowe Borough Council,http://statistics.data.gov.uk/id/local-authority/37UD,Resources,RES,Resources,RES,Strategic Director / IT Services,Equipment,9004,Capital Expenditure,CapExp,28/10/2022,V883851,10.95,ACS Business Supplies,29072.75
Broxtowe Borough Council,http://statistics.data.gov.uk/id/local-authority/37UD,Chief Executive,CE,Human Resources,HR,Strategic Director / IT Services,Printing & Stationery,3300,Printing,Print,28/10/2022,V883793,5.95,ACS Business Supplies,29072.75
Broxtowe Borough Council,http://statistics.data.gov.uk/id/local-authority/37UD,Chief Executive,CE,ICT & Customer Services,ICT,Strategic Director / IT Services,Printing & Stationery,3300,Printing,Print,09/12/2022,V888036,585,ACS Business Supplies,832.74
Broxtowe Borough Council,http://statistics.data.gov.uk/id/local-authority/37UD,Chief Executive,CE,ICT & Customer Services,ICT,Strategic Director / IT Services,Printing & Stationery,3300,Printing,Print,09/12/2022,V888036,98,ACS Business Supplies,832.74
Broxtowe Borough Council,http://statistics.data.gov.uk/id/local-authority/37UD,Chief Executive,CE,ICT & Customer Services,ICT,Strategic Director / IT Services,Printing & Stationery,3300,Printing,Print,09/12/2022,V888036,10.95,ACS Business Supplies,832.74
Broxtowe Borough Council,http://statistics.data.gov.uk/id/local-authority/37UD,Resources,RES,Resources,RES,Strategic Director / IT Services,Equipment,9004,Capital Expenditure,CapExp,16/12/2022,V888356,4673.3,ACS Business Supplies,6234.66
Broxtowe Borough Council,http://statistics.data.gov.uk/id/local-authority/37UD,Resources,RES,Resources,RES,Strategic Director / IT Services,Equipment,9004,Capital Expenditure,CapExp,16/12/2022,V888356,511.3,ACS Business Supplies,6234.66
Broxtowe Borough Council,http://statistics.data.gov.uk/id/local-authority/37UD,Resources,RES,Resources,RES,Strategic Director / IT Services,Equipment,9004,Capital Expenditure,CapExp,16/12/2022,V888356,10.95,ACS Business Supplies,6234.66
Broxtowe Borough Council,http://statistics.data.gov.uk/id/local-authority/37UD,Resources,RES,Resources,RES,Strategic Director / IT Services,Equipment,9004,Capital Expenditure,CapExp,06/01/2023,V890255,15107.85,ACS Business Supplies,24466.31
Broxtowe Borough Council,http://statistics.data.gov.uk/id/local-authority/37UD,Resources,RES,Resources,RES,Strategic Director / IT Services,Equipment,9004,Capital Expenditure,CapExp,06/01/2023,V890255,5114.34,ACS Business Supplies,24466.31
Broxtowe Borough Council,http://statistics.data.gov.uk/id/local-authority/37UD,Chief Executive,CE,ICT & Customer Services,ICT,Strategic Director / IT Services,Computer Equipment Supplies,3438,Equipment,Equip,06/01/2023,V890267,149.5,ACS Business Supplies,24466.31
Broxtowe Borough Council,http://statistics.data.gov.uk/id/local-authority/37UD,Resources,RES,Resources,RES,Strategic Director / IT Services,Equipment,9004,Capital Expenditure,CapExp,06/01/2023,V890255,10.95,ACS Business Supplies,24466.31
Broxtowe Borough Council,http://statistics.data.gov.uk/id/local-authority/37UD,Chief Executive,CE,ICT & Customer Services,ICT,Strategic Director / IT Services,Computer Equipment Supplies,3438,Equipment,Equip,06/01/2023,V890267,5.95,ACS Business Supplies,24466.31
Broxtowe Borough Council,http://statistics.data.gov.uk/id/local-authority/37UD,Resources,RES,Resources,RES,Strategic Director / IT Services,Equipment,9004,Capital Expenditure,CapExp,20/01/2023,V891026,8650.64,ACS Business Supplies,18366.33
Broxtowe Borough Council,http://statistics.data.gov.uk/id/local-authority/37UD,Resources,RES,Resources,RES,Strategic Director / IT Services,Equipment,9004,Capital Expenditure,CapExp,20/01/2023,V891026,6228.8,ACS Business Supplies,18366.33
Broxtowe Borough Council,http://statistics.data.gov.uk/id/local-authority/37UD,Chief Executive,CE,ICT & Customer Services,ICT,Strategic Director / IT Services,Computer Equipment Supplies,3438,Equipment,Equip,20/01/2023,V891020,229.5,ACS Business Supplies,18366.33
Broxtowe Borough Council,http://statistics.data.gov.uk/id/local-authority/37UD,Chief Executive,CE,ICT & Customer Services,ICT,Strategic Director / IT Services,Computer Equipment Supplies,3438,Equipment,Equip,20/01/2023,V891017,179.43,ACS Business Supplies,18366.33
Broxtowe Borough Council,http://statistics.data.gov.uk/id/local-authority/37UD,Resources,RES,Resources,RES,Strategic Director / IT Services,Equipment,9004,Capital Expenditure,CapExp,20/01/2023,V891026,10.95,ACS Business Supplies,18366.33
Broxtowe Borough Council,http://statistics.data.gov.uk/id/local-authority/37UD,Chief Executive,CE,ICT & Customer Services,ICT,Strategic Director / IT Services,Computer Equipment Supplies,3438,Equipment,Equip,20/01/2023,V891020,5.95,ACS Business Supplies,18366.33
Broxtowe Borough Council,http://statistics.data.gov.uk/id/local-authority/37UD,Resources,RES,Resources,RES,Strategic Director / IT Services,Equipment,9004,Capital Expenditure,CapExp,27/01/2023,V891683,11360.4,ACS Business Supplies,18402.66
Broxtowe Borough Council,http://statistics.data.gov.uk/id/local-authority/37UD,Chief Executive,CE,ICT & Customer Services,ICT,Strategic Director / IT Services,Software Maintenance,3436,Other Supplies & Services,OtherSS,27/01/2023,V891680,2757,ACS Business Supplies,18402.66
Broxtowe Borough Council,http://statistics.data.gov.uk/id/local-authority/37UD,Resources,RES,Resources,RES,Strategic Director / IT Services,Equipment,9004,Capital Expenditure,CapExp,27/01/2023,V891683,721,ACS Business Supplies,18402.66
Broxtowe Borough Council,http://statistics.data.gov.uk/id/local-authority/37UD,Chief Executive,CE,ICT & Customer Services,ICT,Strategic Director / IT Services,Computer Equipment Supplies,3438,Equipment,Equip,27/01/2023,V891681,350,ACS Business Supplies,18402.66
Broxtowe Borough Council,http://statistics.data.gov.uk/id/local-authority/37UD,Chief Executive,CE,ICT & Customer Services,ICT,Strategic Director / IT Services,Computer Equipment Supplies,3438,Equipment,Equip,27/01/2023,V891681,147.15,ACS Business Supplies,18402.66
Broxtowe Borough Council,http://statistics.data.gov.uk/id/local-authority/37UD,Chief Executive,CE,ICT & Customer Services,ICT,Executive Director / IT Services,Computer Equipment Supplies,3438,Equipment,Equip,10/03/2023,V895609,785.85,ACS Business Supplies,1463.46
Broxtowe Borough Council,http://statistics.data.gov.uk/id/local-authority/37UD,Chief Executive,CE,ICT & Customer Services,ICT,Executive Director / IT Services,Hardware Maintenance,3434,Other Supplies & Services,OtherSS,10/03/2023,V895689,319.8,ACS Business Supplies,1463.46
Broxtowe Borough Council,http://statistics.data.gov.uk/id/local-authority/37UD,Chief Executive,CE,ICT & Customer Services,ICT,Executive Director / IT Services,Hardware Maintenance,3434,Other Supplies & Services,OtherSS,10/03/2023,V895689,68,ACS Business Supplies,1463.46
Broxtowe Borough Council,http://statistics.data.gov.uk/id/local-authority/37UD,Bramcote Crematorium,BCREM,Bramcote Crematorium,BCREM,Executive Director / Bramcote Crem,Printing & Stationery,3300,Printing,Print,10/03/2023,V895837,39.95,ACS Business Supplies,1463.46
Broxtowe Borough Council,http://statistics.data.gov.uk/id/local-authority/37UD,Chief Executive,CE,ICT & Customer Services,ICT,Executive Director / IT Services,Hardware Maintenance,3434,Other Supplies & Services,OtherSS,10/03/2023,V895689,5.95,ACS Business Supplies,1463.46
Broxtowe Borough Council,http://statistics.data.gov.uk/id/local-authority/37UD,Chief Executive,CE,ICT & Customer Services,ICT,Executive Director / IT Services,Computer Equipment Supplies,3438,Equipment,Equip,24/03/2023,V897066,225.2,ACS Business Supplies,578.14
Broxtowe Borough Council,http://statistics.data.gov.uk/id/local-authority/37UD,Chief Executive,CE,ICT & Customer Services,ICT,Executive Director / IT Services,Computer Equipment Supplies,3438,Equipment,Equip,24/03/2023,V897066,122.1,ACS Business Supplies,578.14
Broxtowe Borough Council,http://statistics.data.gov.uk/id/local-authority/37UD,Chief Executive,CE,ICT & Customer Services,ICT,Executive Director / IT Services,Computer Equipment Supplies,3438,Equipment,Equip,24/03/2023,V897066,89.5,ACS Business Supplies,578.14
Broxtowe Borough Council,http://statistics.data.gov.uk/id/local-authority/37UD,Bramcote Crematorium,BCREM,Bramcote Crematorium,BCREM,Executive Director / Bramcote Crem,Equipment Tools and Materials,3006,Equipment,Equip,24/03/2023,V897078,49,ACS Business Supplies,578.14
Broxtowe Borough Council,http://statistics.data.gov.uk/id/local-authority/37UD,Chief Executive,CE,ICT & Customer Services,ICT,Executive Director / IT Services,Computer Equipment Supplies,3438,Equipment,Equip,24/03/2023,V897066,5.95,ACS Business Supplies,578.14
Broxtowe Borough Council,http://statistics.data.gov.uk/id/local-authority/37UD,Chief Executive,CE,ICT & Customer Services,ICT,Executive Director / IT Services,Computer Equipment Supplies,3438,Equipment,Equip,24/03/2023,V897066,2.99,ACS Business Supplies,578.14
Broxtowe Borough Council,http://statistics.data.gov.uk/id/local-authority/37UD,Bramcote Crematorium,BCREM,Bramcote Crematorium,BCREM,Executive Director / Bramcote Crem,Printing & Stationery,3300,Printing,Print,24/03/2023,V896293,-12.96,ACS Business Supplies,578.14
Broxtowe Borough Council,http://statistics.data.gov.uk/id/local-authority/37UD,Resources,RES,Resources,RES,Executive Director / IT Services,Equipment,9004,Capital Expenditure,CapExp,31/03/2023,V898360,1126,ACS Business Supplies,2923.2
Broxtowe Borough Council,http://statistics.data.gov.uk/id/local-authority/37UD,Resources,RES,Resources,RES,Executive Director / IT Services,Equipment,9004,Capital Expenditure,CapExp,31/03/2023,V898360,699.5,ACS Business Supplies,2923.2
Broxtowe Borough Council,http://statistics.data.gov.uk/id/local-authority/37UD,Resources,RES,Resources,RES,Executive Director / IT Services,Equipment,9004,Capital Expenditure,CapExp,31/03/2023,V898360,610.5,ACS Business Supplies,2923.2
Broxtowe Borough Council,http://statistics.data.gov.uk/id/local-authority/37UD,Resources,RES,Resources,RES,Executive Director / IT Services,Equipment,9004,Capital Expenditure,CapExp,21/04/2023,V899280,31450,ACS Business Supplies,37747.14
Broxtowe Borough Council,http://statistics.data.gov.uk/id/local-authority/37UD,Resources,RES,Resources,RES,Executive Director / IT Services,Equipment,9004,Capital Expenditure,CapExp,21/04/2023,V899280,5.95,ACS Business Supplies,37747.14
Broxtowe Borough Council,http://statistics.data.gov.uk/id/local-authority/37UD,Chief Executive,CE,ICT & Customer Services,ICT,Executive Director / IT Services,Computer Equipment Supplies,3438,Equipment,Equip,12/05/2023,V900899,225.2,ACS Business Supplies,531.18
Broxtowe Borough Council,http://statistics.data.gov.uk/id/local-authority/37UD,Chief Executive,CE,ICT & Customer Services,ICT,Executive Director / IT Services,Computer Equipment Supplies,3438,Equipment,Equip,12/05/2023,V901048,69.95,ACS Business Supplies,531.18
Broxtowe Borough Council,http://statistics.data.gov.uk/id/local-authority/37UD,Chief Executive,CE,ICT & Customer Services,ICT,Executive Director / IT Services,Computer Equipment Supplies,3438,Equipment,Equip,12/05/2023,V900899,59.8,ACS Business Supplies,531.18
Broxtowe Borough Council,http://statistics.data.gov.uk/id/local-authority/37UD,Chief Executive,CE,ICT & Customer Services,ICT,Executive Director / IT Services,Computer Equipment Supplies,3438,Equipment,Equip,12/05/2023,V900899,55.77,ACS Business Supplies,531.18
Broxtowe Borough Council,http://statistics.data.gov.uk/id/local-authority/37UD,Chief Executive,CE,ICT & Customer Services,ICT,Executive Director / IT Services,Computer Equipment Supplies,3438,Equipment,Equip,12/05/2023,V900899,25.98,ACS Business Supplies,531.18
Broxtowe Borough Council,http://statistics.data.gov.uk/id/local-authority/37UD,Chief Executive,CE,ICT & Customer Services,ICT,Executive Director / IT Services,Computer Equipment Supplies,3438,Equipment,Equip,12/05/2023,V900899,5.95,ACS Business Supplies,531.18
Broxtowe Borough Council,http://statistics.data.gov.uk/id/local-authority/37UD,Chief Executive,CE,ICT & Customer Services,ICT,Executive Director / IT Services,Hardware Maintenance,3434,Other Supplies & Services,OtherSS,19/05/2023,V901716,559.5,ACS Business Supplies,1166.33
Broxtowe Borough Council,http://statistics.data.gov.uk/id/local-authority/37UD,Chief Executive,CE,ICT & Customer Services,ICT,Executive Director / IT Services,Printing & Stationery,3300,Printing,Print,19/05/2023,V901717,219.9,ACS Business Supplies,1166.33
Broxtowe Borough Council,http://statistics.data.gov.uk/id/local-authority/37UD,Bramcote Crematorium,BCREM,Bramcote Crematorium,BCREM,Executive Director / Bramcote Crem,Printing & Stationery,3300,Printing,Print,19/05/2023,V896291,87.96,ACS Business Supplies,1166.33
Broxtowe Borough Council,http://statistics.data.gov.uk/id/local-authority/37UD,Chief Executive,CE,ICT & Customer Services,ICT,Executive Director / IT Services,Computer Equipment Supplies,3438,Equipment,Equip,19/05/2023,V901890,59.8,ACS Business Supplies,1166.33
Broxtowe Borough Council,http://statistics.data.gov.uk/id/local-authority/37UD,Bramcote Crematorium,BCREM,Bramcote Crematorium,BCREM,Executive Director / Bramcote Crem,Printing & Stationery,3300,Printing,Print,19/05/2023,V896291,12.96,ACS Business Supplies,1166.33
Broxtowe Borough Council,http://statistics.data.gov.uk/id/local-authority/37UD,Bramcote Crematorium,BCREM,Bramcote Crematorium,BCREM,Executive Director / Bramcote Crem,Printing & Stationery,3300,Printing,Print,19/05/2023,V896291,11.96,ACS Business Supplies,1166.33
Broxtowe Borough Council,http://statistics.data.gov.uk/id/local-authority/37UD,Bramcote Crematorium,BCREM,Bramcote Crematorium,BCREM,Executive Director / Bramcote Crem,Printing & Stationery,3300,Printing,Print,19/05/2023,V896291,7.96,ACS Business Supplies,1166.33
Broxtowe Borough Council,http://statistics.data.gov.uk/id/local-authority/37UD,Chief Executive,CE,ICT & Customer Services,ICT,Executive Director / IT Services,Hardware Maintenance,3434,Other Supplies & Services,OtherSS,19/05/2023,V901716,5.95,ACS Business Supplies,1166.33
Broxtowe Borough Council,http://statistics.data.gov.uk/id/local-authority/37UD,Chief Executive,CE,ICT & Customer Services,ICT,Executive Director / IT Services,Computer Equipment Supplies,3438,Equipment,Equip,19/05/2023,V901890,5.95,ACS Business Supplies,1166.33
Broxtowe Borough Council,http://statistics.data.gov.uk/id/local-authority/37UD,Chief Executive,CE,ICT & Customer Services,ICT,Executive Director / IT Services,Printing & Stationery,3300,Printing,Print,16/06/2023,V904066,249.83,ACS Business Supplies,464.97
Broxtowe Borough Council,http://statistics.data.gov.uk/id/local-authority/37UD,Bramcote Crematorium,BCREM,Bramcote Crematorium,BCREM,Executive Director / Bramcote Crem,Printing & Stationery,3300,Printing,Print,16/06/2023,V904298,75.8,ACS Business Supplies,464.97
Broxtowe Borough Council,http://statistics.data.gov.uk/id/local-authority/37UD,Bramcote Crematorium,BCREM,Bramcote Crematorium,BCREM,Executive Director / Bramcote Crem,Printing & Stationery,3300,Printing,Print,16/06/2023,V904298,39.9,ACS Business Supplies,464.97
Broxtowe Borough Council,http://statistics.data.gov.uk/id/local-authority/37UD,Bramcote Crematorium,BCREM,Bramcote Crematorium,BCREM,Executive Director / Bramcote Crem,Printing & Stationery,3300,Printing,Print,16/06/2023,V904298,19.95,ACS Business Supplies,464.97
Broxtowe Borough Council,http://statistics.data.gov.uk/id/local-authority/37UD,Bramcote Crematorium,BCREM,Bramcote Crematorium,BCREM,Executive Director / Bramcote Crem,Printing & Stationery,3300,Printing,Print,16/06/2023,V904298,1.99,ACS Business Supplies,464.97
Broxtowe Borough Council,http://statistics.data.gov.uk/id/local-authority/37UD,Chief Executive,CE,ICT & Customer Services,ICT,Executive Director / IT Services,Computer Equipment Supplies,3438,Equipment,Equip,23/06/2023,V904388,9913.73,ACS Business Supplies,24011.6
Broxtowe Borough Council,http://statistics.data.gov.uk/id/local-authority/37UD,Housing Revenue Account,HRA,Housing Revenue Account,HRA,Executive Director / IT Services,Equipment,9004,Capital Expenditure,CapExp,23/06/2023,V904328,6259.7,ACS Business Supplies,24011.6
Broxtowe Borough Council,http://statistics.data.gov.uk/id/local-authority/37UD,Housing Revenue Account,HRA,Housing Revenue Account,HRA,Executive Director / IT Services,Equipment,9004,Capital Expenditure,CapExp,23/06/2023,V904328,2311.85,ACS Business Supplies,24011.6
Broxtowe Borough Council,http://statistics.data.gov.uk/id/local-authority/37UD,Chief Executive,CE,ICT & Customer Services,ICT,Executive Director / IT Services,Computer Equipment Supplies,3438,Equipment,Equip,23/06/2023,V904388,718.77,ACS Business Supplies,24011.6
Broxtowe Borough Council,http://statistics.data.gov.uk/id/local-authority/37UD,Housing Revenue Account,HRA,Housing Revenue Account,HRA,Executive Director / IT Services,Equipment,9004,Capital Expenditure,CapExp,23/06/2023,V904328,360,ACS Business Supplies,24011.6
Broxtowe Borough Council,http://statistics.data.gov.uk/id/local-authority/37UD,Housing Revenue Account,HRA,Housing Revenue Account,HRA,Executive Director / IT Services,Equipment,9004,Capital Expenditure,CapExp,23/06/2023,V904328,247.9,ACS Business Supplies,24011.6
Broxtowe Borough Council,http://statistics.data.gov.uk/id/local-authority/37UD,Chief Executive,CE,ICT & Customer Services,ICT,Executive Director / IT Services,Computer Equipment Supplies,3438,Equipment,Equip,23/06/2023,V904644,174.84,ACS Business Supplies,24011.6
Broxtowe Borough Council,http://statistics.data.gov.uk/id/local-authority/37UD,Chief Executive,CE,ICT & Customer Services,ICT,Executive Director / IT Services,Computer Equipment Supplies,3438,Equipment,Equip,23/06/2023,V904388,10.95,ACS Business Supplies,24011.6
Broxtowe Borough Council,http://statistics.data.gov.uk/id/local-authority/37UD,Chief Executive,CE,ICT & Customer Services,ICT,Executive Director / IT Services,Computer Equipment Supplies,3438,Equipment,Equip,23/06/2023,V904644,5.98,ACS Business Supplies,24011.6
Broxtowe Borough Council,http://statistics.data.gov.uk/id/local-authority/37UD,Housing Revenue Account,HRA,Housing Revenue Account,HRA,Executive Director / IT Services,Equipment,9004,Capital Expenditure,CapExp,23/06/2023,V904328,5.95,ACS Business Supplies,24011.6
Broxtowe Borough Council,http://statistics.data.gov.uk/id/local-authority/37UD,Chief Executive,CE,ICT & Customer Services,ICT,Executive Director / IT Services,Computer Equipment Supplies,3438,Equipment,Equip,07/07/2023,V905580,3673.25,ACS Business Supplies,4421.04
Broxtowe Borough Council,http://statistics.data.gov.uk/id/local-authority/37UD,Chief Executive,CE,ICT & Customer Services,ICT,Executive Director / IT Services,Computer Equipment Supplies,3438,Equipment,Equip,07/07/2023,V905580,10.95,ACS Business Supplies,4421.04
Broxtowe Borough Council,http://statistics.data.gov.uk/id/local-authority/37UD,Chief Executive,CE,ICT & Customer Services,ICT,Executive Director / IT Services,Computer Equipment Supplies,3438,Equipment,Equip,25/08/2023,V909515,95.8,ACS Business Supplies,257.19
Broxtowe Borough Council,http://statistics.data.gov.uk/id/local-authority/37UD,Chief Executive,CE,ICT & Customer Services,ICT,Executive Director / IT Services,Printing & Stationery,3300,Printing and Stationery,Print,25/08/2023,V909514,89.08,ACS Business Supplies,257.19
Broxtowe Borough Council,http://statistics.data.gov.uk/id/local-authority/37UD,Chief Executive,CE,ICT & Customer Services,ICT,Executive Director / IT Services,Computer Equipment Supplies,3438,Equipment,Equip,25/08/2023,V909515,22.49,ACS Business Supplies,257.19
Broxtowe Borough Council,http://statistics.data.gov.uk/id/local-authority/37UD,Chief Executive,CE,ICT & Customer Services,ICT,Executive Director / IT Services,Computer Equipment Supplies,3438,Equipment,Equip,25/08/2023,V909514,6.95,ACS Business Supplies,257.19
Broxtowe Borough Council,http://statistics.data.gov.uk/id/local-authority/37UD,Bramcote Crematorium,BCREM,Bramcote Crematorium,BCREM,Executive Director / Bramcote Crem,Equipment Tools and Materials,3006,Equipment,Equip,22/09/2023,V911571,195,ACS Business Supplies,293.94
Broxtowe Borough Council,http://statistics.data.gov.uk/id/local-authority/37UD,Bramcote Crematorium,BCREM,Bramcote Crematorium,BCREM,Executive Director / Bramcote Crem,Printing & Stationery,3300,Printing and Stationery,Print,22/09/2023,V911570,49.95,ACS Business Supplies,293.94
Broxtowe Borough Council,http://statistics.data.gov.uk/id/local-authority/37UD,ICT Manager,H35,ICT Manager,S351,Executive Director / IT Services,Hardware Maintenance,3434,Other Supplies & Services,OtherSS,13/10/2023,V913409,210,ACS Business Supplies,990.6
Broxtowe Borough Council,http://statistics.data.gov.uk/id/local-authority/37UD,ICT Manager,H35,ICT Manager,S351,Executive Director / IT Services,Printing & Stationery,3300,Printing and Stationery,Print,13/10/2023,V913409,69.95,ACS Business Supplies,990.6
Broxtowe Borough Council,http://statistics.data.gov.uk/id/local-authority/37UD,ICT Manager,H35,ICT Manager,S351,Executive Director / IT Services,Printing & Stationery,3300,Printing and Stationery,Print,13/10/2023,V913409,69.95,ACS Business Supplies,990.6
Broxtowe Borough Council,http://statistics.data.gov.uk/id/local-authority/37UD,ICT Manager,H35,ICT Manager,S351,Executive Director / IT Services,Printing & Stationery,3300,Printing and Stationery,Print,13/10/2023,V913409,69.95,ACS Business Supplies,990.6
Broxtowe Borough Council,http://statistics.data.gov.uk/id/local-authority/37UD,ICT Manager,H35,ICT Manager,S351,Executive Director / IT Services,Printing & Stationery,3300,Printing and Stationery,Print,13/10/2023,V913409,69.95,ACS Business Supplies,990.6
Broxtowe Borough Council,http://statistics.data.gov.uk/id/local-authority/37UD,ICT Manager,H35,ICT Manager,S351,Executive Director / IT Services,Printing & Stationery,3300,Printing and Stationery,Print,13/10/2023,V913409,69.95,ACS Business Supplies,990.6
Broxtowe Borough Council,http://statistics.data.gov.uk/id/local-authority/37UD,ICT Manager,H35,ICT Manager,S351,Executive Director / IT Services,Printing & Stationery,3300,Printing and Stationery,Print,13/10/2023,V913409,69.95,ACS Business Supplies,990.6
Broxtowe Borough Council,http://statistics.data.gov.uk/id/local-authority/37UD,ICT Manager,H35,ICT Manager,S351,Executive Director / IT Services,Printing & Stationery,3300,Printing and Stationery,Print,13/10/2023,V913409,69.95,ACS Business Supplies,990.6
Broxtowe Borough Council,http://statistics.data.gov.uk/id/local-authority/37UD,ICT Manager,H35,ICT Manager,S351,Executive Director / IT Services,Printing & Stationery,3300,Printing and Stationery,Print,13/10/2023,V913409,69.95,ACS Business Supplies,990.6
Broxtowe Borough Council,http://statistics.data.gov.uk/id/local-authority/37UD,ICT Manager,H35,ICT Manager,S351,Executive Director / IT Services,Printing & Stationery,3300,Printing and Stationery,Print,13/10/2023,V913409,49.95,ACS Business Supplies,990.6
Broxtowe Borough Council,http://statistics.data.gov.uk/id/local-authority/37UD,ICT Manager,H35,ICT Manager,S351,Executive Director / IT Services,Printing & Stationery,3300,Printing and Stationery,Print,13/10/2023,V913409,5.95,ACS Business Supplies,990.6
Broxtowe Borough Council,http://statistics.data.gov.uk/id/local-authority/37UD,Leisure,LEISURE,Other Leisure,OTHLEIS,Deputy Chief Executive / Finance Services,Professional Fees,730,Indirect Employee Exp Oncosts,Oncosts,01/07/2022,V866582,1100,Active4Today,3960
Broxtowe Borough Council,http://statistics.data.gov.uk/id/local-authority/37UD,Leisure,LEISURE,Other Leisure,OTHLEIS,Deputy Chief Executive / Finance Services,Professional Fees,730,Indirect Employee Exp Oncosts,Oncosts,01/07/2022,V866601,1100,Active4Today,3960
Broxtowe Borough Council,http://statistics.data.gov.uk/id/local-authority/37UD,Leisure,LEISURE,Other Leisure,OTHLEIS,Deputy Chief Executive / Finance Services,Professional Fees,730,Indirect Employee Exp Oncosts,Oncosts,01/07/2022,V866628,1100,Active4Today,3960
Broxtowe Borough Council,http://statistics.data.gov.uk/id/local-authority/37UD,Leisure,LEISURE,Other Leisure,OTHLEIS,Deputy Chief Executive / Finance Services,Professional Fees,730,Indirect Employee Exp Oncosts,Oncosts,15/07/2022,V868878,1100,Active4Today,1320
Broxtowe Borough Council,http://statistics.data.gov.uk/id/local-authority/37UD,Leisure,LEISURE,Other Leisure,OTHLEIS,Deputy Chief Executive / Finance Services,Professional Fees,730,Indirect Employee Exp Oncosts,Oncosts,26/08/2022,V877671,1100,Active4Today,1320
Broxtowe Borough Council,http://statistics.data.gov.uk/id/local-authority/37UD,Leisure,LEISURE,Other Leisure,OTHLEIS,Deputy Chief Executive / Finance Services,Professional Fees,730,Indirect Employee Exp Oncosts,Oncosts,30/09/2022,V881170,1100,Active4Today,1320
Broxtowe Borough Council,http://statistics.data.gov.uk/id/local-authority/37UD,Leisure,LEISURE,Other Leisure,OTHLEIS,Deputy Chief Executive / Finance Services,Professional Fees,730,Indirect Employee Exp Oncosts,Oncosts,23/12/2022,V889214,1100,Active4Today,3960
Broxtowe Borough Council,http://statistics.data.gov.uk/id/local-authority/37UD,Leisure,LEISURE,Other Leisure,OTHLEIS,Deputy Chief Executive / Finance Services,Professional Fees,730,Indirect Employee Exp Oncosts,Oncosts,23/12/2022,V889216,1100,Active4Today,3960
Broxtowe Borough Council,http://statistics.data.gov.uk/id/local-authority/37UD,Leisure,LEISURE,Other Leisure,OTHLEIS,Deputy Chief Executive / Finance Services,Professional Fees,730,Indirect Employee Exp Oncosts,Oncosts,23/12/2022,V889218,1100,Active4Today,3960
Broxtowe Borough Council,http://statistics.data.gov.uk/id/local-authority/37UD,Leisure,LEISURE,Other Leisure,OTHLEIS,Deputy Chief Executive / Finance Services,Consultancy Fees,3603,Other Supplies & Services,OtherSS,27/01/2023,V891786,8700,Active4Today,11760
Broxtowe Borough Council,http://statistics.data.gov.uk/id/local-authority/37UD,Leisure,LEISURE,Other Leisure,OTHLEIS,Deputy Chief Executive / Finance Services,Professional Fees,730,Indirect Employee Exp Oncosts,Oncosts,27/01/2023,V891785,1100,Active4Today,11760
Broxtowe Borough Council,http://statistics.data.gov.uk/id/local-authority/37UD,Leisure,LEISURE,Other Leisure,OTHLEIS,Deputy Chief Executive / Finance Services,Professional Fees,730,Indirect Employee Exp Oncosts,Oncosts,17/03/2023,V896221,1100,Active4Today,2640
Broxtowe Borough Council,http://statistics.data.gov.uk/id/local-authority/37UD,Leisure,LEISURE,Other Leisure,OTHLEIS,Deputy Chief Executive / Finance Services,Consultancy Fees,3603,Other Supplies & Services,OtherSS,17/03/2023,V896300,1100,Active4Today,2640
Broxtowe Borough Council,http://statistics.data.gov.uk/id/local-authority/37UD,Leisure,LEISURE,Other Leisure,OTHLEIS,Deputy Chief Executive / Finance Services,Professional Fees,730,Indirect Employee Exp Oncosts,Oncosts,26/05/2023,V902109,1100,Active4Today,1320
Broxtowe Borough Council,http://statistics.data.gov.uk/id/local-authority/37UD,Leisure,LEISURE,Other Leisure,OTHLEIS,Deputy Chief Executive / Finance Services,Professional Fees,730,Indirect Employee Exp Oncosts,Oncosts,02/06/2023,V902669,1100,Active4Today,1320
Broxtowe Borough Council,http://statistics.data.gov.uk/id/local-authority/37UD,Leisure,LEISURE,Other Leisure,OTHLEIS,Deputy Chief Executive / Finance Services,Professional Fees,730,Indirect Employee Exp Oncosts,Oncosts,30/06/2023,V904820,1100,Active4Today,1320
Broxtowe Borough Council,http://statistics.data.gov.uk/id/local-authority/37UD,Head of Finance Services,H20,Head of Finance Services,S201,Deputy Chief Executive / Finance Services,Professional Fees,730,Indirect Employee Exp Oncosts,Oncosts,01/09/2023,V909842,1100,Active4Today,2640
Broxtowe Borough Council,http://statistics.data.gov.uk/id/local-authority/37UD,Head of Finance Services,H20,Head of Finance Services,S201,Deputy Chief Executive / Finance Services,Professional Fees,730,Indirect Employee Exp Oncosts,Oncosts,01/09/2023,V909884,1100,Active4Today,2640
Broxtowe Borough Council,http://statistics.data.gov.uk/id/local-authority/37UD,Head of Finance Services,H20,Head of Finance Services,S201,Deputy Chief Executive / Finance Services,Professional Fees,730,Indirect Employee Exp Oncosts,Oncosts,29/09/2023,V911936,1100,Active4Today,1320
Broxtowe Borough Council,http://statistics.data.gov.uk/id/local-authority/37UD,Head of Finance Services,H20,Head of Finance Services,S201,Deputy Chief Executive / Finance Services,Professional Fees,0730,Indirect Employee Exp Oncosts,Oncosts,24/11/2023,V916536,1100.00,Active4Today,2640
Broxtowe Borough Council,http://statistics.data.gov.uk/id/local-authority/37UD,Head of Finance Services,H20,Head of Finance Services,S201,Deputy Chief Executive / Finance Services,Professional Fees,0730,Indirect Employee Exp Oncosts,Oncosts,24/11/2023,V916538,1100.00,Active4Today,2640
Broxtowe Borough Council,http://statistics.data.gov.uk/id/local-authority/37UD,Head of Finance Services,H20,Head of Finance Services,S201,Deputy Chief Executive / Finance Services,Professional Fees,0730,Indirect Employee Exp Oncosts,Oncosts,22/12/2023,V918995,1100,Active4Today,1320
Broxtowe Borough Council,http://statistics.data.gov.uk/id/local-authority/37UD,Head of Finance Services,H20,Head of Finance Services,S201,Deputy Chief Executive / Finance Services,Employee Professional Fees,0730,Indirect Employee Exp Oncosts,Oncosts,09/02/2024,V923053,1100,Active4Today,1320
Broxtowe Borough Council,http://statistics.data.gov.uk/id/local-authority/37UD,Head of Finance Services,H20,Head of Finance Services,S201,Deputy Chief Executive / Finance Services,Employee Professional Fees,0730,Indirect Employee Exp Oncosts,Oncosts,23/02/2024,V923984,1100,Active4Today,1320
Broxtowe Borough Council,http://statistics.data.gov.uk/id/local-authority/37UD,Head of Finance Services,H20,Head of Finance Services,S201,Deputy Chief Executive / Finance Services,Employee Professional Fees,0730,Indirect Employee Exp Oncosts,Oncosts,22/03/2024,V926698,1100,Active4Today,1320
Broxtowe Borough Council,http://statistics.data.gov.uk/id/local-authority/37UD,Head of Housing,H51,Housing Services and Strategy Manager,S513,Chief Executive  / Housing Strategy and Developemnt,Government Grants,8000,Grants,Grants,24/11/2023,V916558,6597.50,Acuity Research and Practice Ltd,7917
Broxtowe Borough Council,http://statistics.data.gov.uk/id/local-authority/37UD,Head of Housing,H51,Housing Services and Strategy Manager,S513,Chief Executive  / Housing Strategy and Developemnt,Government Grants,8000,Grants,Grants,01/03/2024,V924592,6601.98,Acuity Research and Practice Ltd,7922.38
Broxtowe Borough Council,http://statistics.data.gov.uk/id/local-authority/37UD,Works Directorate,DIRWORKS,Works Directorate,DIRWORKS,Chief Executive  / Human Res,Travelling Expenses,2200,Travel  Subs claims,Travel,24/03/2023,V897070,299,Ad Warrior,358.8
Broxtowe Borough Council,http://statistics.data.gov.uk/id/local-authority/37UD,Works Directorate,DIRWORKS,Works Directorate,DIRWORKS,Chief Executive  / Human Res,Recruitment Advertising,880,Indirect Employee Exp Oncosts,Oncosts,31/03/2023,V898219,867,Ad Warrior,1040.4
Broxtowe Borough Council,http://statistics.data.gov.uk/id/local-authority/37UD,Leisure,LEISURE,Arts Development,ARTS,Strategic Director / Cultural Services,Promotion of The Arts,3066,Obsolete Supplies,ObsSupp,09/12/2022,V888239,350,Adams & Co,350
Broxtowe Borough Council,http://statistics.data.gov.uk/id/local-authority/37UD,Communications Manager,H31,Cultural Services Manager,S312,Executive Director / Cultural Services,Promotion of The Arts,3066,Other Supplies & Services,OtherSS,15/12/2023,V918648,350,Adams & Co,350
Broxtowe Borough Council,http://statistics.data.gov.uk/id/local-authority/37UD,Finance,FINANCE,Admin Services,ADMIN,Strategic Director / Administrative Services,Hire of Facilities,3223,Other Supplies & Services,OtherSS,04/11/2022,V885069,2542.16,Adnix UK LTD,5713.09
Broxtowe Borough Council,http://statistics.data.gov.uk/id/local-authority/37UD,Finance,FINANCE,Admin Services,ADMIN,Strategic Director / Administrative Services,Hire of Facilities,3223,Other Supplies & Services,OtherSS,04/11/2022,V885069,2218.75,Adnix UK LTD,5713.09
Broxtowe Borough Council,http://statistics.data.gov.uk/id/local-authority/37UD,Finance,FINANCE,Admin Services,ADMIN,Executive Director / Administrative Services,Hire of Facilities,3223,Other Supplies & Services,OtherSS,11/04/2023,V898543,12035.62,Adnix UK LTD,14442.74
Broxtowe Borough Council,http://statistics.data.gov.uk/id/local-authority/37UD,Works,WORKS,Repairs & Maintenance,REPMAIN,Strategic Director / Enviromental Services,Alarm System,1002,Other Prem,OthPrem,15/04/2022,V818148,166.76,ADT Fire & Security Plc,341.99
Broxtowe Borough Council,http://statistics.data.gov.uk/id/local-authority/37UD,Works,WORKS,Repairs & Maintenance,REPMAIN,Strategic Director / Enviromental Services,Alarm System,1002,Other Prem,OthPrem,15/04/2022,V818148,118.23,ADT Fire & Security Plc,341.99
Broxtowe Borough Council,http://statistics.data.gov.uk/id/local-authority/37UD,Works,WORKS,Repairs & Maintenance,REPMAIN,Strategic Director / Enviromental Services,Alarm System,1002,Other Prem,OthPrem,13/05/2022,V832609,235.3,ADT Fire & Security Plc,424.24
Broxtowe Borough Council,http://statistics.data.gov.uk/id/local-authority/37UD,Works,WORKS,Repairs & Maintenance,REPMAIN,Strategic Director / Enviromental Services,Alarm System,1002,Other Prem,OthPrem,13/05/2022,V832608,118.23,ADT Fire & Security Plc,424.24
Broxtowe Borough Council,http://statistics.data.gov.uk/id/local-authority/37UD,Works,WORKS,Repairs & Maintenance,REPMAIN,Strategic Director / Enviromental Services,Alarm System,1002,Other Prem,OthPrem,29/07/2022,V869882,175.09,ADT Fire & Security Plc,493.86
Broxtowe Borough Council,http://statistics.data.gov.uk/id/local-authority/37UD,Works,WORKS,Repairs & Maintenance,REPMAIN,Strategic Director / Enviromental Services,Alarm System,1002,Other Prem,OthPrem,29/07/2022,V869882,118.23,ADT Fire & Security Plc,493.86
Broxtowe Borough Council,http://statistics.data.gov.uk/id/local-authority/37UD,Works,WORKS,Repairs & Maintenance,REPMAIN,Strategic Director / Enviromental Services,Alarm System,1002,Other Prem,OthPrem,29/07/2022,V869797,118.23,ADT Fire & Security Plc,493.86
Broxtowe Borough Council,http://statistics.data.gov.uk/id/local-authority/37UD,Works,WORKS,Repairs & Maintenance,REPMAIN,Strategic Director / Enviromental Services,Alarm System,1002,Other Prem,OthPrem,21/10/2022,V883219,175.09,ADT Fire & Security Plc,351.98
Broxtowe Borough Council,http://statistics.data.gov.uk/id/local-authority/37UD,Works,WORKS,Repairs & Maintenance,REPMAIN,Strategic Director / Enviromental Services,Alarm System,1002,Other Prem,OthPrem,21/10/2022,V883219,118.23,ADT Fire & Security Plc,351.98
Broxtowe Borough Council,http://statistics.data.gov.uk/id/local-authority/37UD,Works,WORKS,Repairs & Maintenance,REPMAIN,Strategic Director / Enviromental Services,Alarm System,1002,Other Prem,OthPrem,02/12/2022,V887078,620.05,ADT Fire & Security Plc,1027.82
Broxtowe Borough Council,http://statistics.data.gov.uk/id/local-authority/37UD,Works,WORKS,Repairs & Maintenance,REPMAIN,Strategic Director / Enviromental Services,Alarm System,1002,Other Prem,OthPrem,02/12/2022,V886216,118.23,ADT Fire & Security Plc,1027.82
Broxtowe Borough Council,http://statistics.data.gov.uk/id/local-authority/37UD,Works,WORKS,Repairs & Maintenance,REPMAIN,Strategic Director / Enviromental Services,Alarm System,1002,Other Prem,OthPrem,02/12/2022,V886215,118.23,ADT Fire & Security Plc,1027.82
Broxtowe Borough Council,http://statistics.data.gov.uk/id/local-authority/37UD,Works,WORKS,Repairs & Maintenance,REPMAIN,Strategic Director / Enviromental Services,Alarm System,1002,Other Prem,OthPrem,13/01/2023,V890856,175.09,ADT Fire & Security Plc,372.56
Broxtowe Borough Council,http://statistics.data.gov.uk/id/local-authority/37UD,Works,WORKS,Repairs & Maintenance,REPMAIN,Strategic Director / Enviromental Services,Alarm System,1002,Other Prem,OthPrem,13/01/2023,V890856,135.38,ADT Fire & Security Plc,372.56
Broxtowe Borough Council,http://statistics.data.gov.uk/id/local-authority/37UD,Technical Works,TW,Technical Works,TW,Executive Director / Enviromental Services,New construction,9002,Capital Expenditure,CapExp,10/03/2023,V895553,1593.78,ADT Fire & Security Plc,1912.54
Broxtowe Borough Council,http://statistics.data.gov.uk/id/local-authority/37UD,Works,WORKS,Repairs & Maintenance,REPMAIN,Executive Director / Enviromental Services,Alarm System,1002,Other Prem,OthPrem,21/04/2023,V898727,473.5,ADT Fire & Security Plc,568.2
Broxtowe Borough Council,http://statistics.data.gov.uk/id/local-authority/37UD,Works,WORKS,Repairs & Maintenance,REPMAIN,Executive Director / Enviromental Services,Alarm System,1002,Other Prem,OthPrem,19/05/2023,V901894,216.63,ADT Fire & Security Plc,259.96
Broxtowe Borough Council,http://statistics.data.gov.uk/id/local-authority/37UD,Works,WORKS,Repairs & Maintenance,REPMAIN,Executive Director / Environmental Business and Project,Alarm System,1002,Maintenance,Maint,28/07/2023,V906302,228.01,ADT Fire & Security Plc,273.61
Broxtowe Borough Council,http://statistics.data.gov.uk/id/local-authority/37UD,Head of Environment,H33,Head of Environment,S332,Executive Director / Environmental Business and Project,Alarm System,1002,Maintenance,Maint,03/11/2023,V915293,228.01,ADT Fire & Security Plc,273.61
Broxtowe Borough Council,http://statistics.data.gov.uk/id/local-authority/37UD,Head of Environment,H33,Head of Environment,S332,Executive Director / Environmental Business and Project,Alarm System,1002,Maintenance,Maint,24/11/2023,V916405,415.61,ADT Fire & Security Plc,498.73
Broxtowe Borough Council,http://statistics.data.gov.uk/id/local-authority/37UD,Head of Environment,H33,Head of Environment,S332,Executive Director / Environmental Business and Project,Alarm System,1002,Maintenance,Maint,19/01/2024,V920975,239.51,ADT Fire & Security Plc,287.41
Broxtowe Borough Council,http://statistics.data.gov.uk/id/local-authority/37UD,Head of Environment,H33,Head of Environment,S332,Executive Director / Enviromental Services,Alarm System,1002,Maintenance,Maint,22/03/2024,V926675,887.91,ADT Fire & Security Plc,1065.49
Broxtowe Borough Council,http://statistics.data.gov.uk/id/local-authority/37UD,Bramcote Crematorium,BCREM,Bramcote Crematorium,BCREM,Strategic Director / Bramcote Crem,Book of Remembrance,3310,Other Supplies & Services,OtherSS,15/04/2022,V818113,1257.28,Advantedge Commerical Finance Limited,1566.24
Broxtowe Borough Council,http://statistics.data.gov.uk/id/local-authority/37UD,Bramcote Crematorium,BCREM,Bramcote Crematorium,BCREM,Strategic Director / Bramcote Crem,Book of Remembrance,3310,Other Supplies & Services,OtherSS,15/04/2022,V818257,47.92,Advantedge Commerical Finance Limited,1566.24
Broxtowe Borough Council,http://statistics.data.gov.uk/id/local-authority/37UD,Bramcote Crematorium,BCREM,Bramcote Crematorium,BCREM,Strategic Director / Bramcote Crem,Book of Remembrance,3310,Other Supplies & Services,OtherSS,15/07/2022,V868836,309.6,Advantedge Commerical Finance Limited,779.94
Broxtowe Borough Council,http://statistics.data.gov.uk/id/local-authority/37UD,Bramcote Crematorium,BCREM,Bramcote Crematorium,BCREM,Strategic Director / Bramcote Crem,Book of Remembrance,3310,Other Supplies & Services,OtherSS,15/07/2022,V868836,125.84,Advantedge Commerical Finance Limited,779.94
Broxtowe Borough Council,http://statistics.data.gov.uk/id/local-authority/37UD,Bramcote Crematorium,BCREM,Bramcote Crematorium,BCREM,Strategic Director / Bramcote Crem,Book of Remembrance,3310,Other Supplies & Services,OtherSS,15/07/2022,V868836,91.1,Advantedge Commerical Finance Limited,779.94
Broxtowe Borough Council,http://statistics.data.gov.uk/id/local-authority/37UD,Bramcote Crematorium,BCREM,Bramcote Crematorium,BCREM,Strategic Director / Bramcote Crem,Book of Remembrance,3310,Other Supplies & Services,OtherSS,15/07/2022,V868836,85.44,Advantedge Commerical Finance Limited,779.94
Broxtowe Borough Council,http://statistics.data.gov.uk/id/local-authority/37UD,Bramcote Crematorium,BCREM,Bramcote Crematorium,BCREM,Strategic Director / Bramcote Crem,Book of Remembrance,3310,Other Supplies & Services,OtherSS,15/07/2022,V868836,37.97,Advantedge Commerical Finance Limited,779.94
Broxtowe Borough Council,http://statistics.data.gov.uk/id/local-authority/37UD,Bramcote Crematorium,BCREM,Bramcote Crematorium,BCREM,Strategic Director / Bramcote Crem,Book of Remembrance,3310,Other Supplies & Services,OtherSS,12/08/2022,V874932,650.18,Advantedge Commerical Finance Limited,1237.37
Broxtowe Borough Council,http://statistics.data.gov.uk/id/local-authority/37UD,Bramcote Crematorium,BCREM,Bramcote Crematorium,BCREM,Strategic Director / Bramcote Crem,Book of Remembrance,3310,Other Supplies & Services,OtherSS,12/08/2022,V874922,94.38,Advantedge Commerical Finance Limited,1237.37
Broxtowe Borough Council,http://statistics.data.gov.uk/id/local-authority/37UD,Bramcote Crematorium,BCREM,Bramcote Crematorium,BCREM,Strategic Director / Bramcote Crem,Book of Remembrance,3310,Other Supplies & Services,OtherSS,12/08/2022,V874922,87.72,Advantedge Commerical Finance Limited,1237.37
Broxtowe Borough Council,http://statistics.data.gov.uk/id/local-authority/37UD,Bramcote Crematorium,BCREM,Bramcote Crematorium,BCREM,Strategic Director / Bramcote Crem,Book of Remembrance,3310,Other Supplies & Services,OtherSS,12/08/2022,V874931,50.68,Advantedge Commerical Finance Limited,1237.37
Broxtowe Borough Council,http://statistics.data.gov.uk/id/local-authority/37UD,Bramcote Crematorium,BCREM,Bramcote Crematorium,BCREM,Strategic Director / Bramcote Crem,Book of Remembrance,3310,Other Supplies & Services,OtherSS,12/08/2022,V874922,45.55,Advantedge Commerical Finance Limited,1237.37
Broxtowe Borough Council,http://statistics.data.gov.uk/id/local-authority/37UD,Bramcote Crematorium,BCREM,Bramcote Crematorium,BCREM,Strategic Director / Bramcote Crem,Book of Remembrance,3310,Other Supplies & Services,OtherSS,12/08/2022,V874922,28.48,Advantedge Commerical Finance Limited,1237.37
Broxtowe Borough Council,http://statistics.data.gov.uk/id/local-authority/37UD,Bramcote Crematorium,BCREM,Bramcote Crematorium,BCREM,Strategic Director / Bramcote Crem,Book of Remembrance,3310,Other Supplies & Services,OtherSS,12/08/2022,V874923,28.04,Advantedge Commerical Finance Limited,1237.37
Broxtowe Borough Council,http://statistics.data.gov.uk/id/local-authority/37UD,Bramcote Crematorium,BCREM,Bramcote Crematorium,BCREM,Strategic Director / Bramcote Crem,Book of Remembrance,3310,Other Supplies & Services,OtherSS,12/08/2022,V874923,18.4,Advantedge Commerical Finance Limited,1237.37
Broxtowe Borough Council,http://statistics.data.gov.uk/id/local-authority/37UD,Bramcote Crematorium,BCREM,Bramcote Crematorium,BCREM,Strategic Director / Bramcote Crem,Book of Remembrance,3310,Other Supplies & Services,OtherSS,12/08/2022,V874931,12.9,Advantedge Commerical Finance Limited,1237.37
Broxtowe Borough Council,http://statistics.data.gov.uk/id/local-authority/37UD,Bramcote Crematorium,BCREM,Bramcote Crematorium,BCREM,Strategic Director / Bramcote Crem,Book of Remembrance,3310,Other Supplies & Services,OtherSS,12/08/2022,V874931,8.07,Advantedge Commerical Finance Limited,1237.37
Broxtowe Borough Council,http://statistics.data.gov.uk/id/local-authority/37UD,Bramcote Crematorium,BCREM,Bramcote Crematorium,BCREM,Strategic Director / Bramcote Crem,Book of Remembrance,3310,Other Supplies & Services,OtherSS,12/08/2022,V874931,3.56,Advantedge Commerical Finance Limited,1237.37
Broxtowe Borough Council,http://statistics.data.gov.uk/id/local-authority/37UD,Bramcote Crematorium,BCREM,Bramcote Crematorium,BCREM,Strategic Director / Bramcote Crem,Book of Remembrance,3310,Other Supplies & Services,OtherSS,12/08/2022,V874923,3.17,Advantedge Commerical Finance Limited,1237.37
Broxtowe Borough Council,http://statistics.data.gov.uk/id/local-authority/37UD,Bramcote Crematorium,BCREM,Bramcote Crematorium,BCREM,Strategic Director / Bramcote Crem,Book of Remembrance,3310,Other Supplies & Services,OtherSS,30/09/2022,V881278,1005.53,Advantedge Commerical Finance Limited,1206.63
Broxtowe Borough Council,http://statistics.data.gov.uk/id/local-authority/37UD,Bramcote Crematorium,BCREM,Bramcote Crematorium,BCREM,Strategic Director / Bramcote Crem,Book of Remembrance,3310,Other Supplies & Services,OtherSS,16/12/2022,V888580,372.81,Advantedge Commerical Finance Limited,1114.26
Broxtowe Borough Council,http://statistics.data.gov.uk/id/local-authority/37UD,Bramcote Crematorium,BCREM,Bramcote Crematorium,BCREM,Strategic Director / Bramcote Crem,Book of Remembrance,3310,Other Supplies & Services,OtherSS,16/12/2022,V888580,246.68,Advantedge Commerical Finance Limited,1114.26
Broxtowe Borough Council,http://statistics.data.gov.uk/id/local-authority/37UD,Bramcote Crematorium,BCREM,Bramcote Crematorium,BCREM,Strategic Director / Bramcote Crem,Book of Remembrance,3310,Other Supplies & Services,OtherSS,16/12/2022,V888580,119.7,Advantedge Commerical Finance Limited,1114.26
Broxtowe Borough Council,http://statistics.data.gov.uk/id/local-authority/37UD,Bramcote Crematorium,BCREM,Bramcote Crematorium,BCREM,Strategic Director / Bramcote Crem,Book of Remembrance,3310,Other Supplies & Services,OtherSS,16/12/2022,V888580,102.04,Advantedge Commerical Finance Limited,1114.26
Broxtowe Borough Council,http://statistics.data.gov.uk/id/local-authority/37UD,Bramcote Crematorium,BCREM,Bramcote Crematorium,BCREM,Strategic Director / Bramcote Crem,Book of Remembrance,3310,Other Supplies & Services,OtherSS,16/12/2022,V888580,87.32,Advantedge Commerical Finance Limited,1114.26
Broxtowe Borough Council,http://statistics.data.gov.uk/id/local-authority/37UD,Bramcote Crematorium,BCREM,Bramcote Crematorium,BCREM,Executive Director / Bramcote Crem,Book of Remembrance,3310,Other Supplies & Services,OtherSS,31/03/2023,V898179,404.6,Advantedge Commerical Finance Limited,1359.8
Broxtowe Borough Council,http://statistics.data.gov.uk/id/local-authority/37UD,Bramcote Crematorium,BCREM,Bramcote Crematorium,BCREM,Executive Director / Bramcote Crem,Book of Remembrance,3310,Other Supplies & Services,OtherSS,31/03/2023,V898179,306.12,Advantedge Commerical Finance Limited,1359.8
Broxtowe Borough Council,http://statistics.data.gov.uk/id/local-authority/37UD,Bramcote Crematorium,BCREM,Bramcote Crematorium,BCREM,Executive Director / Bramcote Crem,Book of Remembrance,3310,Other Supplies & Services,OtherSS,31/03/2023,V898179,211.44,Advantedge Commerical Finance Limited,1359.8
Broxtowe Borough Council,http://statistics.data.gov.uk/id/local-authority/37UD,Bramcote Crematorium,BCREM,Bramcote Crematorium,BCREM,Executive Director / Bramcote Crem,Book of Remembrance,3310,Other Supplies & Services,OtherSS,31/03/2023,V898179,123.69,Advantedge Commerical Finance Limited,1359.8
Broxtowe Borough Council,http://statistics.data.gov.uk/id/local-authority/37UD,Bramcote Crematorium,BCREM,Bramcote Crematorium,BCREM,Executive Director / Bramcote Crem,Book of Remembrance,3310,Other Supplies & Services,OtherSS,31/03/2023,V898179,87.32,Advantedge Commerical Finance Limited,1359.8
Broxtowe Borough Council,http://statistics.data.gov.uk/id/local-authority/37UD,Bramcote Crematorium,BCREM,Bramcote Crematorium,BCREM,Executive Director / Bramcote Crem,Book of Remembrance,3310,Other Supplies & Services,OtherSS,23/06/2023,V904446,295.16,Advantedge Commerical Finance Limited,944.11
Broxtowe Borough Council,http://statistics.data.gov.uk/id/local-authority/37UD,Bramcote Crematorium,BCREM,Bramcote Crematorium,BCREM,Executive Director / Bramcote Crem,Book of Remembrance,3310,Other Supplies & Services,OtherSS,23/06/2023,V904446,166.08,Advantedge Commerical Finance Limited,944.11
Broxtowe Borough Council,http://statistics.data.gov.uk/id/local-authority/37UD,Bramcote Crematorium,BCREM,Bramcote Crematorium,BCREM,Executive Director / Bramcote Crem,Book of Remembrance,3310,Other Supplies & Services,OtherSS,23/06/2023,V904446,94.74,Advantedge Commerical Finance Limited,944.11
Broxtowe Borough Council,http://statistics.data.gov.uk/id/local-authority/37UD,Bramcote Crematorium,BCREM,Bramcote Crematorium,BCREM,Executive Director / Bramcote Crem,Book of Remembrance,3310,Other Supplies & Services,OtherSS,23/06/2023,V904446,86.6,Advantedge Commerical Finance Limited,944.11
Broxtowe Borough Council,http://statistics.data.gov.uk/id/local-authority/37UD,Bramcote Crematorium,BCREM,Bramcote Crematorium,BCREM,Executive Director / Bramcote Crem,Book of Remembrance,3310,Other Supplies & Services,OtherSS,23/06/2023,V904446,76.48,Advantedge Commerical Finance Limited,944.11
Broxtowe Borough Council,http://statistics.data.gov.uk/id/local-authority/37UD,Bramcote Crematorium,BCREM,Bramcote Crematorium,BCREM,Executive Director / Bramcote Crem,Book of Remembrance,3310,Other Supplies & Services,OtherSS,23/06/2023,V904427,67.69,Advantedge Commerical Finance Limited,944.11
Broxtowe Borough Council,http://statistics.data.gov.uk/id/local-authority/37UD,Bramcote Crematorium,BCREM,Bramcote Crematorium,BCREM,Executive Director / Bramcote Crem,Book of Remembrance,3310,Other Supplies & Services,OtherSS,15/09/2023,V911358,1154.68,Advantedge Commerical Finance Limited,1385.62
Broxtowe Borough Council,http://statistics.data.gov.uk/id/local-authority/37UD,Bramcote Crematorium,BCREM,Bramcote Crematorium,BCREM,Executive Director / Bramcote Crem,Book of Remembrance,3310,Other Supplies & Services,OtherSS,08/12/2023,V917924,1006.31,Advantedge Commerical Finance Limited,1207.58
Broxtowe Borough Council,http://statistics.data.gov.uk/id/local-authority/37UD,Bramcote Crematorium,BCREM,Bramcote Crematorium,BCREM,Executive Director / Bramcote Crem,Book of Remembrance,3310,Other Supplies & Services,OtherSS,22/03/2024,V926435,1356.72,Advantedge Commerical Finance Limited,1722.04
Broxtowe Borough Council,http://statistics.data.gov.uk/id/local-authority/37UD,Bramcote Crematorium,BCREM,Bramcote Crematorium,BCREM,Executive Director / Bramcote Crem,Book of Remembrance,3310,Other Supplies & Services,OtherSS,22/03/2024,V926431,78.3,Advantedge Commerical Finance Limited,1722.04
Broxtowe Borough Council,http://statistics.data.gov.uk/id/local-authority/37UD,Technical,TECHNICA,Highways,HIGHWYS,Strategic Director / Enviromental Services,Repairs / Servicing  - Materials,5520,Transport Account,TranAcc,15/04/2022,V818187,534.66,Aebi Schmidt UK Ltd,927.69
Broxtowe Borough Council,http://statistics.data.gov.uk/id/local-authority/37UD,Technical,TECHNICA,Highways,HIGHWYS,Strategic Director / Enviromental Services,Repairs / Servicing  - Materials,5520,Transport Account,TranAcc,15/04/2022,V818422,238.42,Aebi Schmidt UK Ltd,927.69
Broxtowe Borough Council,http://statistics.data.gov.uk/id/local-authority/37UD,Technical,TECHNICA,Highways,HIGHWYS,Strategic Director / Enviromental Services,Repairs / Servicing - Labour,5510,Transport Account,TranAcc,20/05/2022,V838986,534.66,Aebi Schmidt UK Ltd,641.59
Broxtowe Borough Council,http://statistics.data.gov.uk/id/local-authority/37UD,Technical,TECHNICA,Highways,HIGHWYS,Strategic Director / Enviromental Services,Repairs / Servicing - Labour,5510,Transport Account,TranAcc,10/06/2022,V863028,534.66,Aebi Schmidt UK Ltd,641.59
Broxtowe Borough Council,http://statistics.data.gov.uk/id/local-authority/37UD,Works Directorate,DIRWORKS,Works Directorate,DIRWORKS,Strategic Director / Transport T&W,Course & Examination Fees,720,Indirect Employee Exp Oncosts,Oncosts,24/06/2022,V865815,1055,Aebi Schmidt UK Ltd,1266
Broxtowe Borough Council,http://statistics.data.gov.uk/id/local-authority/37UD,Technical,TECHNICA,Highways,HIGHWYS,Strategic Director / Enviromental Services,Repairs / Servicing - Labour,5510,Transport Account,TranAcc,08/07/2022,V867887,534.66,Aebi Schmidt UK Ltd,641.59
Broxtowe Borough Council,http://statistics.data.gov.uk/id/local-authority/37UD,Technical Works,TW,Technical Works,TW,Strategic Director / Transport T&W,Vehicles & Plant,9003,Capital Expenditure,CapExp,23/09/2022,V880901,121000,Aebi Schmidt UK Ltd,146483.18
Broxtowe Borough Council,http://statistics.data.gov.uk/id/local-authority/37UD,Technical,TECHNICA,Highways,HIGHWYS,Environment - Depot / Transport,Repairs / Servicing  - Materials,5520,Transport Account,TranAcc,23/09/2022,V880780,534.66,Aebi Schmidt UK Ltd,146483.18
Broxtowe Borough Council,http://statistics.data.gov.uk/id/local-authority/37UD,Technical,TECHNICA,Highways,HIGHWYS,Environment - Depot / Transport,Repairs / Servicing  - Materials,5520,Transport Account,TranAcc,23/09/2022,V880784,534.66,Aebi Schmidt UK Ltd,146483.18
Broxtowe Borough Council,http://statistics.data.gov.uk/id/local-authority/37UD,Technical,TECHNICA,Highways,HIGHWYS,Environment - Depot / Transport,Repairs / Servicing  - Materials,5520,Transport Account,TranAcc,07/10/2022,V882496,534.66,Aebi Schmidt UK Ltd,641.59
Broxtowe Borough Council,http://statistics.data.gov.uk/id/local-authority/37UD,Technical,TECHNICA,Highways,HIGHWYS,Environment - Depot / Transport,Repairs / Servicing  - Materials,5520,Transport Account,TranAcc,28/10/2022,V883881,254.94,Aebi Schmidt UK Ltd,336.18
Broxtowe Borough Council,http://statistics.data.gov.uk/id/local-authority/37UD,Technical,TECHNICA,Highways,HIGHWYS,Environment - Depot / Transport,Repairs / Servicing  - Materials,5520,Transport Account,TranAcc,28/10/2022,V883881,25.21,Aebi Schmidt UK Ltd,336.18
Broxtowe Borough Council,http://statistics.data.gov.uk/id/local-authority/37UD,Technical,TECHNICA,Highways,HIGHWYS,Environment - Depot / Transport,Repairs / Servicing  - Materials,5520,Transport Account,TranAcc,11/11/2022,V885542,534.66,Aebi Schmidt UK Ltd,1312.47
Broxtowe Borough Council,http://statistics.data.gov.uk/id/local-authority/37UD,Technical,TECHNICA,Highways,HIGHWYS,Environment - Depot / Transport,Repairs / Servicing  - Materials,5520,Transport Account,TranAcc,11/11/2022,V885537,500.12,Aebi Schmidt UK Ltd,1312.47
Broxtowe Borough Council,http://statistics.data.gov.uk/id/local-authority/37UD,Technical,TECHNICA,Highways,HIGHWYS,Environment - Depot / Transport,Repairs / Servicing  - Materials,5520,Transport Account,TranAcc,11/11/2022,V885537,58.95,Aebi Schmidt UK Ltd,1312.47
Broxtowe Borough Council,http://statistics.data.gov.uk/id/local-authority/37UD,Technical,TECHNICA,Highways,HIGHWYS,Environment - Depot / Transport,Repairs / Servicing  - Materials,5520,Transport Account,TranAcc,09/12/2022,V888261,534.66,Aebi Schmidt UK Ltd,641.59
Broxtowe Borough Council,http://statistics.data.gov.uk/id/local-authority/37UD,Technical,TECHNICA,Highways,HIGHWYS,Environment - Depot / Transport,Repairs / Servicing  - Materials,5520,Transport Account,TranAcc,06/01/2023,V890381,456.88,Aebi Schmidt UK Ltd,1098.37
Broxtowe Borough Council,http://statistics.data.gov.uk/id/local-authority/37UD,Technical,TECHNICA,Highways,HIGHWYS,Environment - Depot / Transport,Repairs / Servicing  - Materials,5520,Transport Account,TranAcc,06/01/2023,V890381,250.58,Aebi Schmidt UK Ltd,1098.37
Broxtowe Borough Council,http://statistics.data.gov.uk/id/local-authority/37UD,Technical,TECHNICA,Highways,HIGHWYS,Environment - Depot / Transport,Repairs / Servicing  - Materials,5520,Transport Account,TranAcc,06/01/2023,V890382,81.94,Aebi Schmidt UK Ltd,1098.37
Broxtowe Borough Council,http://statistics.data.gov.uk/id/local-authority/37UD,Technical,TECHNICA,Highways,HIGHWYS,Environment - Depot / Transport,Repairs / Servicing  - Materials,5520,Transport Account,TranAcc,06/01/2023,V890382,79.2,Aebi Schmidt UK Ltd,1098.37
Broxtowe Borough Council,http://statistics.data.gov.uk/id/local-authority/37UD,Technical,TECHNICA,Highways,HIGHWYS,Environment - Depot / Transport,Repairs / Servicing  - Materials,5520,Transport Account,TranAcc,06/01/2023,V890381,18.85,Aebi Schmidt UK Ltd,1098.37
Broxtowe Borough Council,http://statistics.data.gov.uk/id/local-authority/37UD,Technical,TECHNICA,Highways,HIGHWYS,Environment - Depot / Transport,Repairs / Servicing  - Materials,5520,Transport Account,TranAcc,06/01/2023,V890382,16.75,Aebi Schmidt UK Ltd,1098.37
Broxtowe Borough Council,http://statistics.data.gov.uk/id/local-authority/37UD,Technical,TECHNICA,Highways,HIGHWYS,Environment - Depot / Transport,Repairs / Servicing  - Materials,5520,Transport Account,TranAcc,06/01/2023,V890381,3.88,Aebi Schmidt UK Ltd,1098.37
Broxtowe Borough Council,http://statistics.data.gov.uk/id/local-authority/37UD,Technical,TECHNICA,Highways,HIGHWYS,Environment - Depot / Transport,Repairs / Servicing  - Materials,5520,Transport Account,TranAcc,06/01/2023,V890382,2.74,Aebi Schmidt UK Ltd,1098.37
Broxtowe Borough Council,http://statistics.data.gov.uk/id/local-authority/37UD,Technical,TECHNICA,Highways,HIGHWYS,Environment - Depot / Transport,Repairs / Servicing  - Materials,5520,Transport Account,TranAcc,06/01/2023,V890382,2.39,Aebi Schmidt UK Ltd,1098.37
Broxtowe Borough Council,http://statistics.data.gov.uk/id/local-authority/37UD,Technical,TECHNICA,Highways,HIGHWYS,Environment - Depot / Transport,Repairs / Servicing  - Materials,5520,Transport Account,TranAcc,06/01/2023,V890382,2.1,Aebi Schmidt UK Ltd,1098.37
Broxtowe Borough Council,http://statistics.data.gov.uk/id/local-authority/37UD,Technical,TECHNICA,Highways,HIGHWYS,Environment - Depot / Transport,Repairs / Servicing  - Materials,5520,Transport Account,TranAcc,13/01/2023,V890541,534.66,Aebi Schmidt UK Ltd,641.59
Broxtowe Borough Council,http://statistics.data.gov.uk/id/local-authority/37UD,Technical,TECHNICA,Highways,HIGHWYS,Environment - Depot / Transport,Repairs / Servicing  - Materials,5520,Transport Account,TranAcc,10/03/2023,V895851,534.66,Aebi Schmidt UK Ltd,641.59
Broxtowe Borough Council,http://statistics.data.gov.uk/id/local-authority/37UD,Technical,TECHNICA,Highways,HIGHWYS,Environment - Depot / Transport,Repairs / Servicing  - Materials,5520,Transport Account,TranAcc,11/04/2023,V898458,534.66,Aebi Schmidt UK Ltd,641.59
Broxtowe Borough Council,http://statistics.data.gov.uk/id/local-authority/37UD,Technical,TECHNICA,Highways,HIGHWYS,Environment - Depot / Transport,Repairs / Servicing  - Materials,5520,Transport Account,TranAcc,21/04/2023,V899431,515.12,Aebi Schmidt UK Ltd,1953.71
Broxtowe Borough Council,http://statistics.data.gov.uk/id/local-authority/37UD,Technical,TECHNICA,Highways,HIGHWYS,Environment - Depot / Transport,Repairs / Servicing  - Materials,5520,Transport Account,TranAcc,21/04/2023,V899431,482.18,Aebi Schmidt UK Ltd,1953.71
Broxtowe Borough Council,http://statistics.data.gov.uk/id/local-authority/37UD,Technical,TECHNICA,Highways,HIGHWYS,Environment - Depot / Transport,Repairs / Servicing  - Materials,5520,Transport Account,TranAcc,21/04/2023,V899431,260.62,Aebi Schmidt UK Ltd,1953.71
Broxtowe Borough Council,http://statistics.data.gov.uk/id/local-authority/37UD,Technical,TECHNICA,Highways,HIGHWYS,Environment - Depot / Transport,Repairs / Servicing  - Materials,5520,Transport Account,TranAcc,21/04/2023,V899431,137.73,Aebi Schmidt UK Ltd,1953.71
Broxtowe Borough Council,http://statistics.data.gov.uk/id/local-authority/37UD,Technical,TECHNICA,Highways,HIGHWYS,Environment - Depot / Transport,Repairs / Servicing  - Materials,5520,Transport Account,TranAcc,21/04/2023,V899431,98.1,Aebi Schmidt UK Ltd,1953.71
Broxtowe Borough Council,http://statistics.data.gov.uk/id/local-authority/37UD,Technical,TECHNICA,Highways,HIGHWYS,Environment - Depot / Transport,Repairs / Servicing  - Materials,5520,Transport Account,TranAcc,21/04/2023,V899431,65.53,Aebi Schmidt UK Ltd,1953.71
Broxtowe Borough Council,http://statistics.data.gov.uk/id/local-authority/37UD,Technical,TECHNICA,Highways,HIGHWYS,Environment - Depot / Transport,Repairs / Servicing  - Materials,5520,Transport Account,TranAcc,21/04/2023,V899431,45.75,Aebi Schmidt UK Ltd,1953.71
Broxtowe Borough Council,http://statistics.data.gov.uk/id/local-authority/37UD,Technical,TECHNICA,Highways,HIGHWYS,Environment - Depot / Transport,Repairs / Servicing  - Materials,5520,Transport Account,TranAcc,21/04/2023,V899431,15.74,Aebi Schmidt UK Ltd,1953.71
Broxtowe Borough Council,http://statistics.data.gov.uk/id/local-authority/37UD,Technical,TECHNICA,Highways,HIGHWYS,Environment - Depot / Transport,Repairs / Servicing  - Materials,5520,Transport Account,TranAcc,21/04/2023,V899431,7.32,Aebi Schmidt UK Ltd,1953.71
Broxtowe Borough Council,http://statistics.data.gov.uk/id/local-authority/37UD,Technical,TECHNICA,Highways,HIGHWYS,Environment - Depot / Transport,Repairs / Servicing  - Materials,5520,Transport Account,TranAcc,19/05/2023,V901735,534.66,Aebi Schmidt UK Ltd,641.59
Broxtowe Borough Council,http://statistics.data.gov.uk/id/local-authority/37UD,Technical,TECHNICA,Highways,HIGHWYS,Environment - Depot / Transport,Repairs / Servicing  - Materials,5520,Transport Account,TranAcc,09/06/2023,V903642,534.66,Aebi Schmidt UK Ltd,641.59
Broxtowe Borough Council,http://statistics.data.gov.uk/id/local-authority/37UD,Technical Works,TW,Technical Works,TW,Executive Director / Transport T&W,Vehicles & Plant,9003,Capital Expenditure,CapExp,30/06/2023,V902023,72147,Aebi Schmidt UK Ltd,89273.71
Broxtowe Borough Council,http://statistics.data.gov.uk/id/local-authority/37UD,Technical,TECHNICA,Highways,HIGHWYS,Environment - Depot / Transport,Repairs / Servicing  - Materials,5520,Transport Account,TranAcc,30/06/2023,V904987,862.12,Aebi Schmidt UK Ltd,89273.71
Broxtowe Borough Council,http://statistics.data.gov.uk/id/local-authority/37UD,Technical,TECHNICA,Highways,HIGHWYS,Environment - Depot / Transport,Repairs / Servicing  - Materials,5520,Transport Account,TranAcc,30/06/2023,V904987,364.92,Aebi Schmidt UK Ltd,89273.71
Broxtowe Borough Council,http://statistics.data.gov.uk/id/local-authority/37UD,Technical,TECHNICA,Highways,HIGHWYS,Environment - Depot / Transport,Repairs / Servicing  - Materials,5520,Transport Account,TranAcc,30/06/2023,V904751,281.28,Aebi Schmidt UK Ltd,89273.71
Broxtowe Borough Council,http://statistics.data.gov.uk/id/local-authority/37UD,Technical,TECHNICA,Highways,HIGHWYS,Environment - Depot / Transport,Repairs / Servicing  - Materials,5520,Transport Account,TranAcc,30/06/2023,V904751,261.28,Aebi Schmidt UK Ltd,89273.71
Broxtowe Borough Council,http://statistics.data.gov.uk/id/local-authority/37UD,Technical Works,TW,Technical Works,TW,Executive Director / Transport T&W,Vehicles & Plant,9003,Capital Expenditure,CapExp,30/06/2023,V902023,165,Aebi Schmidt UK Ltd,89273.71
Broxtowe Borough Council,http://statistics.data.gov.uk/id/local-authority/37UD,Technical,TECHNICA,Highways,HIGHWYS,Environment - Depot / Transport,Repairs / Servicing  - Materials,5520,Transport Account,TranAcc,30/06/2023,V904751,95.55,Aebi Schmidt UK Ltd,89273.71
Broxtowe Borough Council,http://statistics.data.gov.uk/id/local-authority/37UD,Technical,TECHNICA,Highways,HIGHWYS,Environment - Depot / Transport,Repairs / Servicing  - Materials,5520,Transport Account,TranAcc,30/06/2023,V904903,71.86,Aebi Schmidt UK Ltd,89273.71
Broxtowe Borough Council,http://statistics.data.gov.uk/id/local-authority/37UD,Technical,TECHNICA,Highways,HIGHWYS,Environment - Depot / Transport,Repairs / Servicing  - Materials,5520,Transport Account,TranAcc,30/06/2023,V904910,68.23,Aebi Schmidt UK Ltd,89273.71
Broxtowe Borough Council,http://statistics.data.gov.uk/id/local-authority/37UD,Technical Works,TW,Technical Works,TW,Executive Director / Transport T&W,Vehicles & Plant,9003,Capital Expenditure,CapExp,30/06/2023,V902023,55,Aebi Schmidt UK Ltd,89273.71
Broxtowe Borough Council,http://statistics.data.gov.uk/id/local-authority/37UD,Technical,TECHNICA,Highways,HIGHWYS,Environment - Depot / Transport,Repairs / Servicing  - Materials,5520,Transport Account,TranAcc,30/06/2023,V904987,22,Aebi Schmidt UK Ltd,89273.71
Broxtowe Borough Council,http://statistics.data.gov.uk/id/local-authority/37UD,Technical,TECHNICA,Highways,HIGHWYS,Environment - Depot / Transport,Repairs / Servicing  - Materials,5520,Transport Account,TranAcc,30/06/2023,V904751,16.75,Aebi Schmidt UK Ltd,89273.71
Broxtowe Borough Council,http://statistics.data.gov.uk/id/local-authority/37UD,Technical,TECHNICA,Highways,HIGHWYS,Environment - Depot / Transport,Repairs / Servicing  - Materials,5520,Transport Account,TranAcc,30/06/2023,V904903,16.75,Aebi Schmidt UK Ltd,89273.71
Broxtowe Borough Council,http://statistics.data.gov.uk/id/local-authority/37UD,Technical,TECHNICA,Highways,HIGHWYS,Environment - Depot / Transport,Repairs / Servicing  - Materials,5520,Transport Account,TranAcc,30/06/2023,V904903,1.91,Aebi Schmidt UK Ltd,89273.71
Broxtowe Borough Council,http://statistics.data.gov.uk/id/local-authority/37UD,Technical,TECHNICA,Highways,HIGHWYS,Environment - Depot / Transport,Repairs / Servicing  - Materials,5520,Transport Account,TranAcc,30/06/2023,V904903,1.77,Aebi Schmidt UK Ltd,89273.71
Broxtowe Borough Council,http://statistics.data.gov.uk/id/local-authority/37UD,Technical,TECHNICA,Highways,HIGHWYS,Environment - Depot / Transport,Repairs / Servicing  - Materials,5520,Transport Account,TranAcc,14/07/2023,V906246,534.66,Aebi Schmidt UK Ltd,641.59
Broxtowe Borough Council,http://statistics.data.gov.uk/id/local-authority/37UD,Technical,TECHNICA,Highways,HIGHWYS,Environment - Depot / Transport,Repairs / Servicing  - Materials,5520,Transport Account,TranAcc,11/08/2023,V909044,534.66,Aebi Schmidt UK Ltd,641.59
Broxtowe Borough Council,http://statistics.data.gov.uk/id/local-authority/37UD,Technical,TECHNICA,Highways,HIGHWYS,Executive Director / Enviromental Services,Repairs / Servicing  - Materials,5520,Transport Account,TranAcc,25/08/2023,V909445,261.28,Aebi Schmidt UK Ltd,389.93
Broxtowe Borough Council,http://statistics.data.gov.uk/id/local-authority/37UD,Technical,TECHNICA,Highways,HIGHWYS,Environment - Depot / Transport,Repairs / Servicing  - Materials,5520,Transport Account,TranAcc,25/08/2023,V909529,261.28,Aebi Schmidt UK Ltd,389.93
Broxtowe Borough Council,http://statistics.data.gov.uk/id/local-authority/37UD,Technical,TECHNICA,Highways,HIGHWYS,Executive Director / Enviromental Services,Repairs / Servicing  - Materials,5520,Transport Account,TranAcc,25/08/2023,V909445,36.16,Aebi Schmidt UK Ltd,389.93
Broxtowe Borough Council,http://statistics.data.gov.uk/id/local-authority/37UD,Technical,TECHNICA,Highways,HIGHWYS,Environment - Depot / Transport,Repairs / Servicing  - Materials,5520,Transport Account,TranAcc,25/08/2023,V909529,36.16,Aebi Schmidt UK Ltd,389.93
Broxtowe Borough Council,http://statistics.data.gov.uk/id/local-authority/37UD,Technical,TECHNICA,Highways,HIGHWYS,Environment - Depot / Transport,Repairs / Servicing  - Materials,5520,Transport Account,TranAcc,25/08/2023,V909529,27.5,Aebi Schmidt UK Ltd,389.93
Broxtowe Borough Council,http://statistics.data.gov.uk/id/local-authority/37UD,Technical,TECHNICA,Highways,HIGHWYS,Executive Director / Enviromental Services,Repairs / Servicing  - Materials,5520,Transport Account,TranAcc,25/08/2023,V909445,16.75,Aebi Schmidt UK Ltd,389.93
Broxtowe Borough Council,http://statistics.data.gov.uk/id/local-authority/37UD,Technical,TECHNICA,Highways,HIGHWYS,Executive Director / Enviromental Services,Repairs / Servicing  - Materials,5520,Transport Account,TranAcc,25/08/2023,V909448,-16.75,Aebi Schmidt UK Ltd,389.93
Broxtowe Borough Council,http://statistics.data.gov.uk/id/local-authority/37UD,Technical,TECHNICA,Highways,HIGHWYS,Executive Director / Enviromental Services,Repairs / Servicing  - Materials,5520,Transport Account,TranAcc,25/08/2023,V909448,-36.16,Aebi Schmidt UK Ltd,389.93
Broxtowe Borough Council,http://statistics.data.gov.uk/id/local-authority/37UD,Technical,TECHNICA,Highways,HIGHWYS,Executive Director / Enviromental Services,Repairs / Servicing  - Materials,5520,Transport Account,TranAcc,25/08/2023,V909448,-261.28,Aebi Schmidt UK Ltd,389.93
Broxtowe Borough Council,http://statistics.data.gov.uk/id/local-authority/37UD,Head of Environment,H33,Transport and Stores Manager,S334,Environment - Depot / Transport,Repairs / Servicing  - Materials,5520,Transport Account,TranAcc,01/09/2023,V909867,408.84,Aebi Schmidt UK Ltd,554.39
Broxtowe Borough Council,http://statistics.data.gov.uk/id/local-authority/37UD,Head of Environment,H33,Transport and Stores Manager,S334,Environment - Depot / Transport,Repairs / Servicing  - Materials,5520,Transport Account,TranAcc,01/09/2023,V909867,53.15,Aebi Schmidt UK Ltd,554.39
Broxtowe Borough Council,http://statistics.data.gov.uk/id/local-authority/37UD,Head of Environment,H33,Transport and Stores Manager,S334,Environment - Depot / Transport,Repairs / Servicing  - Materials,5520,Transport Account,TranAcc,08/09/2023,V910980,534.66,Aebi Schmidt UK Ltd,1358.71
Broxtowe Borough Council,http://statistics.data.gov.uk/id/local-authority/37UD,Head of Environment,H33,Transport and Stores Manager,S334,Environment - Depot / Transport,Repairs / Servicing  - Materials,5520,Transport Account,TranAcc,08/09/2023,V910885,443.4,Aebi Schmidt UK Ltd,1358.71
Broxtowe Borough Council,http://statistics.data.gov.uk/id/local-authority/37UD,Head of Environment,H33,Transport and Stores Manager,S334,Environment - Depot / Transport,Repairs / Servicing  - Materials,5520,Transport Account,TranAcc,08/09/2023,V910885,154.2,Aebi Schmidt UK Ltd,1358.71
Broxtowe Borough Council,http://statistics.data.gov.uk/id/local-authority/37UD,Head of Environment,H33,Transport and Stores Manager,S334,Environment - Depot / Transport,Repairs / Servicing  - Materials,5520,Transport Account,TranAcc,27/10/2023,V914039,534.66,Aebi Schmidt UK Ltd,641.59
Broxtowe Borough Council,http://statistics.data.gov.uk/id/local-authority/37UD,Head of Environment,H33,Transport and Stores Manager,S334,Environment - Depot / Transport,Repairs / Servicing  - Materials,5520,Transport Account,TranAcc,03/11/2023,V915240,253.20,Aebi Schmidt UK Ltd,699.12
Broxtowe Borough Council,http://statistics.data.gov.uk/id/local-authority/37UD,Head of Environment,H33,Transport and Stores Manager,S334,Environment - Depot / Transport,Repairs / Servicing  - Materials,5520,Transport Account,TranAcc,03/11/2023,V915240,207.09,Aebi Schmidt UK Ltd,699.12
Broxtowe Borough Council,http://statistics.data.gov.uk/id/local-authority/37UD,Head of Environment,H33,Transport and Stores Manager,S334,Environment - Depot / Transport,Repairs / Servicing  - Materials,5520,Transport Account,TranAcc,03/11/2023,V915240,55.60,Aebi Schmidt UK Ltd,699.12
Broxtowe Borough Council,http://statistics.data.gov.uk/id/local-authority/37UD,Head of Environment,H33,Transport and Stores Manager,S334,Environment - Depot / Transport,Repairs / Servicing  - Materials,5520,Transport Account,TranAcc,03/11/2023,V915240,34.12,Aebi Schmidt UK Ltd,699.12
Broxtowe Borough Council,http://statistics.data.gov.uk/id/local-authority/37UD,Head of Environment,H33,Transport and Stores Manager,S334,Environment - Depot / Transport,Repairs / Servicing  - Materials,5520,Transport Account,TranAcc,03/11/2023,V915240,16.75,Aebi Schmidt UK Ltd,699.12
Broxtowe Borough Council,http://statistics.data.gov.uk/id/local-authority/37UD,Head of Environment,H33,Transport and Stores Manager,S334,Environment - Depot / Transport,Repairs / Servicing  - Materials,5520,Transport Account,TranAcc,03/11/2023,V915240,8.46,Aebi Schmidt UK Ltd,699.12
Broxtowe Borough Council,http://statistics.data.gov.uk/id/local-authority/37UD,Head of Environment,H33,Transport and Stores Manager,S334,Environment - Depot / Transport,Repairs / Servicing  - Materials,5520,Transport Account,TranAcc,03/11/2023,V915240,7.38,Aebi Schmidt UK Ltd,699.12
Broxtowe Borough Council,http://statistics.data.gov.uk/id/local-authority/37UD,Head of Environment,H33,Transport and Stores Manager,S334,Environment - Depot / Transport,Repairs / Servicing  - Materials,5520,Transport Account,TranAcc,17/11/2023,V916024,213.50,Aebi Schmidt UK Ltd,610.79
Broxtowe Borough Council,http://statistics.data.gov.uk/id/local-authority/37UD,Head of Environment,H33,Transport and Stores Manager,S334,Environment - Depot / Transport,Repairs / Servicing  - Materials,5520,Transport Account,TranAcc,17/11/2023,V916024,154.20,Aebi Schmidt UK Ltd,610.79
Broxtowe Borough Council,http://statistics.data.gov.uk/id/local-authority/37UD,Head of Environment,H33,Transport and Stores Manager,S334,Environment - Depot / Transport,Repairs / Servicing  - Materials,5520,Transport Account,TranAcc,17/11/2023,V916024,119.69,Aebi Schmidt UK Ltd,610.79
Broxtowe Borough Council,http://statistics.data.gov.uk/id/local-authority/37UD,Head of Environment,H33,Transport and Stores Manager,S334,Environment - Depot / Transport,Repairs / Servicing  - Materials,5520,Transport Account,TranAcc,17/11/2023,V916024,16.75,Aebi Schmidt UK Ltd,610.79
Broxtowe Borough Council,http://statistics.data.gov.uk/id/local-authority/37UD,Head of Environment,H33,Transport and Stores Manager,S334,Environment - Depot / Transport,Repairs / Servicing  - Materials,5520,Transport Account,TranAcc,17/11/2023,V916024,2.91,Aebi Schmidt UK Ltd,610.79
Broxtowe Borough Council,http://statistics.data.gov.uk/id/local-authority/37UD,Head of Environment,H33,Transport and Stores Manager,S334,Environment - Depot / Transport,Repairs / Servicing  - Materials,5520,Transport Account,TranAcc,17/11/2023,V916024,1.94,Aebi Schmidt UK Ltd,610.79
Broxtowe Borough Council,http://statistics.data.gov.uk/id/local-authority/37UD,Head of Environment,H33,Transport and Stores Manager,S334,Environment - Depot / Transport,Repairs / Servicing  - Materials,5520,Transport Account,TranAcc,24/11/2023,V916450,534.66,Aebi Schmidt UK Ltd,641.59
Broxtowe Borough Council,http://statistics.data.gov.uk/id/local-authority/37UD,Head of Environment,H33,Transport and Stores Manager,S334,Environment - Depot / Transport,Repairs / Servicing  - Materials,5520,Transport Account,TranAcc,08/12/2023,V918231,643.9,Aebi Schmidt UK Ltd,2118.76
Broxtowe Borough Council,http://statistics.data.gov.uk/id/local-authority/37UD,Head of Environment,H33,Transport and Stores Manager,S334,Environment - Depot / Transport,Repairs / Servicing  - Materials,5520,Transport Account,TranAcc,08/12/2023,V918231,613.26,Aebi Schmidt UK Ltd,2118.76
Broxtowe Borough Council,http://statistics.data.gov.uk/id/local-authority/37UD,Head of Environment,H33,Transport and Stores Manager,S334,Environment - Depot / Transport,Repairs / Servicing  - Materials,5520,Transport Account,TranAcc,08/12/2023,V918231,258.1,Aebi Schmidt UK Ltd,2118.76
Broxtowe Borough Council,http://statistics.data.gov.uk/id/local-authority/37UD,Head of Environment,H33,Transport and Stores Manager,S334,Environment - Depot / Transport,Repairs / Servicing  - Materials,5520,Transport Account,TranAcc,08/12/2023,V918204,128.78,Aebi Schmidt UK Ltd,2118.76
Broxtowe Borough Council,http://statistics.data.gov.uk/id/local-authority/37UD,Head of Environment,H33,Transport and Stores Manager,S334,Environment - Depot / Transport,Repairs / Servicing  - Materials,5520,Transport Account,TranAcc,08/12/2023,V918231,121.59,Aebi Schmidt UK Ltd,2118.76
Broxtowe Borough Council,http://statistics.data.gov.uk/id/local-authority/37UD,Head of Environment,H33,Transport and Stores Manager,S334,Environment - Depot / Transport,Repairs / Servicing  - Materials,5520,Transport Account,TranAcc,22/12/2023,V918900,534.66,Aebi Schmidt UK Ltd,641.59
Broxtowe Borough Council,http://statistics.data.gov.uk/id/local-authority/37UD,Head of Environment,H33,Head of Environment,S332,Executive Director / Transport T&W,Mandatory Training,0710,Indirect Employee Exp Oncosts,Oncosts,19/01/2024,V921264,964,Aebi Schmidt UK Ltd,1798.39
Broxtowe Borough Council,http://statistics.data.gov.uk/id/local-authority/37UD,Head of Environment,H33,Transport and Stores Manager,S334,Environment - Depot / Transport,Repairs / Servicing  - Materials,5520,Transport Account,TranAcc,19/01/2024,V921267,534.66,Aebi Schmidt UK Ltd,1798.39
Broxtowe Borough Council,http://statistics.data.gov.uk/id/local-authority/37UD,Head of Environment,H33,Transport and Stores Manager,S334,Environment - Depot / Transport,Repairs / Servicing  - Materials,5520,Transport Account,TranAcc,01/03/2024,V924343,534.66,Aebi Schmidt UK Ltd,954.13
Broxtowe Borough Council,http://statistics.data.gov.uk/id/local-authority/37UD,Head of Environment,H33,Transport and Stores Manager,S334,Environment - Depot / Transport,Repairs / Servicing  - Materials,5520,Transport Account,TranAcc,01/03/2024,V924328,204.42,Aebi Schmidt UK Ltd,954.13
Broxtowe Borough Council,http://statistics.data.gov.uk/id/local-authority/37UD,Head of Environment,H33,Transport and Stores Manager,S334,Environment - Depot / Transport,Repairs / Servicing  - Materials,5520,Transport Account,TranAcc,01/03/2024,V924328,39.28,Aebi Schmidt UK Ltd,954.13
Broxtowe Borough Council,http://statistics.data.gov.uk/id/local-authority/37UD,Head of Environment,H33,Transport and Stores Manager,S334,Environment - Depot / Transport,Repairs / Servicing  - Materials,5520,Transport Account,TranAcc,01/03/2024,V924328,16.75,Aebi Schmidt UK Ltd,954.13
Broxtowe Borough Council,http://statistics.data.gov.uk/id/local-authority/37UD,Head of Environment,H33,Transport and Stores Manager,S334,Environment - Depot / Transport,Repairs / Servicing  - Materials,5520,Transport Account,TranAcc,22/03/2024,V926696,534.66,Aebi Schmidt UK Ltd,641.59
Broxtowe Borough Council,http://statistics.data.gov.uk/id/local-authority/37UD,Head of Environment,H33,Transport and Stores Manager,S334,Environment - Depot / Transport,Repairs / Servicing  - Materials,5520,Transport Account,TranAcc,28/03/2024,V926768,543.84,Aebi Schmidt UK Ltd,1453.22
Broxtowe Borough Council,http://statistics.data.gov.uk/id/local-authority/37UD,Head of Environment,H33,Transport and Stores Manager,S334,Environment - Depot / Transport,Repairs / Servicing  - Materials,5520,Transport Account,TranAcc,28/03/2024,V926768,403.72,Aebi Schmidt UK Ltd,1453.22
Broxtowe Borough Council,http://statistics.data.gov.uk/id/local-authority/37UD,Head of Environment,H33,Transport and Stores Manager,S334,Environment - Depot / Transport,Repairs / Servicing  - Materials,5520,Transport Account,TranAcc,28/03/2024,V926768,98.98,Aebi Schmidt UK Ltd,1453.22
Broxtowe Borough Council,http://statistics.data.gov.uk/id/local-authority/37UD,Head of Environment,H33,Transport and Stores Manager,S334,Environment - Depot / Transport,Repairs / Servicing  - Materials,5520,Transport Account,TranAcc,28/03/2024,V926768,76.96,Aebi Schmidt UK Ltd,1453.22
Broxtowe Borough Council,http://statistics.data.gov.uk/id/local-authority/37UD,Head of Environment,H33,Transport and Stores Manager,S334,Environment - Depot / Transport,Repairs / Servicing  - Materials,5520,Transport Account,TranAcc,28/03/2024,V926768,52.16,Aebi Schmidt UK Ltd,1453.22
Broxtowe Borough Council,http://statistics.data.gov.uk/id/local-authority/37UD,Head of Environment,H33,Transport and Stores Manager,S334,Environment - Depot / Transport,Repairs / Servicing  - Materials,5520,Transport Account,TranAcc,28/03/2024,V926768,19.62,Aebi Schmidt UK Ltd,1453.22
Broxtowe Borough Council,http://statistics.data.gov.uk/id/local-authority/37UD,Head of Environment,H33,Transport and Stores Manager,S334,Environment - Depot / Transport,Repairs / Servicing  - Materials,5520,Transport Account,TranAcc,28/03/2024,V926768,15.74,Aebi Schmidt UK Ltd,1453.22
Broxtowe Borough Council,http://statistics.data.gov.uk/id/local-authority/37UD,Finance,FINANCE,Finance Services,FINANCE,Deputy Chief Executive / Property Services,Repairs & Maintenance,1000,Central Pot,Central,14/10/2022,V882904,3297,Aegis Technologies Ltd,3956.4
Broxtowe Borough Council,http://statistics.data.gov.uk/id/local-authority/37UD,Bramcote Crematorium,BCREM,Bramcote Crematorium,BCREM,Strategic Director / Bramcote Crem,Repairs & Maintenance,1000,Central Pot,Central,02/12/2022,V887093,306,Aegis Technologies Ltd,367.2
Broxtowe Borough Council,http://statistics.data.gov.uk/id/local-authority/37UD,Finance,FINANCE,Admin Buildings,ADBLDG,Deputy Chief Executive / Property Services,Fire Equipment Maintenance,1016,Other Maintenance,Maint,26/05/2023,V902349,2145,Aegis Technologies Ltd,7107.6
Broxtowe Borough Council,http://statistics.data.gov.uk/id/local-authority/37UD,Community Development,COMDEV,Industrial Development,INDDEV,Deputy Chief Executive / Property Services,Fire Equipment Maintenance,1016,Other Maintenance,Maint,26/05/2023,V902349,855,Aegis Technologies Ltd,7107.6
Broxtowe Borough Council,http://statistics.data.gov.uk/id/local-authority/37UD,Works,WORKS,Repairs & Maintenance,REPMAIN,Deputy Chief Executive / Property Services,Premises Costs,1017,Other Maintenance,Maint,26/05/2023,V902349,673,Aegis Technologies Ltd,7107.6
Broxtowe Borough Council,http://statistics.data.gov.uk/id/local-authority/37UD,Technical,TECHNICA,Parks & Recreation Grounds,RECGRD,Deputy Chief Executive / Property Services,Repairs & Maintenance,1000,Central Pot,Central,26/05/2023,V902349,540,Aegis Technologies Ltd,7107.6
Broxtowe Borough Council,http://statistics.data.gov.uk/id/local-authority/37UD,Technical,TECHNICA,Parks & Recreation Grounds,RECGRD,Deputy Chief Executive / Property Services,Repairs & Maintenance,1000,Central Pot,Central,26/05/2023,V902349,360,Aegis Technologies Ltd,7107.6
Broxtowe Borough Council,http://statistics.data.gov.uk/id/local-authority/37UD,Technical,TECHNICA,Parks & Recreation Grounds,RECGRD,Deputy Chief Executive / Property Services,Repairs & Maintenance,1000,Central Pot,Central,26/05/2023,V902349,180,Aegis Technologies Ltd,7107.6
Broxtowe Borough Council,http://statistics.data.gov.uk/id/local-authority/37UD,Community Development,COMDEV,Community Facilities,COMFAC,Deputy Chief Executive / Property Services,Alarm System,1002,Other Prem,OthPrem,26/05/2023,V902349,90,Aegis Technologies Ltd,7107.6
Broxtowe Borough Council,http://statistics.data.gov.uk/id/local-authority/37UD,Community Development,COMDEV,Community Facilities,COMFAC,Deputy Chief Executive / Property Services,Repairs & Maintenance,1000,Central Pot,Central,26/05/2023,V902349,90,Aegis Technologies Ltd,7107.6
Broxtowe Borough Council,http://statistics.data.gov.uk/id/local-authority/37UD,Works,WORKS,Other Works,WKSOTHER,Deputy Chief Executive / Property Services,Repairs & Maintenance,1000,Central Pot,Central,26/05/2023,V902349,90,Aegis Technologies Ltd,7107.6
Broxtowe Borough Council,http://statistics.data.gov.uk/id/local-authority/37UD,Works,WORKS,Other Works,WKSOTHER,Deputy Chief Executive / Property Services,Repairs & Maintenance,1000,Central Pot,Central,26/05/2023,V902349,90,Aegis Technologies Ltd,7107.6
Broxtowe Borough Council,http://statistics.data.gov.uk/id/local-authority/37UD,Works,WORKS,Other Works,WKSOTHER,Deputy Chief Executive / Property Services,Repairs & Maintenance,1000,Central Pot,Central,26/05/2023,V902349,90,Aegis Technologies Ltd,7107.6
Broxtowe Borough Council,http://statistics.data.gov.uk/id/local-authority/37UD,Works,WORKS,Other Works,WKSOTHER,Deputy Chief Executive / Property Services,Repairs & Maintenance,1000,Central Pot,Central,26/05/2023,V902349,90,Aegis Technologies Ltd,7107.6
Broxtowe Borough Council,http://statistics.data.gov.uk/id/local-authority/37UD,Works,WORKS,Other Works,WKSOTHER,Deputy Chief Executive / Property Services,Repairs & Maintenance,1000,Central Pot,Central,26/05/2023,V902349,90,Aegis Technologies Ltd,7107.6
Broxtowe Borough Council,http://statistics.data.gov.uk/id/local-authority/37UD,Works,WORKS,Other Works,WKSOTHER,Deputy Chief Executive / Property Services,Repairs & Maintenance,1000,Central Pot,Central,26/05/2023,V902349,90,Aegis Technologies Ltd,7107.6
Broxtowe Borough Council,http://statistics.data.gov.uk/id/local-authority/37UD,Works,WORKS,Other Works,WKSOTHER,Deputy Chief Executive / Property Services,Alarm System,1002,Other Prem,OthPrem,26/05/2023,V902349,90,Aegis Technologies Ltd,7107.6
Broxtowe Borough Council,http://statistics.data.gov.uk/id/local-authority/37UD,Technical,TECHNICA,Parks & Recreation Grounds,RECGRD,Deputy Chief Executive / Property Services,Repairs & Maintenance,1000,Central Pot,Central,26/05/2023,V902349,90,Aegis Technologies Ltd,7107.6
Broxtowe Borough Council,http://statistics.data.gov.uk/id/local-authority/37UD,Finance,FINANCE,Finance Services,FINANCE,Deputy Chief Executive / Property Services,Rent,8600,Rents,Rents,26/05/2023,V902349,90,Aegis Technologies Ltd,7107.6
Broxtowe Borough Council,http://statistics.data.gov.uk/id/local-authority/37UD,Finance,FINANCE,Finance Services,FINANCE,Deputy Chief Executive / Property Services,Repairs & Maintenance,1000,Central Pot,Central,26/05/2023,V902349,90,Aegis Technologies Ltd,7107.6
Broxtowe Borough Council,http://statistics.data.gov.uk/id/local-authority/37UD,Finance,FINANCE,Finance Services,FINANCE,Deputy Chief Executive / Property Services,Repairs & Maintenance,1000,Central Pot,Central,26/05/2023,V902349,90,Aegis Technologies Ltd,7107.6
Broxtowe Borough Council,http://statistics.data.gov.uk/id/local-authority/37UD,Community Development,COMDEV,Industrial Development,INDDEV,Deputy Chief Executive / Property Services,Fire Equipment Maintenance,1016,Maintenance,Maint,14/07/2023,V906325,605,Aegis Technologies Ltd,726
Broxtowe Borough Council,http://statistics.data.gov.uk/id/local-authority/37UD,Community Development,COMDEV,Industrial Development,INDDEV,Deputy Chief Executive / Property Services,Repairs & Maintenance,1000,Maintenance,Maint,11/08/2023,V908764,474,Aegis Technologies Ltd,568.8
Broxtowe Borough Council,http://statistics.data.gov.uk/id/local-authority/37UD,Finance,FINANCE,Finance Services,FINANCE,Deputy Chief Executive / Property Services,Repairs & Maintenance,1000,Maintenance,Maint,18/08/2023,V909419,874.09,Aegis Technologies Ltd,5994
Broxtowe Borough Council,http://statistics.data.gov.uk/id/local-authority/37UD,Technical,TECHNICA,Parks & Recreation Grounds,RECGRD,Deputy Chief Executive / Property Services,Repairs & Maintenance,1000,Maintenance,Maint,18/08/2023,V909419,845,Aegis Technologies Ltd,5994
Broxtowe Borough Council,http://statistics.data.gov.uk/id/local-authority/37UD,Works,WORKS,Other Works,WKSOTHER,Deputy Chief Executive / Property Services,Repairs & Maintenance,1000,Maintenance,Maint,18/08/2023,V909419,740,Aegis Technologies Ltd,5994
Broxtowe Borough Council,http://statistics.data.gov.uk/id/local-authority/37UD,Technical,TECHNICA,Parks & Recreation Grounds,RECGRD,Deputy Chief Executive / Property Services,Repairs & Maintenance,1000,Maintenance,Maint,18/08/2023,V909419,585.54,Aegis Technologies Ltd,5994
Broxtowe Borough Council,http://statistics.data.gov.uk/id/local-authority/37UD,Finance,FINANCE,Finance Services,FINANCE,Deputy Chief Executive / Property Services,Repairs & Maintenance,1000,Maintenance,Maint,18/08/2023,V909419,557.52,Aegis Technologies Ltd,5994
Broxtowe Borough Council,http://statistics.data.gov.uk/id/local-authority/37UD,Technical,TECHNICA,Parks & Recreation Grounds,RECGRD,Deputy Chief Executive / Property Services,Repairs & Maintenance,1000,Maintenance,Maint,18/08/2023,V909419,353.79,Aegis Technologies Ltd,5994
Broxtowe Borough Council,http://statistics.data.gov.uk/id/local-authority/37UD,Technical,TECHNICA,Parks & Recreation Grounds,RECGRD,Deputy Chief Executive / Property Services,Repairs & Maintenance,1000,Maintenance,Maint,18/08/2023,V909419,315,Aegis Technologies Ltd,5994
Broxtowe Borough Council,http://statistics.data.gov.uk/id/local-authority/37UD,Community Development,COMDEV,Community Facilities,COMFAC,Deputy Chief Executive / Property Services,Repairs & Maintenance,1000,Maintenance,Maint,18/08/2023,V909419,210,Aegis Technologies Ltd,5994
Broxtowe Borough Council,http://statistics.data.gov.uk/id/local-authority/37UD,Technical,TECHNICA,Parks & Recreation Grounds,RECGRD,Deputy Chief Executive / Property Services,Repairs & Maintenance,1000,Maintenance,Maint,18/08/2023,V909419,210,Aegis Technologies Ltd,5994
Broxtowe Borough Council,http://statistics.data.gov.uk/id/local-authority/37UD,Community Development,COMDEV,Community Facilities,COMFAC,Deputy Chief Executive / Property Services,Fire Equipment Maintenance,1016,Maintenance,Maint,18/08/2023,V909419,105,Aegis Technologies Ltd,5994
Broxtowe Borough Council,http://statistics.data.gov.uk/id/local-authority/37UD,Works,WORKS,Other Works,WKSOTHER,Deputy Chief Executive / Property Services,Repairs & Maintenance,1000,Maintenance,Maint,18/08/2023,V909419,105,Aegis Technologies Ltd,5994
Broxtowe Borough Council,http://statistics.data.gov.uk/id/local-authority/37UD,Technical,TECHNICA,Parks & Recreation Grounds,RECGRD,Deputy Chief Executive / Property Services,Repairs & Maintenance,1000,Maintenance,Maint,18/08/2023,V909419,94.06,Aegis Technologies Ltd,5994
Broxtowe Borough Council,http://statistics.data.gov.uk/id/local-authority/37UD,Head of Asset Management,H21,Estates Manager,S212,Deputy Chief Executive / Property Services,Repairs & Maintenance,1000,Maintenance,Maint,01/12/2023,V917264,3297,Aegis Technologies Ltd,3956.4
Broxtowe Borough Council,http://statistics.data.gov.uk/id/local-authority/37UD,Head of Environment,H33,Head of Environment,S332,Executive Director / Enviromental Services,Premises Costs,1017,Maintenance,Maint,22/12/2023,V919066,95.08,Aegis Technologies Ltd,333.69
Broxtowe Borough Council,http://statistics.data.gov.uk/id/local-authority/37UD,Head of Environment,H33,Head of Environment,S332,Executive Director / Enviromental Services,Premises Costs,1017,Maintenance,Maint,22/12/2023,V919063,94,Aegis Technologies Ltd,333.69
Broxtowe Borough Council,http://statistics.data.gov.uk/id/local-authority/37UD,Head of Asset Management,H21,Estates Manager,S212,Deputy Chief Executive / Property Services,Repairs & Maintenance,1000,Maintenance,Maint,22/12/2023,V919064,89,Aegis Technologies Ltd,333.69
Broxtowe Borough Council,http://statistics.data.gov.uk/id/local-authority/37UD,Head of Housing,H51,Housing Repairs and Compliance Manager,S514,Chief Executive  / Housing repairs,Sub Contractors [day to day repairs],3107,Other Supplies & Services,OtherSS,08/12/2023,V917939,624,AFI Uplift Limited,748.8
Broxtowe Borough Council,http://statistics.data.gov.uk/id/local-authority/37UD,Chief Executive,CE,Chief Exec & Corporate Comms,CE,Executive Director / Cultural Services,Promotion of The Arts,3066,Other Supplies & Services,OtherSS,18/08/2023,V909421,400,African Ark,1050
Broxtowe Borough Council,http://statistics.data.gov.uk/id/local-authority/37UD,Chief Executive,CE,Chief Exec & Corporate Comms,CE,Executive Director / Cultural Services,Promotion of The Arts,3066,Other Supplies & Services,OtherSS,18/08/2023,V909421,400,African Ark,1050
Broxtowe Borough Council,http://statistics.data.gov.uk/id/local-authority/37UD,Chief Executive,CE,Chief Exec & Corporate Comms,CE,Executive Director / Cultural Services,Promotion of The Arts,3066,Other Supplies & Services,OtherSS,18/08/2023,V909421,250,African Ark,1050
Broxtowe Borough Council,http://statistics.data.gov.uk/id/local-authority/37UD,Finance,FINANCE,Admin Services,ADMIN,Strategic Director / Administrative Services,Hire of Facilities,3223,Other Supplies & Services,OtherSS,09/12/2022,V887992,502,Age Concern Eastwood,502
Broxtowe Borough Council,http://statistics.data.gov.uk/id/local-authority/37UD,Community Development,COMDEV,Grants,GRANTS,Deputy Chief Executive / Finance Services,Grants,3700,Other Supplies & Services,OtherSS,28/04/2023,V899631,5150,Age Concern Eastwood,5150
Broxtowe Borough Council,http://statistics.data.gov.uk/id/local-authority/37UD,Finance,FINANCE,Admin Services,ADMIN,Executive Director / Administrative Services,Hire of Facilities,3223,Other Supplies & Services,OtherSS,07/07/2023,V905561,502,Age Concern Eastwood,502
Broxtowe Borough Council,http://statistics.data.gov.uk/id/local-authority/37UD,Planning Community Development,PCD,Planning Community Development,PCD,Chief Executive  / Environmental Health,Grants,9006,Capital Expenditure,CapExp,16/12/2022,V888568,350,AGE UK Nottingham & Nottinghamshire,420
Broxtowe Borough Council,http://statistics.data.gov.uk/id/local-authority/37UD,Planning Community Development,PCD,Planning Community Development,PCD,Chief Executive  / Environmental Health,Grants,9006,Capital Expenditure,CapExp,16/12/2022,V888568,350,AGE UK Nottingham & Nottinghamshire,420
Broxtowe Borough Council,http://statistics.data.gov.uk/id/local-authority/37UD,Planning Community Development,PCD,Planning Community Development,PCD,Chief Executive  / Environmental Health,Grants,9006,Capital Expenditure,CapExp,31/03/2023,V897984,640.74,AGE UK Nottingham & Nottinghamshire,640.74
Broxtowe Borough Council,http://statistics.data.gov.uk/id/local-authority/37UD,Planning Community Development,PCD,Planning Community Development,PCD,Chief Executive  / Environmental Health,Grants,9006,Capital Expenditure,CapExp,21/04/2023,V899601,420,AGE UK Nottingham & Nottinghamshire,420
Broxtowe Borough Council,http://statistics.data.gov.uk/id/local-authority/37UD,Works,WORKS,Repairs & Maintenance,REPMAIN,Strategic Director / Grounds,Materials  - Direct,3202,Equipment,Equip,28/10/2022,V882380,559,Agrovista UK Ltd T/A Sherriff Amenity,670.8
Broxtowe Borough Council,http://statistics.data.gov.uk/id/local-authority/37UD,Head of Environment,H33,Parks and Green Spaces manager,S333,Executive Director / Enviromental Services,Materials  - Direct,3202,Equipment,Equip,28/03/2024,V927340,4960,Agrovista UK Ltd T/A Sherriff Amenity,5952
Broxtowe Borough Council,http://statistics.data.gov.uk/id/local-authority/37UD,Bramcote Crematorium,BCREM,Bramcote Crematorium,BCREM,Strategic Director / Bramcote Crem,Repairs & Maintenance,1000,Central Pot,Central,07/10/2022,V882397,412.68,AHS LTD,495.22
Broxtowe Borough Council,http://statistics.data.gov.uk/id/local-authority/37UD,Bramcote Crematorium,BCREM,Bramcote Crematorium,BCREM,Strategic Director / Bramcote Crem,Repairs & Maintenance,1000,Central Pot,Central,14/10/2022,V882845,2879.8,AHS LTD,3455.76
Broxtowe Borough Council,http://statistics.data.gov.uk/id/local-authority/37UD,Bramcote Crematorium,BCREM,Bramcote Crematorium,BCREM,Strategic Director / Bramcote Crem,Repairs & Maintenance,1000,Central Pot,Central,06/01/2023,V882845,-2879.8,AHS LTD,-3455.76
Broxtowe Borough Council,http://statistics.data.gov.uk/id/local-authority/37UD,Bramcote Crematorium,BCREM,Bramcote Crematorium,BCREM,Executive Director / Bramcote Crem,Repairs & Maintenance,1000,Maintenance,Maint,26/03/2024,V882397,-412.68,AHS LTD,-495.22
Broxtowe Borough Council,http://statistics.data.gov.uk/id/local-authority/37UD,Head of Environment,H33,Transport and Stores Manager,S334,Executive Director / Transport T&W,Repairs / Servicing  - Materials,5520,Transport Account,TranAcc,15/12/2023,V918341,254,Air Seal Products,438
Broxtowe Borough Council,http://statistics.data.gov.uk/id/local-authority/37UD,Head of Environment,H33,Transport and Stores Manager,S334,Executive Director / Transport T&W,Repairs / Servicing  - Materials,5520,Transport Account,TranAcc,15/12/2023,V918341,99,Air Seal Products,438
Broxtowe Borough Council,http://statistics.data.gov.uk/id/local-authority/37UD,Head of Environment,H33,Transport and Stores Manager,S334,Executive Director / Transport T&W,Repairs / Servicing  - Materials,5520,Transport Account,TranAcc,15/12/2023,V918341,12,Air Seal Products,438
Broxtowe Borough Council,http://statistics.data.gov.uk/id/local-authority/37UD,Works,WORKS,Repairs & Maintenance,REPMAIN,Environment - Depot / Transport,Repairs / Servicing  - Materials,5520,Transport Account,TranAcc,24/03/2023,V897366,158.58,Airport Bearing Company Limited,276.38
Broxtowe Borough Council,http://statistics.data.gov.uk/id/local-authority/37UD,Works,WORKS,Repairs & Maintenance,REPMAIN,Environment - Depot / Transport,Repairs / Servicing  - Materials,5520,Transport Account,TranAcc,24/03/2023,V897020,47.25,Airport Bearing Company Limited,276.38
Broxtowe Borough Council,http://statistics.data.gov.uk/id/local-authority/37UD,Works,WORKS,Repairs & Maintenance,REPMAIN,Environment - Depot / Transport,Repairs / Servicing  - Materials,5520,Transport Account,TranAcc,24/03/2023,V897367,24.48,Airport Bearing Company Limited,276.38
Broxtowe Borough Council,http://statistics.data.gov.uk/id/local-authority/37UD,Head of Environment,H33,Transport and Stores Manager,S334,Environment - Depot / Transport,Repairs / Servicing  - Materials,5520,Transport Account,TranAcc,01/12/2023,V917162,110.08,Airport Bearing Company Limited,510.84
Broxtowe Borough Council,http://statistics.data.gov.uk/id/local-authority/37UD,Head of Environment,H33,Transport and Stores Manager,S334,Environment - Depot / Transport,Repairs / Servicing  - Materials,5520,Transport Account,TranAcc,01/12/2023,V917161,110.08,Airport Bearing Company Limited,510.84
Broxtowe Borough Council,http://statistics.data.gov.uk/id/local-authority/37UD,Head of Environment,H33,Transport and Stores Manager,S334,Environment - Depot / Transport,Repairs / Servicing  - Materials,5520,Transport Account,TranAcc,01/12/2023,V917162,87.6,Airport Bearing Company Limited,510.84
Broxtowe Borough Council,http://statistics.data.gov.uk/id/local-authority/37UD,Head of Environment,H33,Transport and Stores Manager,S334,Environment - Depot / Transport,Repairs / Servicing  - Materials,5520,Transport Account,TranAcc,01/12/2023,V917162,58.4,Airport Bearing Company Limited,510.84
Broxtowe Borough Council,http://statistics.data.gov.uk/id/local-authority/37UD,Head of Environment,H33,Transport and Stores Manager,S334,Environment - Depot / Transport,Repairs / Servicing  - Materials,5520,Transport Account,TranAcc,01/12/2023,V917162,27.52,Airport Bearing Company Limited,510.84
Broxtowe Borough Council,http://statistics.data.gov.uk/id/local-authority/37UD,Head of Environment,H33,Transport and Stores Manager,S334,Environment - Depot / Transport,Repairs / Servicing  - Materials,5520,Transport Account,TranAcc,01/12/2023,V917162,25.58,Airport Bearing Company Limited,510.84
Broxtowe Borough Council,http://statistics.data.gov.uk/id/local-authority/37UD,Head of Environment,H33,Transport and Stores Manager,S334,Environment - Depot / Transport,Repairs / Servicing  - Materials,5520,Transport Account,TranAcc,01/12/2023,V917162,6.44,Airport Bearing Company Limited,510.84
Broxtowe Borough Council,http://statistics.data.gov.uk/id/local-authority/37UD,Head of Asset Management,H21,Head of Asset Management,S213,Deputy Chief Executive / Property Services,Consultancy Fees,3603,Other Supplies & Services,OtherSS,24/11/2023,V916798,3000.00,Aitchison Raffety Group,3600
Broxtowe Borough Council,http://statistics.data.gov.uk/id/local-authority/37UD,Housing,HOUSING,Repairs,REPS,Chief Executive  / Housing Operations,Sub Contractors [day to day repairs],3107,Other Supplies & Services,OtherSS,09/09/2022,V879847,450,AJR Management Ltd,540
Broxtowe Borough Council,http://statistics.data.gov.uk/id/local-authority/37UD,Housing,HOUSING,Repairs,REPS,Deputy Chief Executive / Housing Repairs,Sub Contractors [day to day repairs],3107,Other Supplies & Services,OtherSS,16/09/2022,V880216,465,AJR Management Ltd,558
Broxtowe Borough Council,http://statistics.data.gov.uk/id/local-authority/37UD,Housing,HOUSING,Repairs,REPS,Deputy Chief Executive / Housing Repairs,Sub Contractors [day to day repairs],3107,Other Supplies & Services,OtherSS,25/11/2022,V886345,630,AJR Management Ltd,756
Broxtowe Borough Council,http://statistics.data.gov.uk/id/local-authority/37UD,Housing,HOUSING,Repairs,REPS,Deputy Chief Executive / Housing Repairs,Sub Contractors [day to day repairs],3107,Other Supplies & Services,OtherSS,16/12/2022,V888742,540,AJR Management Ltd,648
Broxtowe Borough Council,http://statistics.data.gov.uk/id/local-authority/37UD,Housing,HOUSING,Repairs,REPS,Chief Executive  / Housing Operations,Sub Contractors [day to day repairs],3107,Other Supplies & Services,OtherSS,03/03/2023,V895324,450,AJR Management Ltd,540
Broxtowe Borough Council,http://statistics.data.gov.uk/id/local-authority/37UD,Housing,HOUSING,Repairs,REPS,Chief Executive  / Housing repairs,Sub Contractors [day to day repairs],3107,Other Supplies & Services,OtherSS,24/03/2023,V896950,480,AJR Management Ltd,576
Broxtowe Borough Council,http://statistics.data.gov.uk/id/local-authority/37UD,Housing,HOUSING,Repairs,REPS,Chief Executive  / Housing repairs,Sub Contractors [day to day repairs],3107,Other Supplies & Services,OtherSS,07/07/2023,V905895,435,AJR Management Ltd,522
Broxtowe Borough Council,http://statistics.data.gov.uk/id/local-authority/37UD,Housing,HOUSING,Repairs,REPS,Chief Executive  / Housing repairs,Sub Contractors [day to day repairs],3107,Other Supplies & Services,OtherSS,14/07/2023,V906313,360,AJR Management Ltd,810
Broxtowe Borough Council,http://statistics.data.gov.uk/id/local-authority/37UD,Housing,HOUSING,Repairs,REPS,Chief Executive  / Housing repairs,Sub Contractors [day to day repairs],3107,Other Supplies & Services,OtherSS,14/07/2023,V906308,315,AJR Management Ltd,810
Broxtowe Borough Council,http://statistics.data.gov.uk/id/local-authority/37UD,Housing,HOUSING,Repairs,REPS,Chief Executive  / Housing repairs,Sub Contractors [day to day repairs],3107,Other Supplies & Services,OtherSS,18/08/2023,V909481,270,AJR Management Ltd,324
Broxtowe Borough Council,http://statistics.data.gov.uk/id/local-authority/37UD,Head of Housing,H51,Housing Repairs and Compliance Manager,S514,Chief Executive  / Housing repairs,Sub Contractors [day to day repairs],3107,Other Supplies & Services,OtherSS,22/09/2023,V911536,285,AJR Management Ltd,342
Broxtowe Borough Council,http://statistics.data.gov.uk/id/local-authority/37UD,Head of Housing,H51,Housing Repairs and Compliance Manager,S514,Chief Executive  / Housing repairs,Sub Contractors [day to day repairs],3107,Other Supplies & Services,OtherSS,29/09/2023,V911912,345,AJR Management Ltd,414
Broxtowe Borough Council,http://statistics.data.gov.uk/id/local-authority/37UD,Head of Housing,H51,Housing Repairs and Compliance Manager,S514,Chief Executive  / Housing repairs,Sub Contractors [day to day repairs],3107,Other Supplies & Services,OtherSS,17/11/2023,V915886,405.00,AJR Management Ltd,486
Broxtowe Borough Council,http://statistics.data.gov.uk/id/local-authority/37UD,Head of Housing,H51,Housing Repairs and Compliance Manager,S514,Chief Executive  / Housing Operations,Sub Contractors [day to day repairs],3107,Other Supplies & Services,OtherSS,16/02/2024,V923549,420,AJR Management Ltd,504
Broxtowe Borough Council,http://statistics.data.gov.uk/id/local-authority/37UD,Head of Housing,H51,Housing Repairs and Compliance Manager,S514,Chief Executive  / Housing Operations,Sub Contractors [day to day repairs],3107,Other Supplies & Services,OtherSS,15/03/2024,V926025,465,AJR Management Ltd,1098
Broxtowe Borough Council,http://statistics.data.gov.uk/id/local-authority/37UD,Head of Housing,H51,Housing Repairs and Compliance Manager,S514,Chief Executive  / Housing Operations,Sub Contractors [day to day repairs],3107,Other Supplies & Services,OtherSS,15/03/2024,V925837,270,AJR Management Ltd,1098
Broxtowe Borough Council,http://statistics.data.gov.uk/id/local-authority/37UD,Head of Housing,H51,Housing Repairs and Compliance Manager,S514,Chief Executive  / Housing Operations,Sub Contractors [day to day repairs],3107,Other Supplies & Services,OtherSS,15/03/2024,V925935,180,AJR Management Ltd,1098
Broxtowe Borough Council,http://statistics.data.gov.uk/id/local-authority/37UD,Inventories,2INV,Inventories,2INV,Strategic Director / Enviromental Services,Stores Purchased - May,9361,Assets,Assets,20/05/2022,V857600,1195.12,AKW Medi-Care LTD,1434.14
Broxtowe Borough Council,http://statistics.data.gov.uk/id/local-authority/37UD,Inventories,2INV,Inventories,2INV,Strategic Director / Enviromental Services,Stores Purchased - June,9362,Assets,Assets,24/06/2022,V865802,1195.12,AKW Medi-Care LTD,1434.14
Broxtowe Borough Council,http://statistics.data.gov.uk/id/local-authority/37UD,Inventories,2INV,Inventories,2INV,Strategic Director / Enviromental Services,Stores Purchased - July,9363,Assets,Assets,05/08/2022,V871685,1095.12,AKW Medi-Care LTD,1314.14
Broxtowe Borough Council,http://statistics.data.gov.uk/id/local-authority/37UD,Inventories,2INV,Inventories,2INV,Strategic Director / Enviromental Services,Stores Purchased - August,9364,Assets,Assets,19/08/2022,V877197,1642.68,AKW Medi-Care LTD,1971.22
Broxtowe Borough Council,http://statistics.data.gov.uk/id/local-authority/37UD,Inventories,2INV,Inventories,2INV,Strategic Director / Enviromental Services,Stores Purchased - August,9364,Assets,Assets,02/09/2022,V878250,236.9,AKW Medi-Care LTD,284.28
Broxtowe Borough Council,http://statistics.data.gov.uk/id/local-authority/37UD,Inventories,2INV,Inventories,2INV,Strategic Director / Enviromental Services,Stores Purchased - November,9367,Assets,Assets,18/11/2022,V885953,1095.12,AKW Medi-Care LTD,1314.14
Broxtowe Borough Council,http://statistics.data.gov.uk/id/local-authority/37UD,Inventories,2INV,Inventories,2INV,Executive Director / Enviromental Services,Stores Purchased - February,9370,Assets,Assets,10/03/2023,V895963,1296.68,AKW Medi-Care LTD,1556.02
Broxtowe Borough Council,http://statistics.data.gov.uk/id/local-authority/37UD,Inventories,2INV,Inventories,2INV,Executive Director / Enviromental Services,Stores Purchased - March,9371,Assets,Assets,28/04/2023,V899761,184.8,AKW Medi-Care LTD,330.86
Broxtowe Borough Council,http://statistics.data.gov.uk/id/local-authority/37UD,Inventories,2INV,Inventories,2INV,Executive Director / Enviromental Services,Stores Purchased - March,9371,Assets,Assets,28/04/2023,V899761,73.92,AKW Medi-Care LTD,330.86
Broxtowe Borough Council,http://statistics.data.gov.uk/id/local-authority/37UD,Inventories,2INV,Inventories,2INV,Executive Director / Enviromental Services,Stores Purchased - March,9371,Assets,Assets,28/04/2023,V899761,17,AKW Medi-Care LTD,330.86
Broxtowe Borough Council,http://statistics.data.gov.uk/id/local-authority/37UD,Inventories,2INV,Inventories,2INV,Executive Director / Enviromental Services,Stores Purchased - April,9360,Assets,Assets,05/05/2023,V900665,1095.12,AKW Medi-Care LTD,1341.61
Broxtowe Borough Council,http://statistics.data.gov.uk/id/local-authority/37UD,Inventories,2INV,Inventories,2INV,Executive Director / Enviromental Services,Stores Purchased - April,9360,Assets,Assets,05/05/2023,V900665,22.89,AKW Medi-Care LTD,1341.61
Broxtowe Borough Council,http://statistics.data.gov.uk/id/local-authority/37UD,Housing,HOUSING,Repairs,REPS,Executive Director / Enviromental Services,Materials  - Direct,3202,Equipment,Equip,19/05/2023,V901896,1030.02,AKW Medi-Care LTD,1236.02
Broxtowe Borough Council,http://statistics.data.gov.uk/id/local-authority/37UD,Housing,HOUSING,Repairs,REPS,Executive Director / Enviromental Services,Materials  - Direct,3202,Equipment,Equip,16/06/2023,V904069,586.85,AKW Medi-Care LTD,274.49
Broxtowe Borough Council,http://statistics.data.gov.uk/id/local-authority/37UD,Housing,HOUSING,Repairs,REPS,Executive Director / Enviromental Services,Materials  - Direct,3202,Equipment,Equip,16/06/2023,V904140,228.74,AKW Medi-Care LTD,274.49
Broxtowe Borough Council,http://statistics.data.gov.uk/id/local-authority/37UD,Housing,HOUSING,Repairs,REPS,Executive Director / Enviromental Services,Materials  - Direct,3202,Equipment,Equip,16/06/2023,V904070,-586.85,AKW Medi-Care LTD,274.49
Broxtowe Borough Council,http://statistics.data.gov.uk/id/local-authority/37UD,Inventories,2INV,Inventories,2INV,Executive Director / Enviromental Services,Stores Purchased - June,9362,Assets,Assets,23/06/2023,V904542,1095.12,AKW Medi-Care LTD,1314.14
Broxtowe Borough Council,http://statistics.data.gov.uk/id/local-authority/37UD,Housing,HOUSING,Repairs,REPS,Executive Director / Enviromental Services,Materials - Stores,3203,Equipment,Equip,28/07/2023,V907462,287.9,AKW Medi-Care LTD,345.48
Broxtowe Borough Council,http://statistics.data.gov.uk/id/local-authority/37UD,Inventories,2INV,Inventories,2INV,Executive Director / Enviromental Services,Stores Purchased - July,9363,Assets,Assets,04/08/2023,V908195,1368.9,AKW Medi-Care LTD,1838.41
Broxtowe Borough Council,http://statistics.data.gov.uk/id/local-authority/37UD,Housing,HOUSING,Repairs,REPS,Executive Director / Enviromental Services,Materials  - Direct,3202,Equipment,Equip,04/08/2023,V908117,163.11,AKW Medi-Care LTD,1838.41
Broxtowe Borough Council,http://statistics.data.gov.uk/id/local-authority/37UD,Inventories,2INV,Inventories,2INV,Executive Director / Enviromental Services,Stores Purchased - August,9364,Assets,Assets,08/09/2023,V911110,1368.9,AKW Medi-Care LTD,1728.49
Broxtowe Borough Council,http://statistics.data.gov.uk/id/local-authority/37UD,Head of Housing,H51,Housing Repairs and Compliance Manager,S514,Executive Director / Enviromental Services,Materials  - Direct,3202,Equipment,Equip,08/09/2023,V911110,71.51,AKW Medi-Care LTD,1728.49
Broxtowe Borough Council,http://statistics.data.gov.uk/id/local-authority/37UD,Inventories,2INV,Inventories,2INV,Executive Director / Enviromental Services,Stores Purchased - September,9365,Assets,Assets,22/09/2023,V911630,1095.12,AKW Medi-Care LTD,1314.14
Broxtowe Borough Council,http://statistics.data.gov.uk/id/local-authority/37UD,Inventories,2INV,Inventories,2INV,Executive Director / Enviromental Services,Stores Purchased - November,9367,Assets,Assets,01/12/2023,V916853,324.17,AKW Medi-Care LTD,572.91
Broxtowe Borough Council,http://statistics.data.gov.uk/id/local-authority/37UD,Inventories,2INV,Inventories,2INV,Executive Director / Enviromental Services,Stores Purchased - November,9367,Assets,Assets,01/12/2023,V916853,89.04,AKW Medi-Care LTD,572.91
Broxtowe Borough Council,http://statistics.data.gov.uk/id/local-authority/37UD,Inventories,2INV,Inventories,2INV,Executive Director / Enviromental Services,Stores Purchased - November,9367,Assets,Assets,01/12/2023,V916853,64.22,AKW Medi-Care LTD,572.91
Broxtowe Borough Council,http://statistics.data.gov.uk/id/local-authority/37UD,Inventories,2INV,Inventories,2INV,Executive Director / Enviromental Services,Stores Purchased - December,9368,Assets,Assets,22/12/2023,V918910,1095.12,AKW Medi-Care LTD,1314.14
Broxtowe Borough Council,http://statistics.data.gov.uk/id/local-authority/37UD,Control Accounts,CONTROL,Control Accounts,CONTROL,Executive Director / Enviromental Services,Stores Purchased - January,9369,Assets,Assets,02/02/2024,V922108,555.38,AKW Medi-Care LTD,755.32
Broxtowe Borough Council,http://statistics.data.gov.uk/id/local-authority/37UD,Control Accounts,CONTROL,Control Accounts,CONTROL,Executive Director / Enviromental Services,Stores Purchased - January,9369,Assets,Assets,02/02/2024,V922108,74.05,AKW Medi-Care LTD,755.32
Broxtowe Borough Council,http://statistics.data.gov.uk/id/local-authority/37UD,Head of Housing,H51,Housing Repairs and Compliance Manager,S514,Executive Director / Enviromental Services,Materials  - Direct,3202,Equipment,Equip,08/03/2024,V925263,232.43,AKW Medi-Care LTD,438.88
Broxtowe Borough Council,http://statistics.data.gov.uk/id/local-authority/37UD,Control Accounts,CONTROL,Control Accounts,CONTROL,Executive Director / Enviromental Services,Stores Purchased - January,9369,Control,Ctrl,08/03/2024,V925453,115.45,AKW Medi-Care LTD,438.88
Broxtowe Borough Council,http://statistics.data.gov.uk/id/local-authority/37UD,Head of Housing,H51,Housing Repairs and Compliance Manager,S514,Executive Director / Enviromental Services,Materials  - Direct,3202,Equipment,Equip,08/03/2024,V925263,17.85,AKW Medi-Care LTD,438.88
Broxtowe Borough Council,http://statistics.data.gov.uk/id/local-authority/37UD,Control Accounts,CONTROL,Control Accounts,CONTROL,Executive Director / Enviromental Services,Stores Purchased - March,9371,Control,Ctrl,28/03/2024,V927247,555.38,AKW Medi-Care LTD,726.89
Broxtowe Borough Council,http://statistics.data.gov.uk/id/local-authority/37UD,Control Accounts,CONTROL,Control Accounts,CONTROL,Executive Director / Enviromental Services,Stores Purchased - March,9371,Control,Ctrl,28/03/2024,V927247,50.36,AKW Medi-Care LTD,726.89
Broxtowe Borough Council,http://statistics.data.gov.uk/id/local-authority/37UD,Technical,TECHNICA,Parks & Recreation Grounds,RECGRD,Executive Director / Grounds,Grounds Maintenance - External,1205,Other Premises,OthPrem,14/07/2023,V906272,1295,Alan Wood Partnership T/A Alan Wood & Partners,1554
Broxtowe Borough Council,http://statistics.data.gov.uk/id/local-authority/37UD,Provisions,3PRO,Short Term Provisions,3PRO,Deputy Chief Executive / Finance Services,Other Payments,9231,Liabilities,Liabil,03/03/2023,V892793,650,Alarm,780
Broxtowe Borough Council,http://statistics.data.gov.uk/id/local-authority/37UD,Control Accounts,CONTROL,Control Accounts,CONTROL,Deputy Chief Executive / Finance Services,Other Payments,9231,Liabilities,Liabil,23/02/2024,V924309,690,Alarm,828
Broxtowe Borough Council,http://statistics.data.gov.uk/id/local-authority/37UD,Head of Environment,H33,Waste and Climate Change Manager,S335,Executive Director / Grounds,Clean & Green Initiative,3980,Other Supplies & Services,OtherSS,09/02/2024,V922979,974.2,Alba Trees PLC,1169.04
Broxtowe Borough Council,http://statistics.data.gov.uk/id/local-authority/37UD,Chief Executive,CE,Chief Exec & Corporate Comms,CE,Executive Director / Cultural Services,Promotion of The Arts,3066,Obsolete Supplies,ObsSupp,23/06/2023,V904554,280,Alison Sutherland (Rose Devine),380
Broxtowe Borough Council,http://statistics.data.gov.uk/id/local-authority/37UD,Chief Executive,CE,Chief Exec & Corporate Comms,CE,Executive Director / Cultural Services,Promotion of The Arts,3066,Obsolete Supplies,ObsSupp,23/06/2023,V904554,100,Alison Sutherland (Rose Devine),380
Broxtowe Borough Council,http://statistics.data.gov.uk/id/local-authority/37UD,Head of Asset Management,H21,Estates Manager,S212,Deputy Chief Executive / Property Services,Repairs & Maintenance,1000,Maintenance,Maint,22/12/2023,V919004,2980,All Round Commercial Cleaners Ltd,3340
Broxtowe Borough Council,http://statistics.data.gov.uk/id/local-authority/37UD,Head of Asset Management,H21,Estates Manager,S212,Deputy Chief Executive / Property Services,Cleaning Materials,1510,Other Premises,OthPrem,22/12/2023,V919003,360,All Round Commercial Cleaners Ltd,3340
Broxtowe Borough Council,http://statistics.data.gov.uk/id/local-authority/37UD,Head of Asset Management,H21,Estates Manager,S212,Deputy Chief Executive / Property Services,Cleaning Materials,1510,Other Premises,OthPrem,05/01/2024,V919131,1150,All Round Commercial Cleaners Ltd,2980
Broxtowe Borough Council,http://statistics.data.gov.uk/id/local-authority/37UD,Head of Asset Management,H21,Estates Manager,S212,Deputy Chief Executive / Property Services,Cleaning Materials,1510,Other Premises,OthPrem,05/01/2024,V919133,1050,All Round Commercial Cleaners Ltd,2980
